Workbook

Sheet Backstage
D1: flagDeveloperMode | E1: TRUE
D2: stringLastProcessRun
D5: CHECK BOX REPEATER FLAGS | G5: PROCESS SHEET ASSOCIATIONS
D6: cbPROCESS1 | E6: FALSE | G6: shnamPROCESS1 | H6: Freeway
D7: cbPROCESS2 | E7: FALSE | G7: shnamPROCESS2 | H7: ManagedLanes
D8: cbPROCESS3 | E8: FALSE | G8: shnamPROCESS3 | H8: GPRoadway
D9: cbPROCESS4 | E9: FALSE | G9: shnamPROCESS4 | H9: InterchangeGSep
D10: cbPROCESS5 | E10: FALSE | G10: shnamPROCESS5 | H10: Intersections
D11: cbPROCESS6 | E11: FALSE | G11: shnamPROCESS6 | H11: Bridge
D12: cbPROCESS7 | E12: FALSE | G12: shnamPROCESS7 | H12: NonMotorized
D13: cbPROCESS8 | E13: FALSE | G13: shnamPROCESS8 | H13: Walls
D14: cbPROCESS9 | E14: FALSE | G14: shnamPROCESS9 | H14: ITS
D15: cbPROCESS10 | E15: FALSE | G15: shnamPROCESS10 | H15: ROW
D17: PROCESS STATUS FLAGS | K17: BackPass | L17: Mode | S17: ReverseOrder
D18: schPROCESS1 | E18: FALSE | K18: =shnamPROCESS10 -> ROW | L18: =IF(cbPROCESS10,K18,"Blank") -> Blank | M18: 1 | N18: =IF(L18<>"Blank",M18) -> FALSE | O18: 0 | P18: =MATCH(O18,$N$18:$N$28,-1) -> 11 | Q18: =COUNT($N$18:$N$28) -> 1 | R18: =INDEX($P$18:$P$28,Q18) -> 11 | S18: =IFERROR(INDEX($K$18:$K$28,R18),"Null") -> ProjectInformation
D19: schPROCESS2 | E19: FALSE | K19: =shnamPROCESS9 -> ITS | L19: =IF(cbPROCESS9,K19,"Blank") -> Blank | M19: 2 | N19: FALSE | O19: =P18-1 -> 10 | P19: =MATCH(O19,$N$18:$N$28,1) ->  | Q19: =Q18-1 -> 0 | S19: Null
D20: schPROCESS3 | E20: FALSE | K20: =shnamPROCESS8 -> Walls | L20: =IF(cbPROCESS8,K20,"Blank") -> Blank | M20: 3 | N20: FALSE | Q20: -1 | S20: Null
D21: schPROCESS4 | E21: FALSE | K21: =shnamPROCESS7 -> NonMotorized | L21: =IF(cbPROCESS7,K21,"Blank") -> Blank | M21: 4 | N21: FALSE | Q21: -2 | S21: Null
D22: schPROCESS5 | E22: FALSE | K22: =shnamPROCESS6 -> Bridge | L22: =IF(cbPROCESS6,K22,"Blank") -> Blank | M22: 5 | N22: FALSE | Q22: -3 | S22: Null
D23: schPROCESS6 | E23: FALSE | K23: =shnamPROCESS5 -> Intersections | L23: =IF(cbPROCESS5,K23,"Blank") -> Blank | M23: 6 | N23: FALSE | Q23: -4 | S23: Null
D24: schPROCESS7 | E24: FALSE | K24: =shnamPROCESS4 -> InterchangeGSep | L24: =IF(cbPROCESS4,K24,"Blank") -> Blank | M24: 7 | N24: FALSE | Q24: -5 | S24: Null
D25: schPROCESS8 | E25: FALSE | K25: =shnamPROCESS3 -> GPRoadway | L25: =IF(cbPROCESS3,K25,"Blank") -> Blank | M25: 8 | N25: FALSE | Q25: -6 | S25: Null
D26: schPROCESS9 | E26: FALSE | K26: =shnamPROCESS2 -> ManagedLanes | L26: =IF(cbPROCESS2,K26,"Blank") -> Blank | M26: 9 | N26: FALSE | Q26: -7 | S26: Null
D27: schPROCESS10 | E27: FALSE | K27: =shnamPROCESS1 -> Freeway | L27: =IF(cbPROCESS1,K27,"Blank") -> Blank | M27: 10 | N27: =IF(L27<>"Blank",M27) -> FALSE | O27: =P26-1 ->  | P27: =MATCH(O27,$N$18:$N$28,1) ->  | Q27: =Q26-1 -> -8 | R27: =INDEX($P$18:$P$28,Q27) ->  | S27: =IFERROR(INDEX($K$18:$K$28,R27),"Null") -> Null
K28: ProjectInformation | L28: =K28 -> ProjectInformation | M28: 11 | N28: 11 | Q28: -9 | S28: Null
S29: Null

Sheet Introduction
A1: ATLANTA REGIONAL COMMISSION
A2: PLANNING LEVEL COST ESTIMATION TOOL
A5: This tool was developed by the ARC for purposes of estimating planning-level, long-range cost estimates for proposed projects including the following 10 elements:
A6: (1) Freeway Widening | J6: (6) Bridges
A7: (2) Managed Lanes (HOV, HOT, TOT) | J7: (7) Non-Motorized Elements (Sidewalks, Trails, Bike Lanes)
A8: (3) General Purpose Roadway Capacity | J8: (8) Walls (Sound Barrier, Retaining)
A9: (4) Interchanges and Grade Sepearations | J9: (9) Intelligent Transportation Systems (ITS)
A10: (5) Intersection Improvements | J10: (10) Right-of-Way Acquisition
A12: The tool provides an approximate cost for a project based on standard and customary elements typically assumed in engineering. Costs are based upon recent lettings for similar projects and are updated on a quarterly basis. These cost estimates should be regarded as planning-level and preliminary in nature. Variations from actual project costs will result from additional factors such as design exceptions, value engineering, utility relocation, and environmental impacts. As projects move forward in the project development process, emerging details will support the refinement of these costs.
C14: Contact info: | E14: Mr. Dahshi Marshall
E15: 404-463-3131
E16: DMarshall@atlantaregional.com
A19: © 2010 Atlanta Regional Commission
A20: DUE TO THEIR CONCEPTUAL NATURE, COST ESTIMATES ARE PRELIMINARY AND SUBJECT TO CHANGE

Sheet ProjectInformation
A1: ATLANTA REGIONAL COMMISSION
A2: PLANNING LEVEL COST ESTIMATION TOOL
A3: Project Information Page
A4: On this page, the user is required to enter the general information of the project, including project name, ID, From/To limit, County and Area Type.
A6: Project Name: | D6: ARC Project ID/GDOT PI Number: | F6: (if applicable)
A8: From Limit: | D8: To Limit:
A10: County: | B10: Hall | D10: Area (Urban/Rural):
A11: Please choose the County from the drop-down list above.
A12: PLEASE CHECK ALL ELEMENTS THAT ARE INCLUDED IN THIS PROJECT
B14: Freeway Widening | E14: Bridges
B15: Managed Lanes (HOV, HOT, TOT) | E15: Non-Motorized Elements (Sidewalks, Trails, Bike Lanes)
B16: General Purpose Roadway Capacity | E16: Walls (Noise, Retaining)
B17: Interchanges & Grade Separations | E17: Intelligent Transportation Systems (ITS)
B18: Intersection Improvements | E18: Right-of-Way Acquisition
A100: =ROWDatabase!B6 -> Barrow
A101: =ROWDatabase!B7 -> Bartow
A102: =ROWDatabase!B8 -> Carroll
A103: =ROWDatabase!B9 -> Cherokee
A104: =ROWDatabase!B10 -> Clayton
A105: =ROWDatabase!B11 -> Cobb
A106: =ROWDatabase!B12 -> Coweta
A107: =ROWDatabase!B13 -> DeKalb
A108: =ROWDatabase!B14 -> Douglas
A109: =ROWDatabase!B15 -> Fayette
A110: =ROWDatabase!B16 -> Forsyth
A111: =ROWDatabase!B17 -> Fulton - North
A112: =ROWDatabase!B18 -> Fulton - City of Atlanta
A113: =ROWDatabase!B19 -> Fulton - South
A114: =ROWDatabase!B20 -> Gwinnett
A115: =ROWDatabase!B21 -> Hall
A116: =ROWDatabase!B22 -> Henry
A117: =ROWDatabase!B23 -> Newton
A118: =ROWDatabase!B24 -> Paulding
A119: =ROWDatabase!B25 -> Rockdale
A120: =ROWDatabase!B26 -> Spalding
A121: =ROWDatabase!B27 -> Walton

Sheet Freeway
A1: ATLANTA REGIONAL COMMISSION | J1: =INDEX(ReverseOrder,J3) -> 
A2: PLANNING LEVEL COST ESTIMATION TOOL | J2: =MID(CELL("filename",A1),FIND("]",CELL("filename",A1))+1,LEN(CELL("filename",A1))-FIND("]",CELL("filename",A1))) -> Freeway
A3: Freeway Widening | J3: =MATCH(J2,ReverseOrder,0)+1 -> 
A5: Project Name: | B5: =ProjectInformation!B6 -> 0 | F5: ARC Project ID: | G5: =ProjectInformation!E6 -> 0
A6: From Limit: | B6: =ProjectInformation!B8 -> 0 | F6: To Limit: | G6: =ProjectInformation!E8 -> 0
A7: County: | B7: =ProjectInformation!B10 -> Hall | F7: Area: | G7: =ProjectInformation!E10 -> 0
A9: Please choose the type of Freeway Widening in the following drop-down list.
A10: Freeway Widening Type | B10: N/A
B11: =B10 & " " &G7 -> N/A 0
A13: Enter length of project and number of lanes in each direction before construction (No Build Condition) and after construction (Build Condition).
B14: No Build Condition | C14: Build Condition | G14: Length (Mile)
A15: Number of Lanes in each Dir. | B15: 0 | C15: 0 | G15: 0
A17: You can use default per lane-mile cost or enter projects specific components for cost estimation. Please select one of the options in the cell highlighted in green below.
B18: Make Selection Below | C18: =IF(FreewayDefault="Use default per mile cost", "Default Unit Cost is", "") -> Default Unit Cost is | G18: Total Freeway Widening Cost
B19: Use default per mile cost | C19: =IF(fr_type_area=$C$53,UnitCostSpreadsheet!E5,IF(fr_type_area=$C$54,UnitCostSpreadsheet!E6,IF(fr_type_area=$C$56,UnitCostSpreadsheet!E8,IF(fr_type_area=$C$57,UnitCostSpreadsheet!E9,UnitCostSpreadsheet!E4))))*I19 -> 0 | G19: =IF(FreewayDefault="Use default per mile cost",C19*(C15-B15)*G15,G45*(C15-B15)*G15) -> 0 | I19: =IF(FreewayDefault="Use default per mile cost",1,0) -> 1
A23: The following table provides the detailed information (specific components, cost/unit and quantities) used to develop the default per mile unit cost. If you wish to customize the default unit cost estimates, please revise specific components, unit costs and quantities in the override cells shaded in yellow. Please note that the tool will add markups to the overall project cost. Adjust percentages as appropriate.
A25: Specific Components | B25: Specific Components Override | C25: Cost/Unit | D25: Cost/Unit Override | E25: Quantity | F25: Quantity Override | G25: Costs
A26: =IF(fr_type_area=$C$53,Calculations!A43,IF(fr_type_area=$C$54,Calculations!E43,IF(fr_type_area=$C$56,Calculations!J43,(IF(fr_type_area=$C$57,Calculations!N43))))) -> FALSE | C26: =IF(fr_type_area=$C$53,Calculations!B43,IF(fr_type_area=$C$54,Calculations!F43,IF(fr_type_area=$C$56,Calculations!K43,(IF(fr_type_area=$C$57,Calculations!O43))))) -> FALSE | E26: =IF(fr_type_area=$C$53,Calculations!C43,IF(fr_type_area=$C$54,Calculations!G43,IF(fr_type_area=$C$56,Calculations!L43,(IF(fr_type_area=$C$57,Calculations!P43))))) -> FALSE | G26: =IF(AND(D26>0,F26>0)=TRUE,D26*F26,IF(D26>0,D26*E26,IF(F26>0,F26*C26,C26*E26))) -> 0
A27: =IF(fr_type_area=$C$53,Calculations!A44,IF(fr_type_area=$C$54,Calculations!E44,IF(fr_type_area=$C$56,Calculations!J44,(IF(fr_type_area=$C$57,Calculations!N44))))) -> FALSE | C27: =IF(fr_type_area=$C$53,Calculations!B44,IF(fr_type_area=$C$54,Calculations!F44,IF(fr_type_area=$C$56,Calculations!K44,(IF(fr_type_area=$C$57,Calculations!O44))))) -> FALSE | E27: =IF(fr_type_area=$C$53,Calculations!C44,IF(fr_type_area=$C$54,Calculations!G44,IF(fr_type_area=$C$56,Calculations!L44,(IF(fr_type_area=$C$57,Calculations!P44))))) -> FALSE | G27: =IF(AND(D27>0,F27>0)=TRUE,D27*F27,IF(D27>0,D27*E27,IF(F27>0,F27*C27,C27*E27))) -> 0
A28: =IF(fr_type_area=$C$53,Calculations!A45,IF(fr_type_area=$C$54,Calculations!E45,IF(fr_type_area=$C$56,Calculations!J45,(IF(fr_type_area=$C$57,Calculations!N45))))) -> FALSE | C28: =IF(fr_type_area=$C$53,Calculations!B45,IF(fr_type_area=$C$54,Calculations!F45,IF(fr_type_area=$C$56,Calculations!K45,(IF(fr_type_area=$C$57,Calculations!O45))))) -> FALSE | E28: =IF(fr_type_area=$C$53,Calculations!C45,IF(fr_type_area=$C$54,Calculations!G45,IF(fr_type_area=$C$56,Calculations!L45,(IF(fr_type_area=$C$57,Calculations!P45))))) -> FALSE | G28: 0
A29: =IF(fr_type_area=$C$53,Calculations!A46,IF(fr_type_area=$C$54,Calculations!E46,IF(fr_type_area=$C$56,Calculations!J46,(IF(fr_type_area=$C$57,Calculations!N46))))) -> FALSE | C29: =IF(fr_type_area=$C$53,Calculations!B46,IF(fr_type_area=$C$54,Calculations!F46,IF(fr_type_area=$C$56,Calculations!K46,(IF(fr_type_area=$C$57,Calculations!O46))))) -> FALSE | E29: =IF(fr_type_area=$C$53,Calculations!C46,IF(fr_type_area=$C$54,Calculations!G46,IF(fr_type_area=$C$56,Calculations!L46,(IF(fr_type_area=$C$57,Calculations!P46))))) -> FALSE | G29: 0
A30: =IF(fr_type_area=$C$53,Calculations!A47,IF(fr_type_area=$C$54,Calculations!E47,IF(fr_type_area=$C$56,Calculations!J47,(IF(fr_type_area=$C$57,Calculations!N47))))) -> FALSE | C30: =IF(fr_type_area=$C$53,Calculations!B47,IF(fr_type_area=$C$54,Calculations!F47,IF(fr_type_area=$C$56,Calculations!K47,(IF(fr_type_area=$C$57,Calculations!O47))))) -> FALSE | E30: =IF(fr_type_area=$C$53,Calculations!C47,IF(fr_type_area=$C$54,Calculations!G47,IF(fr_type_area=$C$56,Calculations!L47,(IF(fr_type_area=$C$57,Calculations!P47))))) -> FALSE | G30: 0
A31: =IF(fr_type_area=$C$53,Calculations!A48,IF(fr_type_area=$C$54,Calculations!E48,IF(fr_type_area=$C$56,Calculations!J48,(IF(fr_type_area=$C$57,Calculations!N48))))) -> FALSE | C31: =IF(fr_type_area=$C$53,Calculations!B48,IF(fr_type_area=$C$54,Calculations!F48,IF(fr_type_area=$C$56,Calculations!K48,(IF(fr_type_area=$C$57,Calculations!O48))))) -> FALSE | E31: =IF(fr_type_area=$C$53,Calculations!C48,IF(fr_type_area=$C$54,Calculations!G48,IF(fr_type_area=$C$56,Calculations!L48,(IF(fr_type_area=$C$57,Calculations!P48))))) -> FALSE | G31: 0
A32: =IF(fr_type_area=$C$53,Calculations!A49,IF(fr_type_area=$C$54,Calculations!E49,IF(fr_type_area=$C$56,Calculations!J49,(IF(fr_type_area=$C$57,Calculations!N49))))) -> FALSE | C32: =IF(fr_type_area=$C$53,Calculations!B49,IF(fr_type_area=$C$54,Calculations!F49,IF(fr_type_area=$C$56,Calculations!K49,(IF(fr_type_area=$C$57,Calculations!O49))))) -> FALSE | E32: =IF(fr_type_area=$C$53,Calculations!C49,IF(fr_type_area=$C$54,Calculations!G49,IF(fr_type_area=$C$56,Calculations!L49,(IF(fr_type_area=$C$57,Calculations!P49))))) -> FALSE | G32: 0
A33: =IF(fr_type_area=$C$53,Calculations!A50,IF(fr_type_area=$C$54,Calculations!E50,IF(fr_type_area=$C$56,Calculations!J50,(IF(fr_type_area=$C$57,Calculations!N50))))) -> FALSE | C33: =IF(fr_type_area=$C$53,Calculations!B50,IF(fr_type_area=$C$54,Calculations!F50,IF(fr_type_area=$C$56,Calculations!K50,(IF(fr_type_area=$C$57,Calculations!O50))))) -> FALSE | E33: =IF(fr_type_area=$C$53,Calculations!C50,IF(fr_type_area=$C$54,Calculations!G50,IF(fr_type_area=$C$56,Calculations!L50,(IF(fr_type_area=$C$57,Calculations!P50))))) -> FALSE | G33: 0
A34: =IF(fr_type_area=$C$53,Calculations!A51,IF(fr_type_area=$C$54,Calculations!E51,IF(fr_type_area=$C$56,Calculations!J51,(IF(fr_type_area=$C$57,Calculations!N51))))) -> FALSE | C34: =IF(fr_type_area=$C$53,Calculations!B51,IF(fr_type_area=$C$54,Calculations!F51,IF(fr_type_area=$C$56,Calculations!K51,(IF(fr_type_area=$C$57,Calculations!O51))))) -> FALSE | E34: =IF(fr_type_area=$C$53,Calculations!C51,IF(fr_type_area=$C$54,Calculations!G51,IF(fr_type_area=$C$56,Calculations!L51,(IF(fr_type_area=$C$57,Calculations!P51))))) -> FALSE | G34: 0
A35: =IF(fr_type_area=$C$53,Calculations!A52,IF(fr_type_area=$C$54,Calculations!E52,IF(fr_type_area=$C$56,Calculations!J52,(IF(fr_type_area=$C$57,Calculations!N52))))) -> FALSE | C35: =IF(fr_type_area=$C$53,Calculations!B52,IF(fr_type_area=$C$54,Calculations!F52,IF(fr_type_area=$C$56,Calculations!K52,(IF(fr_type_area=$C$57,Calculations!O52))))) -> FALSE | E35: =IF(fr_type_area=$C$53,Calculations!C52,IF(fr_type_area=$C$54,Calculations!G52,IF(fr_type_area=$C$56,Calculations!L52,(IF(fr_type_area=$C$57,Calculations!P52))))) -> FALSE | G35: 0
A36: Subtotal = | G36: =SUM(G26:G35) -> 0
A37: Mark-up Items | C37: Default Percentage | E37: Override Percentage | G37: Costs
A38: =IF(fr_type_area=$C$53,Calculations!A54,IF(fr_type_area=$C$54,Calculations!E54,IF(fr_type_area=$C$56,Calculations!J54,(IF(fr_type_area=$C$57,Calculations!N54))))) -> FALSE | C38: =IF(fr_type_area=$C$53,Calculations!B54,IF(fr_type_area=$C$54,Calculations!F54,IF(fr_type_area=$C$56,Calculations!K54,(IF(fr_type_area=$C$57,Calculations!O54))))) -> FALSE | G38: =IF(E38>0, E38*$G$36, C38*$G$36) -> 0
A39: =IF(fr_type_area=$C$53,Calculations!A55,IF(fr_type_area=$C$54,Calculations!E55,IF(fr_type_area=$C$56,Calculations!J55,(IF(fr_type_area=$C$57,Calculations!N55))))) -> FALSE | C39: =IF(fr_type_area=$C$53,Calculations!B55,IF(fr_type_area=$C$54,Calculations!F55,IF(fr_type_area=$C$56,Calculations!K55,(IF(fr_type_area=$C$57,Calculations!O55))))) -> FALSE | G39: 0
A40: =IF(fr_type_area=$C$53,Calculations!A56,IF(fr_type_area=$C$54,Calculations!E56,IF(fr_type_area=$C$56,Calculations!J56,(IF(fr_type_area=$C$57,Calculations!N56))))) -> FALSE | C40: =IF(fr_type_area=$C$53,Calculations!B56,IF(fr_type_area=$C$54,Calculations!F56,IF(fr_type_area=$C$56,Calculations!K56,(IF(fr_type_area=$C$57,Calculations!O56))))) -> FALSE | G40: 0
A41: =IF(fr_type_area=$C$53,Calculations!A57,IF(fr_type_area=$C$54,Calculations!E57,IF(fr_type_area=$C$56,Calculations!J57,(IF(fr_type_area=$C$57,Calculations!N57))))) -> FALSE | C41: =IF(fr_type_area=$C$53,Calculations!B57,IF(fr_type_area=$C$54,Calculations!F57,IF(fr_type_area=$C$56,Calculations!K57,(IF(fr_type_area=$C$57,Calculations!O57))))) -> FALSE | G41: 0
A42: =IF(fr_type_area=$C$53,Calculations!A58,IF(fr_type_area=$C$54,Calculations!E58,IF(fr_type_area=$C$56,Calculations!J58,(IF(fr_type_area=$C$57,Calculations!N58))))) -> FALSE | C42: =IF(fr_type_area=$C$53,Calculations!B58,IF(fr_type_area=$C$54,Calculations!F58,IF(fr_type_area=$C$56,Calculations!K58,(IF(fr_type_area=$C$57,Calculations!O58))))) -> FALSE | G42: 0
A43: =IF(fr_type_area=$C$53,Calculations!A59,IF(fr_type_area=$C$54,Calculations!E59,IF(fr_type_area=$C$56,Calculations!J59,(IF(fr_type_area=$C$57,Calculations!N59))))) -> FALSE | C43: =IF(fr_type_area=$C$53,Calculations!B59,IF(fr_type_area=$C$54,Calculations!F59,IF(fr_type_area=$C$56,Calculations!K59,(IF(fr_type_area=$C$57,Calculations!O59))))) -> FALSE | G43: 0
A44: =IF(fr_type_area=$C$53,Calculations!A60,IF(fr_type_area=$C$54,Calculations!E60,IF(fr_type_area=$C$56,Calculations!J60,(IF(fr_type_area=$C$57,Calculations!N60))))) -> FALSE | C44: =IF(fr_type_area=$C$53,Calculations!B60,IF(fr_type_area=$C$54,Calculations!F60,IF(fr_type_area=$C$56,Calculations!K60,(IF(fr_type_area=$C$57,Calculations!O60))))) -> FALSE | G44: 0
A45: Sum = | G45: =ROUND(SUM(G38:G44)+G36,-3) -> 0
A47: =I47 -> 0 | B47: =J47 -> 0 | C47: =K47 -> 0
A51: List of Project Type | B51: Area Type | C51: Project Type + Urban Type
A52: =UnitCostSpreadsheet!B4 -> N/A | B52: =UnitCostSpreadsheet!C4 -> Urban | C52: =UnitCostSpreadsheet!D4 -> N/A Urban
A53: =UnitCostSpreadsheet!B5 -> Interstate Widening - Asphalt | B53: =UnitCostSpreadsheet!C5 -> Urban | C53: =UnitCostSpreadsheet!D5 -> Interstate Widening - Asphalt Urban
A54: =UnitCostSpreadsheet!B6 -> Interstate Widening - Concrete | B54: =UnitCostSpreadsheet!C6 -> Urban | C54: =UnitCostSpreadsheet!D6 -> Interstate Widening - Concrete Urban
B55: =UnitCostSpreadsheet!C7 -> Rural | C55: =UnitCostSpreadsheet!D7 -> N/ARural
B56: =UnitCostSpreadsheet!C8 -> Rural | C56: =UnitCostSpreadsheet!D8 -> Interstate Widening - Asphalt Rural
B57: =UnitCostSpreadsheet!C9 -> Rural | C57: =UnitCostSpreadsheet!D9 -> Interstate Widening - Concrete Rural

Sheet ManagedLanes
A1: ATLANTA REGIONAL COMMISSION | J1: =INDEX(ReverseOrder,J3) -> 
A2: PLANNING LEVEL COST ESTIMATION TOOL | J2: =MID(CELL("filename",A1),FIND("]",CELL("filename",A1))+1,LEN(CELL("filename",A1))-FIND("]",CELL("filename",A1))) -> ManagedLanes
A3: Managed Lanes (HOV, HOT, TOT) | J3: =MATCH(J2,ReverseOrder,0)+1 -> 
A5: Project Name: | B5: =ProjectInformation!B6 -> 0 | F5: ARC Project ID: | G5: =ProjectInformation!E6 -> 0
A6: From Limit: | B6: =ProjectInformation!B8 -> 0 | F6: To Limit: | G6: =ProjectInformation!E8 -> 0
A7: County: | B7: =ProjectInformation!B10 -> Hall | F7: Area: | G7: =ProjectInformation!E10 -> 0
A9: Please choose the type of managed lane in the following drop-down list.
A10: Managed Lane Type | B10: N/A
A13: Enter length of project and number of managed lanes in each direction before construction (No Build Condition) and after construction (Build Condition).
B14: No Build Condition | C14: Build Condition | G14: Length (Mile)
A15: Managed Lanes in each Dir. | B15: 0 | C15: 0 | G15: 0
A17: You can use default per lane-mile cost or enter projects specific components for cost estimation. Please select one of the options in the cell highlighted in green below.
B18: Make Selection Below | C18: =IF(MLDefault="Use default per mile cost", "Default Unit Cost is", "") -> Default Unit Cost is | G18: Total Managed Lane Cost
B19: Use default per mile cost | C19: =IF(ml_type=$C$52,UnitCostSpreadsheet!E11,IF(ml_type=$C$53,UnitCostSpreadsheet!E12,IF(ml_type=$C$54,UnitCostSpreadsheet!E13,IF(ml_type=$C$55,UnitCostSpreadsheet!E14,UnitCostSpreadsheet!E10))))*I19 -> 0 | G19: =IF(MLDefault="Use default per mile cost",C19*(C15-B15)*G15,F45*(C15-B15)*G15) -> 0 | I19: =IF(MLDefault="Use default per mile cost",1,0) -> 1
A23: The following table provides the detailed information (specific components, cost/unit and quantities) used to develop the default per mile unit cost. If you wish to customize the default unit cost estimates, please revise specific components, unit costs and quantities in the override cells shaded in yellow. Please note that the tool will add markups to the overall project cost. Adjust percentages as appropriate.
A25: Specific Components | B25: Specific Components Override | C25: Cost/Unit | D25: Cost/Unit Override | E25: Quantity | F25: Quantity Override | G25: Costs
A26: =IF(ml_type=$C$52,Calculations!A76,IF(ml_type=$C$53,Calculations!E76,IF(ml_type=$C$54,Calculations!I76,IF(ml_type=$C$55,Calculations!M76)))) -> FALSE | C26: =IF(ml_type=$C$52,Calculations!B76,IF(ml_type=$C$53,Calculations!F76,IF(ml_type=$C$54,Calculations!J76,IF(ml_type=$C$55,Calculations!N76)))) -> FALSE | E26: =IF(ml_type=$C$52,Calculations!C76,IF(ml_type=$C$53,Calculations!G76,IF(ml_type=$C$54,Calculations!K76,IF(ml_type=$C$55,Calculations!O76)))) -> FALSE | G26: =IF(AND(D26>0,F26>0)=TRUE,D26*F26,IF(D26>0,D26*E26,IF(F26>0,F26*C26,C26*E26))) -> 0
A27: =IF(ml_type=$C$52,Calculations!A77,IF(ml_type=$C$53,Calculations!E77,IF(ml_type=$C$54,Calculations!I77,IF(ml_type=$C$55,Calculations!M77)))) -> FALSE | C27: =IF(ml_type=$C$52,Calculations!B77,IF(ml_type=$C$53,Calculations!F77,IF(ml_type=$C$54,Calculations!J77,IF(ml_type=$C$55,Calculations!N77)))) -> FALSE | E27: =IF(ml_type=$C$52,Calculations!C77,IF(ml_type=$C$53,Calculations!G77,IF(ml_type=$C$54,Calculations!K77,IF(ml_type=$C$55,Calculations!O77)))) -> FALSE | G27: =IF(AND(D27>0,F27>0)=TRUE,D27*F27,IF(D27>0,D27*E27,IF(F27>0,F27*C27,C27*E27))) -> 0
A28: =IF(ml_type=$C$52,Calculations!A78,IF(ml_type=$C$53,Calculations!E78,IF(ml_type=$C$54,Calculations!I78,IF(ml_type=$C$55,Calculations!M78)))) -> FALSE | C28: =IF(ml_type=$C$52,Calculations!B78,IF(ml_type=$C$53,Calculations!F78,IF(ml_type=$C$54,Calculations!J78,IF(ml_type=$C$55,Calculations!N78)))) -> FALSE | E28: =IF(ml_type=$C$52,Calculations!C78,IF(ml_type=$C$53,Calculations!G78,IF(ml_type=$C$54,Calculations!K78,IF(ml_type=$C$55,Calculations!O78)))) -> FALSE | G28: 0
A29: =IF(ml_type=$C$52,Calculations!A79,IF(ml_type=$C$53,Calculations!E79,IF(ml_type=$C$54,Calculations!I79,IF(ml_type=$C$55,Calculations!M79)))) -> FALSE | C29: =IF(ml_type=$C$52,Calculations!B79,IF(ml_type=$C$53,Calculations!F79,IF(ml_type=$C$54,Calculations!J79,IF(ml_type=$C$55,Calculations!N79)))) -> FALSE | E29: =IF(ml_type=$C$52,Calculations!C79,IF(ml_type=$C$53,Calculations!G79,IF(ml_type=$C$54,Calculations!K79,IF(ml_type=$C$55,Calculations!O79)))) -> FALSE | G29: 0
A30: =IF(ml_type=$C$52,Calculations!A80,IF(ml_type=$C$53,Calculations!E80,IF(ml_type=$C$54,Calculations!I80,IF(ml_type=$C$55,Calculations!M80)))) -> FALSE | C30: =IF(ml_type=$C$52,Calculations!B80,IF(ml_type=$C$53,Calculations!F80,IF(ml_type=$C$54,Calculations!J80,IF(ml_type=$C$55,Calculations!N80)))) -> FALSE | E30: =IF(ml_type=$C$52,Calculations!C80,IF(ml_type=$C$53,Calculations!G80,IF(ml_type=$C$54,Calculations!K80,IF(ml_type=$C$55,Calculations!O80)))) -> FALSE | G30: 0
A31: =IF(ml_type=$C$52,Calculations!A81,IF(ml_type=$C$53,Calculations!E81,IF(ml_type=$C$54,Calculations!I81,IF(ml_type=$C$55,Calculations!M81)))) -> FALSE | C31: =IF(ml_type=$C$52,Calculations!B81,IF(ml_type=$C$53,Calculations!F81,IF(ml_type=$C$54,Calculations!J81,IF(ml_type=$C$55,Calculations!N81)))) -> FALSE | E31: =IF(ml_type=$C$52,Calculations!C81,IF(ml_type=$C$53,Calculations!G81,IF(ml_type=$C$54,Calculations!K81,IF(ml_type=$C$55,Calculations!O81)))) -> FALSE | G31: 0
A32: =IF(ml_type=$C$52,Calculations!A82,IF(ml_type=$C$53,Calculations!E82,IF(ml_type=$C$54,Calculations!I82,IF(ml_type=$C$55,Calculations!M82)))) -> FALSE | C32: =IF(ml_type=$C$52,Calculations!B82,IF(ml_type=$C$53,Calculations!F82,IF(ml_type=$C$54,Calculations!J82,IF(ml_type=$C$55,Calculations!N82)))) -> FALSE | E32: =IF(ml_type=$C$52,Calculations!C82,IF(ml_type=$C$53,Calculations!G82,IF(ml_type=$C$54,Calculations!K82,IF(ml_type=$C$55,Calculations!O82)))) -> FALSE | G32: 0
A33: =IF(ml_type=$C$52,Calculations!A83,IF(ml_type=$C$53,Calculations!E83,IF(ml_type=$C$54,Calculations!I83,IF(ml_type=$C$55,Calculations!M83)))) -> FALSE | C33: =IF(ml_type=$C$52,Calculations!B83,IF(ml_type=$C$53,Calculations!F83,IF(ml_type=$C$54,Calculations!J83,IF(ml_type=$C$55,Calculations!N83)))) -> FALSE | E33: =IF(ml_type=$C$52,Calculations!C83,IF(ml_type=$C$53,Calculations!G83,IF(ml_type=$C$54,Calculations!K83,IF(ml_type=$C$55,Calculations!O83)))) -> FALSE | G33: 0
A34: =IF(ml_type=$C$52,Calculations!A84,IF(ml_type=$C$53,Calculations!E84,IF(ml_type=$C$54,Calculations!I84,IF(ml_type=$C$55,Calculations!M84)))) -> FALSE | C34: =IF(ml_type=$C$52,Calculations!B84,IF(ml_type=$C$53,Calculations!F84,IF(ml_type=$C$54,Calculations!J84,IF(ml_type=$C$55,Calculations!N84)))) -> FALSE | E34: =IF(ml_type=$C$52,Calculations!C84,IF(ml_type=$C$53,Calculations!G84,IF(ml_type=$C$54,Calculations!K84,IF(ml_type=$C$55,Calculations!O84)))) -> FALSE | G34: 0
A35: =IF(ml_type=$C$52,Calculations!A85,IF(ml_type=$C$53,Calculations!E85,IF(ml_type=$C$54,Calculations!I85,IF(ml_type=$C$55,Calculations!M85)))) -> FALSE | C35: =IF(ml_type=$C$52,Calculations!B85,IF(ml_type=$C$53,Calculations!F85,IF(ml_type=$C$54,Calculations!J85,IF(ml_type=$C$55,Calculations!N85)))) -> FALSE | E35: =IF(ml_type=$C$52,Calculations!C85,IF(ml_type=$C$53,Calculations!G85,IF(ml_type=$C$54,Calculations!K85,IF(ml_type=$C$55,Calculations!O85)))) -> FALSE | G35: 0
A36: Subtotal = | F36: =SUM(G26:G35) -> 0 | G36: =SUM(G26:G35) -> 0
A37: Mark-up Items | C37: Default Percentage | E37: Override Percentage | G37: Costs
A38: =IF(ml_type=$C$52,Calculations!A87,IF(ml_type=$C$53,Calculations!E87,IF(ml_type=$C$54,Calculations!I87,IF(ml_type=$C$55,Calculations!M87)))) -> FALSE | C38: =IF(ml_type=$C$52,Calculations!B87,IF(ml_type=$C$53,Calculations!F87,IF(ml_type=$C$54,Calculations!J87,IF(ml_type=$C$55,Calculations!N87)))) -> FALSE | G38: =IF(E38>0, E38*$F$36, C38*$F$36) -> 0
A39: =IF(ml_type=$C$52,Calculations!A88,IF(ml_type=$C$53,Calculations!E88,IF(ml_type=$C$54,Calculations!I88,IF(ml_type=$C$55,Calculations!M88)))) -> FALSE | C39: =IF(ml_type=$C$52,Calculations!B88,IF(ml_type=$C$53,Calculations!F88,IF(ml_type=$C$54,Calculations!J88,IF(ml_type=$C$55,Calculations!N88)))) -> FALSE | G39: 0
A40: =IF(ml_type=$C$52,Calculations!A89,IF(ml_type=$C$53,Calculations!E89,IF(ml_type=$C$54,Calculations!I89,IF(ml_type=$C$55,Calculations!M89)))) -> FALSE | C40: =IF(ml_type=$C$52,Calculations!B89,IF(ml_type=$C$53,Calculations!F89,IF(ml_type=$C$54,Calculations!J89,IF(ml_type=$C$55,Calculations!N89)))) -> FALSE | G40: 0
A41: =IF(ml_type=$C$52,Calculations!A90,IF(ml_type=$C$53,Calculations!E90,IF(ml_type=$C$54,Calculations!I90,IF(ml_type=$C$55,Calculations!M90)))) -> FALSE | C41: =IF(ml_type=$C$52,Calculations!B90,IF(ml_type=$C$53,Calculations!F90,IF(ml_type=$C$54,Calculations!J90,IF(ml_type=$C$55,Calculations!N90)))) -> FALSE | G41: 0
A42: =IF(ml_type=$C$52,Calculations!A91,IF(ml_type=$C$53,Calculations!E91,IF(ml_type=$C$54,Calculations!I91,IF(ml_type=$C$55,Calculations!M91)))) -> FALSE | C42: =IF(ml_type=$C$52,Calculations!B91,IF(ml_type=$C$53,Calculations!F91,IF(ml_type=$C$54,Calculations!J91,IF(ml_type=$C$55,Calculations!N91)))) -> FALSE | G42: 0
A43: =IF(ml_type=$C$52,Calculations!A92,IF(ml_type=$C$53,Calculations!E92,IF(ml_type=$C$54,Calculations!I92,IF(ml_type=$C$55,Calculations!M92)))) -> FALSE | C43: =IF(ml_type=$C$52,Calculations!B92,IF(ml_type=$C$53,Calculations!F92,IF(ml_type=$C$54,Calculations!J92,IF(ml_type=$C$55,Calculations!N92)))) -> FALSE | G43: 0
A44: =IF(ml_type=$C$52,Calculations!A93,IF(ml_type=$C$53,Calculations!E93,IF(ml_type=$C$54,Calculations!I93,IF(ml_type=$C$55,Calculations!M93)))) -> FALSE | C44: =IF(ml_type=$C$52,Calculations!B93,IF(ml_type=$C$53,Calculations!F93,IF(ml_type=$C$54,Calculations!J93,IF(ml_type=$C$55,Calculations!N93)))) -> FALSE | G44: 0
A45: Sum = | F45: =ROUND(SUM(G38:G44)+F36,-3) -> 0 | G45: =ROUND(SUM(G38:G44)+G36,-3) -> 0
A47: =I47 -> 0 | B47: =J47 -> 0 | C47: =K47 -> 0
A50: List of Project Type | B50: Area Type | C50: Project Type + Urban Type
A51: =UnitCostSpreadsheet!B10 -> N/A | B51: =UnitCostSpreadsheet!C10 -> 0 | C51: =UnitCostSpreadsheet!D10 -> N/A
A52: =UnitCostSpreadsheet!B11 -> Managed Lane Buffer Separated - Asphalt | B52: =UnitCostSpreadsheet!C11 -> 0 | C52: =UnitCostSpreadsheet!D11 -> Managed Lane Buffer Separated - Asphalt
A53: =UnitCostSpreadsheet!B12 -> Managed Lane Buffer Separated - Concrete | B53: =UnitCostSpreadsheet!C12 -> 0 | C53: =UnitCostSpreadsheet!D12 -> Managed Lane Buffer Separated - Concrete
A54: =UnitCostSpreadsheet!B13 -> Managed Lane Barrier Separated - Asphalt | B54: =UnitCostSpreadsheet!C13 -> 0 | C54: =UnitCostSpreadsheet!D13 -> Managed Lane Barrier Separated - Asphalt
A55: =UnitCostSpreadsheet!B14 -> Managed Lane Barrier Separated - Concrete | B55: =UnitCostSpreadsheet!C14 -> 0 | C55: =UnitCostSpreadsheet!D14 -> Managed Lane Barrier Separated - Concrete

Sheet GPRoadway
A1: ATLANTA REGIONAL COMMISSION | J1: =INDEX(ReverseOrder,J3) -> 
A2: PLANNING LEVEL COST ESTIMATION TOOL | J2: =MID(CELL("filename",A1),FIND("]",CELL("filename",A1))+1,LEN(CELL("filename",A1))-FIND("]",CELL("filename",A1))) -> GPRoadway
A3: General Purpose Roadway Capacity | J3: =MATCH(J2,ReverseOrder,0)+1 -> 
A5: Project Name: | B5: =ProjectInformation!B6 -> 0 | F5: ARC Project ID: | G5: =ProjectInformation!E6 -> 0
A6: From Limit: | B6: =ProjectInformation!B8 -> 0 | F6: To Limit: | G6: =ProjectInformation!E8 -> 0
A7: County: | B7: =ProjectInformation!B10 -> Hall | F7: Area: | G7: =ProjectInformation!E10 -> 0
A9: Please choose General Purpose Roadway Capacity type in the following drop-down list.
A11: General Purpose Roadway Types | B11: N/A
B12: =B11 & " " &G7 -> N/A 0
A14: Enter length of project and number of lanes in each direction before construction (No Build Condition) and after construction (Build Condition).
B16: No Build Condition | C16: Build Condition | G16: Length (Mile)
A17: Number of Lanes in each Dir. | B17: 0 | C17: 0 | G17: 0
A19: You can use default per lane-mile cost or enter projects specific components for cost estimation. Please select one of the options in the cell highlighted in green below.
B20: Make Selection Below | C20: =IF(SurStreetDefault="Use default per mile cost", "Default Unit Cost is", "") -> Default Unit Cost is | G20: Total General Purpose Roadway Capacity Cost
B21: Use default per mile cost | C21: =IF(ss_type_area=$C$53,UnitCostSpreadsheet!E16,IF(ss_type_area=$C$54,UnitCostSpreadsheet!E17,IF(ss_type_area=$C$55,UnitCostSpreadsheet!E18,IF(ss_type_area=$C$56,UnitCostSpreadsheet!E19,IF(ss_type_area=$C$58,UnitCostSpreadsheet!E21,IF(ss_type_area=$C$59,UnitCostSpreadsheet!E22,IF(ss_type_area=$C$60,UnitCostSpreadsheet!E23,IF(ss_type_area=$C$61,UnitCostSpreadsheet!E24,UnitCostSpreadsheet!E15))))))))*I21 -> 0 | G21: =IF(SurStreetDefault="Use default per mile cost",C21*(C17-B17)*G17,F45*(C17-B17)*G17) -> 0 | I21: =IF(SurStreetDefault="Use default per mile cost",1,0) -> 1
A23: The following table provides the detailed information (specific components, cost/unit and quantities) used to develop the default per mile unit cost. If you wish to customize the default unit cost estimates, please revise specific components, unit costs and quantities in the override cells shaded in yellow. Please note that the tool will add markups to the overall project cost. Adjust percentages as appropriate.
A25: Specific Components | B25: Specific Components Override | C25: Cost/Unit | D25: Cost/Unit Override | E25: Quantity | F25: Quantity Override | G25: Costs
A26: =IF(ss_type_area=$C$53,Calculations!A109,IF(ss_type_area=$C$54,Calculations!E109,IF(ss_type_area=$C$55,Calculations!I109,IF(ss_type_area=$C$56,Calculations!M109,IF(ss_type_area=$C$58,Calculations!A141,IF(ss_type_area=$C$59,Calculations!E141,IF(ss_type_area=$C$60,Calculations!I141,IF(ss_type_area=$C$61,Calculations!M141)))))))) -> FALSE | C26: =IF(ss_type_area=$C$53,Calculations!B109,IF(ss_type_area=$C$54,Calculations!F109,IF(ss_type_area=$C$55,Calculations!J109,IF(ss_type_area=$C$56,Calculations!N109,IF(ss_type_area=$C$58,Calculations!B141,IF(ss_type_area=$C$59,Calculations!F141,IF(ss_type_area=$C$60,Calculations!J141,IF(ss_type_area=$C$61,Calculations!N141)))))))) -> FALSE | E26: =IF(ss_type_area=$C$53,Calculations!C109,IF(ss_type_area=$C$54,Calculations!G109,IF(ss_type_area=$C$55,Calculations!K109,IF(ss_type_area=$C$56,Calculations!O109,IF(ss_type_area=$C$58,Calculations!C141,IF(ss_type_area=$C$59,Calculations!G141,IF(ss_type_area=$C$60,Calculations!K141,IF(ss_type_area=$C$61,Calculations!O141)))))))) -> FALSE | G26: =IF(AND(D26>0,F26>0)=TRUE,D26*F26,IF(D26>0,D26*E26,IF(F26>0,F26*C26,C26*E26))) -> 0
A27: =IF(ss_type_area=$C$53,Calculations!A110,IF(ss_type_area=$C$54,Calculations!E110,IF(ss_type_area=$C$55,Calculations!I110,IF(ss_type_area=$C$56,Calculations!M110,IF(ss_type_area=$C$58,Calculations!A142,IF(ss_type_area=$C$59,Calculations!E142,IF(ss_type_area=$C$60,Calculations!I142,IF(ss_type_area=$C$61,Calculations!M142)))))))) -> FALSE | C27: =IF(ss_type_area=$C$53,Calculations!B110,IF(ss_type_area=$C$54,Calculations!F110,IF(ss_type_area=$C$55,Calculations!J110,IF(ss_type_area=$C$56,Calculations!N110,IF(ss_type_area=$C$58,Calculations!B142,IF(ss_type_area=$C$59,Calculations!F142,IF(ss_type_area=$C$60,Calculations!J142,IF(ss_type_area=$C$61,Calculations!N142)))))))) -> FALSE | E27: =IF(ss_type_area=$C$53,Calculations!C110,IF(ss_type_area=$C$54,Calculations!G110,IF(ss_type_area=$C$55,Calculations!K110,IF(ss_type_area=$C$56,Calculations!O110,IF(ss_type_area=$C$58,Calculations!C142,IF(ss_type_area=$C$59,Calculations!G142,IF(ss_type_area=$C$60,Calculations!K142,IF(ss_type_area=$C$61,Calculations!O142)))))))) -> FALSE | G27: =IF(AND(D27>0,F27>0)=TRUE,D27*F27,IF(D27>0,D27*E27,IF(F27>0,F27*C27,C27*E27))) -> 0
A28: =IF(ss_type_area=$C$53,Calculations!A111,IF(ss_type_area=$C$54,Calculations!E111,IF(ss_type_area=$C$55,Calculations!I111,IF(ss_type_area=$C$56,Calculations!M111,IF(ss_type_area=$C$58,Calculations!A143,IF(ss_type_area=$C$59,Calculations!E143,IF(ss_type_area=$C$60,Calculations!I143,IF(ss_type_area=$C$61,Calculations!M143)))))))) -> FALSE | C28: =IF(ss_type_area=$C$53,Calculations!B111,IF(ss_type_area=$C$54,Calculations!F111,IF(ss_type_area=$C$55,Calculations!J111,IF(ss_type_area=$C$56,Calculations!N111,IF(ss_type_area=$C$58,Calculations!B143,IF(ss_type_area=$C$59,Calculations!F143,IF(ss_type_area=$C$60,Calculations!J143,IF(ss_type_area=$C$61,Calculations!N143)))))))) -> FALSE | E28: =IF(ss_type_area=$C$53,Calculations!C111,IF(ss_type_area=$C$54,Calculations!G111,IF(ss_type_area=$C$55,Calculations!K111,IF(ss_type_area=$C$56,Calculations!O111,IF(ss_type_area=$C$58,Calculations!C143,IF(ss_type_area=$C$59,Calculations!G143,IF(ss_type_area=$C$60,Calculations!K143,IF(ss_type_area=$C$61,Calculations!O143)))))))) -> FALSE | G28: 0
A29: =IF(ss_type_area=$C$53,Calculations!A112,IF(ss_type_area=$C$54,Calculations!E112,IF(ss_type_area=$C$55,Calculations!I112,IF(ss_type_area=$C$56,Calculations!M112,IF(ss_type_area=$C$58,Calculations!A144,IF(ss_type_area=$C$59,Calculations!E144,IF(ss_type_area=$C$60,Calculations!I144,IF(ss_type_area=$C$61,Calculations!M144)))))))) -> FALSE | C29: =IF(ss_type_area=$C$53,Calculations!B112,IF(ss_type_area=$C$54,Calculations!F112,IF(ss_type_area=$C$55,Calculations!J112,IF(ss_type_area=$C$56,Calculations!N112,IF(ss_type_area=$C$58,Calculations!B144,IF(ss_type_area=$C$59,Calculations!F144,IF(ss_type_area=$C$60,Calculations!J144,IF(ss_type_area=$C$61,Calculations!N144)))))))) -> FALSE | E29: =IF(ss_type_area=$C$53,Calculations!C112,IF(ss_type_area=$C$54,Calculations!G112,IF(ss_type_area=$C$55,Calculations!K112,IF(ss_type_area=$C$56,Calculations!O112,IF(ss_type_area=$C$58,Calculations!C144,IF(ss_type_area=$C$59,Calculations!G144,IF(ss_type_area=$C$60,Calculations!K144,IF(ss_type_area=$C$61,Calculations!O144)))))))) -> FALSE | G29: 0
A30: =IF(ss_type_area=$C$53,Calculations!A113,IF(ss_type_area=$C$54,Calculations!E113,IF(ss_type_area=$C$55,Calculations!I113,IF(ss_type_area=$C$56,Calculations!M113,IF(ss_type_area=$C$58,Calculations!A145,IF(ss_type_area=$C$59,Calculations!E145,IF(ss_type_area=$C$60,Calculations!I145,IF(ss_type_area=$C$61,Calculations!M145)))))))) -> FALSE | C30: =IF(ss_type_area=$C$53,Calculations!B113,IF(ss_type_area=$C$54,Calculations!F113,IF(ss_type_area=$C$55,Calculations!J113,IF(ss_type_area=$C$56,Calculations!N113,IF(ss_type_area=$C$58,Calculations!B145,IF(ss_type_area=$C$59,Calculations!F145,IF(ss_type_area=$C$60,Calculations!J145,IF(ss_type_area=$C$61,Calculations!N145)))))))) -> FALSE | E30: =IF(ss_type_area=$C$53,Calculations!C113,IF(ss_type_area=$C$54,Calculations!G113,IF(ss_type_area=$C$55,Calculations!K113,IF(ss_type_area=$C$56,Calculations!O113,IF(ss_type_area=$C$58,Calculations!C145,IF(ss_type_area=$C$59,Calculations!G145,IF(ss_type_area=$C$60,Calculations!K145,IF(ss_type_area=$C$61,Calculations!O145)))))))) -> FALSE | G30: 0
A31: =IF(ss_type_area=$C$53,Calculations!A114,IF(ss_type_area=$C$54,Calculations!E114,IF(ss_type_area=$C$55,Calculations!I114,IF(ss_type_area=$C$56,Calculations!M114,IF(ss_type_area=$C$58,Calculations!A146,IF(ss_type_area=$C$59,Calculations!E146,IF(ss_type_area=$C$60,Calculations!I146,IF(ss_type_area=$C$61,Calculations!M146)))))))) -> FALSE | C31: =IF(ss_type_area=$C$53,Calculations!B114,IF(ss_type_area=$C$54,Calculations!F114,IF(ss_type_area=$C$55,Calculations!J114,IF(ss_type_area=$C$56,Calculations!N114,IF(ss_type_area=$C$58,Calculations!B146,IF(ss_type_area=$C$59,Calculations!F146,IF(ss_type_area=$C$60,Calculations!J146,IF(ss_type_area=$C$61,Calculations!N146)))))))) -> FALSE | E31: =IF(ss_type_area=$C$53,Calculations!C114,IF(ss_type_area=$C$54,Calculations!G114,IF(ss_type_area=$C$55,Calculations!K114,IF(ss_type_area=$C$56,Calculations!O114,IF(ss_type_area=$C$58,Calculations!C146,IF(ss_type_area=$C$59,Calculations!G146,IF(ss_type_area=$C$60,Calculations!K146,IF(ss_type_area=$C$61,Calculations!O146)))))))) -> FALSE | G31: 0
A32: =IF(ss_type_area=$C$53,Calculations!A115,IF(ss_type_area=$C$54,Calculations!E115,IF(ss_type_area=$C$55,Calculations!I115,IF(ss_type_area=$C$56,Calculations!M115,IF(ss_type_area=$C$58,Calculations!A147,IF(ss_type_area=$C$59,Calculations!E147,IF(ss_type_area=$C$60,Calculations!I147,IF(ss_type_area=$C$61,Calculations!M147)))))))) -> FALSE | C32: =IF(ss_type_area=$C$53,Calculations!B115,IF(ss_type_area=$C$54,Calculations!F115,IF(ss_type_area=$C$55,Calculations!J115,IF(ss_type_area=$C$56,Calculations!N115,IF(ss_type_area=$C$58,Calculations!B147,IF(ss_type_area=$C$59,Calculations!F147,IF(ss_type_area=$C$60,Calculations!J147,IF(ss_type_area=$C$61,Calculations!N147)))))))) -> FALSE | E32: =IF(ss_type_area=$C$53,Calculations!C115,IF(ss_type_area=$C$54,Calculations!G115,IF(ss_type_area=$C$55,Calculations!K115,IF(ss_type_area=$C$56,Calculations!O115,IF(ss_type_area=$C$58,Calculations!C147,IF(ss_type_area=$C$59,Calculations!G147,IF(ss_type_area=$C$60,Calculations!K147,IF(ss_type_area=$C$61,Calculations!O147)))))))) -> FALSE | G32: 0
A33: =IF(ss_type_area=$C$53,Calculations!A116,IF(ss_type_area=$C$54,Calculations!E116,IF(ss_type_area=$C$55,Calculations!I116,IF(ss_type_area=$C$56,Calculations!M116,IF(ss_type_area=$C$58,Calculations!A148,IF(ss_type_area=$C$59,Calculations!E148,IF(ss_type_area=$C$60,Calculations!I148,IF(ss_type_area=$C$61,Calculations!M148)))))))) -> FALSE | C33: =IF(ss_type_area=$C$53,Calculations!B116,IF(ss_type_area=$C$54,Calculations!F116,IF(ss_type_area=$C$55,Calculations!J116,IF(ss_type_area=$C$56,Calculations!N116,IF(ss_type_area=$C$58,Calculations!B148,IF(ss_type_area=$C$59,Calculations!F148,IF(ss_type_area=$C$60,Calculations!J148,IF(ss_type_area=$C$61,Calculations!N148)))))))) -> FALSE | E33: =IF(ss_type_area=$C$53,Calculations!C116,IF(ss_type_area=$C$54,Calculations!G116,IF(ss_type_area=$C$55,Calculations!K116,IF(ss_type_area=$C$56,Calculations!O116,IF(ss_type_area=$C$58,Calculations!C148,IF(ss_type_area=$C$59,Calculations!G148,IF(ss_type_area=$C$60,Calculations!K148,IF(ss_type_area=$C$61,Calculations!O148)))))))) -> FALSE | G33: 0
A34: =IF(ss_type_area=$C$53,Calculations!A117,IF(ss_type_area=$C$54,Calculations!E117,IF(ss_type_area=$C$55,Calculations!I117,IF(ss_type_area=$C$56,Calculations!M117,IF(ss_type_area=$C$58,Calculations!A149,IF(ss_type_area=$C$59,Calculations!E149,IF(ss_type_area=$C$60,Calculations!I149,IF(ss_type_area=$C$61,Calculations!M149)))))))) -> FALSE | C34: =IF(ss_type_area=$C$53,Calculations!B117,IF(ss_type_area=$C$54,Calculations!F117,IF(ss_type_area=$C$55,Calculations!J117,IF(ss_type_area=$C$56,Calculations!N117,IF(ss_type_area=$C$58,Calculations!B149,IF(ss_type_area=$C$59,Calculations!F149,IF(ss_type_area=$C$60,Calculations!J149,IF(ss_type_area=$C$61,Calculations!N149)))))))) -> FALSE | E34: =IF(ss_type_area=$C$53,Calculations!C117,IF(ss_type_area=$C$54,Calculations!G117,IF(ss_type_area=$C$55,Calculations!K117,IF(ss_type_area=$C$56,Calculations!O117,IF(ss_type_area=$C$58,Calculations!C149,IF(ss_type_area=$C$59,Calculations!G149,IF(ss_type_area=$C$60,Calculations!K149,IF(ss_type_area=$C$61,Calculations!O149)))))))) -> FALSE | G34: 0
A35: =IF(ss_type_area=$C$53,Calculations!A118,IF(ss_type_area=$C$54,Calculations!E118,IF(ss_type_area=$C$55,Calculations!I118,IF(ss_type_area=$C$56,Calculations!M118,IF(ss_type_area=$C$58,Calculations!A150,IF(ss_type_area=$C$59,Calculations!E150,IF(ss_type_area=$C$60,Calculations!I150,IF(ss_type_area=$C$61,Calculations!M150)))))))) -> FALSE | C35: =IF(ss_type_area=$C$53,Calculations!B118,IF(ss_type_area=$C$54,Calculations!F118,IF(ss_type_area=$C$55,Calculations!J118,IF(ss_type_area=$C$56,Calculations!N118,IF(ss_type_area=$C$58,Calculations!B150,IF(ss_type_area=$C$59,Calculations!F150,IF(ss_type_area=$C$60,Calculations!J150,IF(ss_type_area=$C$61,Calculations!N150)))))))) -> FALSE | E35: =IF(ss_type_area=$C$53,Calculations!C118,IF(ss_type_area=$C$54,Calculations!G118,IF(ss_type_area=$C$55,Calculations!K118,IF(ss_type_area=$C$56,Calculations!O118,IF(ss_type_area=$C$58,Calculations!C150,IF(ss_type_area=$C$59,Calculations!G150,IF(ss_type_area=$C$60,Calculations!K150,IF(ss_type_area=$C$61,Calculations!O150)))))))) -> FALSE | G35: 0
A36: Subtotal = | F36: =SUM(G26:G35) -> 0 | G36: =SUM(G26:G35) -> 0
A37: Mark-up Items | C37: Default Percentage | E37: Override Percentage | G37: Costs
A38: =IF(ss_type_area=$C$53,Calculations!A120,IF(ss_type_area=$C$54,Calculations!E120,IF(ss_type_area=$C$55,Calculations!I120,IF(ss_type_area=$C$56,Calculations!M120,IF(ss_type_area=$C$58,Calculations!A152,IF(ss_type_area=$C$59,Calculations!E152,IF(ss_type_area=$C$60,Calculations!I152,IF(ss_type_area=$C$61,Calculations!M152)))))))) -> FALSE | C38: =IF(ss_type_area=$C$53,Calculations!B120,IF(ss_type_area=$C$54,Calculations!F120,IF(ss_type_area=$C$55,Calculations!J120,IF(ss_type_area=$C$56,Calculations!N120,IF(ss_type_area=$C$58,Calculations!B152,IF(ss_type_area=$C$59,Calculations!F152,IF(ss_type_area=$C$60,Calculations!J152,IF(ss_type_area=$C$61,Calculations!N152)))))))) -> FALSE | G38: =IF(E38>0, E38*$F$36, C38*$F$36) -> 0
A39: =IF(ss_type_area=$C$53,Calculations!A121,IF(ss_type_area=$C$54,Calculations!E121,IF(ss_type_area=$C$55,Calculations!I121,IF(ss_type_area=$C$56,Calculations!M121,IF(ss_type_area=$C$58,Calculations!A153,IF(ss_type_area=$C$59,Calculations!E153,IF(ss_type_area=$C$60,Calculations!I153,IF(ss_type_area=$C$61,Calculations!M153)))))))) -> FALSE | C39: =IF(ss_type_area=$C$53,Calculations!B121,IF(ss_type_area=$C$54,Calculations!F121,IF(ss_type_area=$C$55,Calculations!J121,IF(ss_type_area=$C$56,Calculations!N121,IF(ss_type_area=$C$58,Calculations!B153,IF(ss_type_area=$C$59,Calculations!F153,IF(ss_type_area=$C$60,Calculations!J153,IF(ss_type_area=$C$61,Calculations!N153)))))))) -> FALSE | G39: 0
A40: =IF(ss_type_area=$C$53,Calculations!A122,IF(ss_type_area=$C$54,Calculations!E122,IF(ss_type_area=$C$55,Calculations!I122,IF(ss_type_area=$C$56,Calculations!M122,IF(ss_type_area=$C$58,Calculations!A154,IF(ss_type_area=$C$59,Calculations!E154,IF(ss_type_area=$C$60,Calculations!I154,IF(ss_type_area=$C$61,Calculations!M154)))))))) -> FALSE | C40: =IF(ss_type_area=$C$53,Calculations!B122,IF(ss_type_area=$C$54,Calculations!F122,IF(ss_type_area=$C$55,Calculations!J122,IF(ss_type_area=$C$56,Calculations!N122,IF(ss_type_area=$C$58,Calculations!B154,IF(ss_type_area=$C$59,Calculations!F154,IF(ss_type_area=$C$60,Calculations!J154,IF(ss_type_area=$C$61,Calculations!N154)))))))) -> FALSE | G40: 0
A41: =IF(ss_type_area=$C$53,Calculations!A123,IF(ss_type_area=$C$54,Calculations!E123,IF(ss_type_area=$C$55,Calculations!I123,IF(ss_type_area=$C$56,Calculations!M123,IF(ss_type_area=$C$58,Calculations!A155,IF(ss_type_area=$C$59,Calculations!E155,IF(ss_type_area=$C$60,Calculations!I155,IF(ss_type_area=$C$61,Calculations!M155)))))))) -> FALSE | C41: =IF(ss_type_area=$C$53,Calculations!B123,IF(ss_type_area=$C$54,Calculations!F123,IF(ss_type_area=$C$55,Calculations!J123,IF(ss_type_area=$C$56,Calculations!N123,IF(ss_type_area=$C$58,Calculations!B155,IF(ss_type_area=$C$59,Calculations!F155,IF(ss_type_area=$C$60,Calculations!J155,IF(ss_type_area=$C$61,Calculations!N155)))))))) -> FALSE | G41: 0
A42: =IF(ss_type_area=$C$53,Calculations!A124,IF(ss_type_area=$C$54,Calculations!E124,IF(ss_type_area=$C$55,Calculations!I124,IF(ss_type_area=$C$56,Calculations!M124,IF(ss_type_area=$C$58,Calculations!A156,IF(ss_type_area=$C$59,Calculations!E156,IF(ss_type_area=$C$60,Calculations!I156,IF(ss_type_area=$C$61,Calculations!M156)))))))) -> FALSE | C42: =IF(ss_type_area=$C$53,Calculations!B124,IF(ss_type_area=$C$54,Calculations!F124,IF(ss_type_area=$C$55,Calculations!J124,IF(ss_type_area=$C$56,Calculations!N124,IF(ss_type_area=$C$58,Calculations!B156,IF(ss_type_area=$C$59,Calculations!F156,IF(ss_type_area=$C$60,Calculations!J156,IF(ss_type_area=$C$61,Calculations!N156)))))))) -> FALSE | G42: 0
A43: =IF(ss_type_area=$C$53,Calculations!A125,IF(ss_type_area=$C$54,Calculations!E125,IF(ss_type_area=$C$55,Calculations!I125,IF(ss_type_area=$C$56,Calculations!M125,IF(ss_type_area=$C$58,Calculations!A157,IF(ss_type_area=$C$59,Calculations!E157,IF(ss_type_area=$C$60,Calculations!I157,IF(ss_type_area=$C$61,Calculations!M157)))))))) -> FALSE | C43: =IF(ss_type_area=$C$53,Calculations!B125,IF(ss_type_area=$C$54,Calculations!F125,IF(ss_type_area=$C$55,Calculations!J125,IF(ss_type_area=$C$56,Calculations!N125,IF(ss_type_area=$C$58,Calculations!B157,IF(ss_type_area=$C$59,Calculations!F157,IF(ss_type_area=$C$60,Calculations!J157,IF(ss_type_area=$C$61,Calculations!N157)))))))) -> FALSE | G43: 0
A44: =IF(ss_type_area=$C$53,Calculations!A126,IF(ss_type_area=$C$54,Calculations!E126,IF(ss_type_area=$C$55,Calculations!I126,IF(ss_type_area=$C$56,Calculations!M126,IF(ss_type_area=$C$58,Calculations!A158,IF(ss_type_area=$C$59,Calculations!E158,IF(ss_type_area=$C$60,Calculations!I158,IF(ss_type_area=$C$61,Calculations!M158)))))))) -> FALSE | C44: =IF(ss_type_area=$C$53,Calculations!B126,IF(ss_type_area=$C$54,Calculations!F126,IF(ss_type_area=$C$55,Calculations!J126,IF(ss_type_area=$C$56,Calculations!N126,IF(ss_type_area=$C$58,Calculations!B158,IF(ss_type_area=$C$59,Calculations!F158,IF(ss_type_area=$C$60,Calculations!J158,IF(ss_type_area=$C$61,Calculations!N158)))))))) -> FALSE | G44: 0
A45: Sum = | F45: =ROUND(SUM(G38:G44)+F36,-3) -> 0 | G45: =ROUND(SUM(G38:G44)+G36,-3) -> 0
A47: =I47 -> 0 | B47: =J47 -> 0 | C47: =K47 -> 0
A51: List of Project Type | B51: Area Type | C51: Project Type + Urban Type
A52: =UnitCostSpreadsheet!B15 -> N/A | B52: =UnitCostSpreadsheet!C15 -> Urban | C52: =UnitCostSpreadsheet!D15 -> N/A Urban
A53: =UnitCostSpreadsheet!B16 -> General Purpose Roadway Widening with Median | B53: =UnitCostSpreadsheet!C16 -> Urban | C53: =UnitCostSpreadsheet!D16 -> General Purpose Roadway Widening with Median Urban
A54: =UnitCostSpreadsheet!B17 -> General Purpose Roadway Widening without Median | B54: =UnitCostSpreadsheet!C17 -> Urban | C54: =UnitCostSpreadsheet!D17 -> General Purpose Roadway Widening without Median Urban
A55: =UnitCostSpreadsheet!B18 -> New Alignments | B55: =UnitCostSpreadsheet!C18 -> Urban | C55: =UnitCostSpreadsheet!D18 -> New Alignments Urban
A56: =UnitCostSpreadsheet!B19 -> Frontage Rd / Passing Lanes | B56: =UnitCostSpreadsheet!C19 -> Urban | C56: =UnitCostSpreadsheet!D19 -> Frontage Rd / Passing Lanes Urban
B57: =UnitCostSpreadsheet!C20 -> Rural | C57: =UnitCostSpreadsheet!D20 -> N/A Rural
B58: =UnitCostSpreadsheet!C21 -> Rural | C58: =UnitCostSpreadsheet!D21 -> General Purpose Roadway Widening with Median Rural
B59: =UnitCostSpreadsheet!C22 -> Rural | C59: =UnitCostSpreadsheet!D22 -> General Purpose Roadway Widening without Median Rural
B60: =UnitCostSpreadsheet!C23 -> Rural | C60: =UnitCostSpreadsheet!D23 -> New Alignments Rural
B61: =UnitCostSpreadsheet!C24 -> Rural | C61: =UnitCostSpreadsheet!D24 -> Frontage Rd / Passing Lanes Rural

Sheet InterchangeGSep
A1: ATLANTA REGIONAL COMMISSION | J1: =INDEX(ReverseOrder,J3) -> 
A2: PLANNING LEVEL COST ESTIMATION TOOL | J2: =MID(CELL("filename",A1),FIND("]",CELL("filename",A1))+1,LEN(CELL("filename",A1))-FIND("]",CELL("filename",A1))) -> InterchangeGSep
A3: Interchanges & Grade Separations | J3: =MATCH(J2,ReverseOrder,0)+1 -> 
A5: Project Name: | B5: =ProjectInformation!B6 -> 0 | F5: ARC Project ID: | G5: =ProjectInformation!E6 -> 0
A6: From Limit: | B6: =ProjectInformation!B8 -> 0 | F6: To Limit: | G6: =ProjectInformation!E8 -> 0
A7: County: | B7: =ProjectInformation!B10 -> Hall | F7: Area: | G7: =ProjectInformation!E10 -> 0
A9: Please select interchange types and enter number of interchanges to be built as part of the project.
A10: Interchanges & Grade Separations Type | G10: # of Interchanges /Grade Separations
A11: N/A | G11: 0
A13: You can use default interchange costs or enter projects specific components for cost estimation. Please select one of the options in the cell highlighted in green below.
B14: Make Selection Below | C14: =IF(IntGDefault="Use default per unit cost", "Default Unit Cost is", "") -> Default Unit Cost is | G14: Total Interchange Cost
B15: Use default per unit cost | C15: =IF(intg_type=$C$76,UnitCostSpreadsheet!E26,IF(intg_type=$C$77,UnitCostSpreadsheet!E27,IF(intg_type=$C$78,UnitCostSpreadsheet!E28,IF(intg_type=$C$79,UnitCostSpreadsheet!E29,IF(intg_type=$C$80,UnitCostSpreadsheet!E30,IF(intg_type=$C$81,UnitCostSpreadsheet!E31,IF(intg_type=$C$82,UnitCostSpreadsheet!E32,UnitCostSpreadsheet!E25)))))))*I15 -> 0 | G15: =IF(IntGDefault="Use default per unit cost",intg_df_ucost*intg_number,G57*intg_number) -> 0 | I15: =IF(IntGDefault="Use default per unit cost",1,0) -> 1
A23: The following table provides the detailed information (specific components, cost/unit and quantities) used to develop the default interchange cost. If you wish to customize the default unit cost estimates, please revise specific components, unit costs and quantities in the override cells shaded in yellow. Please note that the tool will add markups to the overall project cost. Adjust percentages as appropriate.
A25: Specific Components | B25: Specific Components Override | C25: Cost/Unit | D25: Cost/Unit Override | E25: Quantity | F25: Quantity Override | G25: Costs
A26: =IF(intg_type=$C$76,Calculations!A176,IF(intg_type=$C$77,Calculations!E176,IF(intg_type=$C$78,Calculations!I176,IF(intg_type=$C$79,Calculations!M176,IF(intg_type=$C$80,Calculations!Q176,IF(intg_type=$C$81,Calculations!U176,IF(intg_type=$C$82,Calculations!Y176))))))) -> FALSE | C26: =IF(intg_type=$C$76,Calculations!B176,IF(intg_type=$C$77,Calculations!F176,IF(intg_type=$C$78,Calculations!J176,IF(intg_type=$C$79,Calculations!N176,IF(intg_type=$C$80,Calculations!R176,IF(intg_type=$C$81,Calculations!V176,IF(intg_type=$C$82,Calculations!Z176))))))) -> FALSE | E26: =IF(intg_type=$C$76,Calculations!C176,IF(intg_type=$C$77,Calculations!G176,IF(intg_type=$C$78,Calculations!K176,IF(intg_type=$C$79,Calculations!O176,IF(intg_type=$C$80,Calculations!S176,IF(intg_type=$C$81,Calculations!W176,IF(intg_type=$C$82,Calculations!AA176))))))) -> FALSE | G26: =IF(AND(D26>0,F26>0)=TRUE,D26*F26,IF(D26>0,D26*E26,IF(F26>0,F26*C26,C26*E26))) -> 0
A27: =IF(intg_type=$C$76,Calculations!A177,IF(intg_type=$C$77,Calculations!E177,IF(intg_type=$C$78,Calculations!I177,IF(intg_type=$C$79,Calculations!M177,IF(intg_type=$C$80,Calculations!Q177,IF(intg_type=$C$81,Calculations!U177,IF(intg_type=$C$82,Calculations!Y177))))))) -> FALSE | C27: =IF(intg_type=$C$76,Calculations!B177,IF(intg_type=$C$77,Calculations!F177,IF(intg_type=$C$78,Calculations!J177,IF(intg_type=$C$79,Calculations!N177,IF(intg_type=$C$80,Calculations!R177,IF(intg_type=$C$81,Calculations!V177,IF(intg_type=$C$82,Calculations!Z177))))))) -> FALSE | E27: =IF(intg_type=$C$76,Calculations!C177,IF(intg_type=$C$77,Calculations!G177,IF(intg_type=$C$78,Calculations!K177,IF(intg_type=$C$79,Calculations!O177,IF(intg_type=$C$80,Calculations!S177,IF(intg_type=$C$81,Calculations!W177,IF(intg_type=$C$82,Calculations!AA177))))))) -> FALSE | G27: =IF(AND(D27>0,F27>0)=TRUE,D27*F27,IF(D27>0,D27*E27,IF(F27>0,F27*C27,C27*E27))) -> 0
A28: =IF(intg_type=$C$76,Calculations!A178,IF(intg_type=$C$77,Calculations!E178,IF(intg_type=$C$78,Calculations!I178,IF(intg_type=$C$79,Calculations!M178,IF(intg_type=$C$80,Calculations!Q178,IF(intg_type=$C$81,Calculations!U178,IF(intg_type=$C$82,Calculations!Y178))))))) -> FALSE | C28: =IF(intg_type=$C$76,Calculations!B178,IF(intg_type=$C$77,Calculations!F178,IF(intg_type=$C$78,Calculations!J178,IF(intg_type=$C$79,Calculations!N178,IF(intg_type=$C$80,Calculations!R178,IF(intg_type=$C$81,Calculations!V178,IF(intg_type=$C$82,Calculations!Z178))))))) -> FALSE | E28: =IF(intg_type=$C$76,Calculations!C178,IF(intg_type=$C$77,Calculations!G178,IF(intg_type=$C$78,Calculations!K178,IF(intg_type=$C$79,Calculations!O178,IF(intg_type=$C$80,Calculations!S178,IF(intg_type=$C$81,Calculations!W178,IF(intg_type=$C$82,Calculations!AA178))))))) -> FALSE | G28: 0
A29: =IF(intg_type=$C$76,Calculations!A179,IF(intg_type=$C$77,Calculations!E179,IF(intg_type=$C$78,Calculations!I179,IF(intg_type=$C$79,Calculations!M179,IF(intg_type=$C$80,Calculations!Q179,IF(intg_type=$C$81,Calculations!U179,IF(intg_type=$C$82,Calculations!Y179))))))) -> FALSE | C29: =IF(intg_type=$C$76,Calculations!B179,IF(intg_type=$C$77,Calculations!F179,IF(intg_type=$C$78,Calculations!J179,IF(intg_type=$C$79,Calculations!N179,IF(intg_type=$C$80,Calculations!R179,IF(intg_type=$C$81,Calculations!V179,IF(intg_type=$C$82,Calculations!Z179))))))) -> FALSE | E29: =IF(intg_type=$C$76,Calculations!C179,IF(intg_type=$C$77,Calculations!G179,IF(intg_type=$C$78,Calculations!K179,IF(intg_type=$C$79,Calculations!O179,IF(intg_type=$C$80,Calculations!S179,IF(intg_type=$C$81,Calculations!W179,IF(intg_type=$C$82,Calculations!AA179))))))) -> FALSE | G29: 0
A30: =IF(intg_type=$C$76,Calculations!A180,IF(intg_type=$C$77,Calculations!E180,IF(intg_type=$C$78,Calculations!I180,IF(intg_type=$C$79,Calculations!M180,IF(intg_type=$C$80,Calculations!Q180,IF(intg_type=$C$81,Calculations!U180,IF(intg_type=$C$82,Calculations!Y180))))))) -> FALSE | C30: =IF(intg_type=$C$76,Calculations!B180,IF(intg_type=$C$77,Calculations!F180,IF(intg_type=$C$78,Calculations!J180,IF(intg_type=$C$79,Calculations!N180,IF(intg_type=$C$80,Calculations!R180,IF(intg_type=$C$81,Calculations!V180,IF(intg_type=$C$82,Calculations!Z180))))))) -> FALSE | E30: =IF(intg_type=$C$76,Calculations!C180,IF(intg_type=$C$77,Calculations!G180,IF(intg_type=$C$78,Calculations!K180,IF(intg_type=$C$79,Calculations!O180,IF(intg_type=$C$80,Calculations!S180,IF(intg_type=$C$81,Calculations!W180,IF(intg_type=$C$82,Calculations!AA180))))))) -> FALSE | G30: 0
A31: =IF(intg_type=$C$76,Calculations!A181,IF(intg_type=$C$77,Calculations!E181,IF(intg_type=$C$78,Calculations!I181,IF(intg_type=$C$79,Calculations!M181,IF(intg_type=$C$80,Calculations!Q181,IF(intg_type=$C$81,Calculations!U181,IF(intg_type=$C$82,Calculations!Y181))))))) -> FALSE | C31: =IF(intg_type=$C$76,Calculations!B181,IF(intg_type=$C$77,Calculations!F181,IF(intg_type=$C$78,Calculations!J181,IF(intg_type=$C$79,Calculations!N181,IF(intg_type=$C$80,Calculations!R181,IF(intg_type=$C$81,Calculations!V181,IF(intg_type=$C$82,Calculations!Z181))))))) -> FALSE | E31: =IF(intg_type=$C$76,Calculations!C181,IF(intg_type=$C$77,Calculations!G181,IF(intg_type=$C$78,Calculations!K181,IF(intg_type=$C$79,Calculations!O181,IF(intg_type=$C$80,Calculations!S181,IF(intg_type=$C$81,Calculations!W181,IF(intg_type=$C$82,Calculations!AA181))))))) -> FALSE | G31: 0
A32: =IF(intg_type=$C$76,Calculations!A182,IF(intg_type=$C$77,Calculations!E182,IF(intg_type=$C$78,Calculations!I182,IF(intg_type=$C$79,Calculations!M182,IF(intg_type=$C$80,Calculations!Q182,IF(intg_type=$C$81,Calculations!U182,IF(intg_type=$C$82,Calculations!Y182))))))) -> FALSE | C32: =IF(intg_type=$C$76,Calculations!B182,IF(intg_type=$C$77,Calculations!F182,IF(intg_type=$C$78,Calculations!J182,IF(intg_type=$C$79,Calculations!N182,IF(intg_type=$C$80,Calculations!R182,IF(intg_type=$C$81,Calculations!V182,IF(intg_type=$C$82,Calculations!Z182))))))) -> FALSE | E32: =IF(intg_type=$C$76,Calculations!C182,IF(intg_type=$C$77,Calculations!G182,IF(intg_type=$C$78,Calculations!K182,IF(intg_type=$C$79,Calculations!O182,IF(intg_type=$C$80,Calculations!S182,IF(intg_type=$C$81,Calculations!W182,IF(intg_type=$C$82,Calculations!AA182))))))) -> FALSE | G32: 0
A33: =IF(intg_type=$C$76,Calculations!A183,IF(intg_type=$C$77,Calculations!E183,IF(intg_type=$C$78,Calculations!I183,IF(intg_type=$C$79,Calculations!M183,IF(intg_type=$C$80,Calculations!Q183,IF(intg_type=$C$81,Calculations!U183,IF(intg_type=$C$82,Calculations!Y183))))))) -> FALSE | C33: =IF(intg_type=$C$76,Calculations!B183,IF(intg_type=$C$77,Calculations!F183,IF(intg_type=$C$78,Calculations!J183,IF(intg_type=$C$79,Calculations!N183,IF(intg_type=$C$80,Calculations!R183,IF(intg_type=$C$81,Calculations!V183,IF(intg_type=$C$82,Calculations!Z183))))))) -> FALSE | E33: =IF(intg_type=$C$76,Calculations!C183,IF(intg_type=$C$77,Calculations!G183,IF(intg_type=$C$78,Calculations!K183,IF(intg_type=$C$79,Calculations!O183,IF(intg_type=$C$80,Calculations!S183,IF(intg_type=$C$81,Calculations!W183,IF(intg_type=$C$82,Calculations!AA183))))))) -> FALSE | G33: 0
A34: =IF(intg_type=$C$76,Calculations!A184,IF(intg_type=$C$77,Calculations!E184,IF(intg_type=$C$78,Calculations!I184,IF(intg_type=$C$79,Calculations!M184,IF(intg_type=$C$80,Calculations!Q184,IF(intg_type=$C$81,Calculations!U184,IF(intg_type=$C$82,Calculations!Y184))))))) -> FALSE | C34: =IF(intg_type=$C$76,Calculations!B184,IF(intg_type=$C$77,Calculations!F184,IF(intg_type=$C$78,Calculations!J184,IF(intg_type=$C$79,Calculations!N184,IF(intg_type=$C$80,Calculations!R184,IF(intg_type=$C$81,Calculations!V184,IF(intg_type=$C$82,Calculations!Z184))))))) -> FALSE | E34: =IF(intg_type=$C$76,Calculations!C184,IF(intg_type=$C$77,Calculations!G184,IF(intg_type=$C$78,Calculations!K184,IF(intg_type=$C$79,Calculations!O184,IF(intg_type=$C$80,Calculations!S184,IF(intg_type=$C$81,Calculations!W184,IF(intg_type=$C$82,Calculations!AA184))))))) -> FALSE | G34: 0
A35: =IF(intg_type=$C$76,Calculations!A185,IF(intg_type=$C$77,Calculations!E185,IF(intg_type=$C$78,Calculations!I185,IF(intg_type=$C$79,Calculations!M185,IF(intg_type=$C$80,Calculations!Q185,IF(intg_type=$C$81,Calculations!U185,IF(intg_type=$C$82,Calculations!Y185))))))) -> FALSE | C35: =IF(intg_type=$C$76,Calculations!B185,IF(intg_type=$C$77,Calculations!F185,IF(intg_type=$C$78,Calculations!J185,IF(intg_type=$C$79,Calculations!N185,IF(intg_type=$C$80,Calculations!R185,IF(intg_type=$C$81,Calculations!V185,IF(intg_type=$C$82,Calculations!Z185))))))) -> FALSE | E35: =IF(intg_type=$C$76,Calculations!C185,IF(intg_type=$C$77,Calculations!G185,IF(intg_type=$C$78,Calculations!K185,IF(intg_type=$C$79,Calculations!O185,IF(intg_type=$C$80,Calculations!S185,IF(intg_type=$C$81,Calculations!W185,IF(intg_type=$C$82,Calculations!AA185))))))) -> FALSE | G35: 0
A36: Subtotal = | G36: =SUM(G26:G35) -> 0
A37: Mark-up Items | C37: Default Percentage | E37: Override | G37: Costs
A38: =IF(intg_type=$C$76,Calculations!A187,IF(intg_type=$C$77,Calculations!E187,IF(intg_type=$C$78,Calculations!I187,IF(intg_type=$C$79,Calculations!M187,IF(intg_type=$C$80,Calculations!Q187,IF(intg_type=$C$81,Calculations!U187,IF(intg_type=$C$82,Calculations!Y187))))))) -> FALSE | C38: =IF(intg_type=$C$76,Calculations!B187,IF(intg_type=$C$77,Calculations!F187,IF(intg_type=$C$78,Calculations!J187,IF(intg_type=$C$79,Calculations!N187,IF(intg_type=$C$80,Calculations!R187,IF(intg_type=$C$81,Calculations!V187,IF(intg_type=$C$82,Calculations!Z187))))))) -> FALSE | G38: =IF(E38>0, E38*$G$36, C38*$G$36) -> 0
A39: =IF(intg_type=$C$76,Calculations!A188,IF(intg_type=$C$77,Calculations!E188,IF(intg_type=$C$78,Calculations!I188,IF(intg_type=$C$79,Calculations!M188,IF(intg_type=$C$80,Calculations!Q188,IF(intg_type=$C$81,Calculations!U188,IF(intg_type=$C$82,Calculations!Y188))))))) -> FALSE | C39: =IF(intg_type=$C$76,Calculations!B188,IF(intg_type=$C$77,Calculations!F188,IF(intg_type=$C$78,Calculations!J188,IF(intg_type=$C$79,Calculations!N188,IF(intg_type=$C$80,Calculations!R188,IF(intg_type=$C$81,Calculations!V188,IF(intg_type=$C$82,Calculations!Z188))))))) -> FALSE | G39: 0
A40: =IF(intg_type=$C$76,Calculations!A189,IF(intg_type=$C$77,Calculations!E189,IF(intg_type=$C$78,Calculations!I189,IF(intg_type=$C$79,Calculations!M189,IF(intg_type=$C$80,Calculations!Q189,IF(intg_type=$C$81,Calculations!U189,IF(intg_type=$C$82,Calculations!Y189))))))) -> FALSE | C40: =IF(intg_type=$C$76,Calculations!B189,IF(intg_type=$C$77,Calculations!F189,IF(intg_type=$C$78,Calculations!J189,IF(intg_type=$C$79,Calculations!N189,IF(intg_type=$C$80,Calculations!R189,IF(intg_type=$C$81,Calculations!V189,IF(intg_type=$C$82,Calculations!Z189))))))) -> FALSE | G40: 0
A41: =IF(intg_type=$C$76,Calculations!A190,IF(intg_type=$C$77,Calculations!E190,IF(intg_type=$C$78,Calculations!I190,IF(intg_type=$C$79,Calculations!M190,IF(intg_type=$C$80,Calculations!Q190,IF(intg_type=$C$81,Calculations!U190,IF(intg_type=$C$82,Calculations!Y190))))))) -> FALSE | C41: =IF(intg_type=$C$76,Calculations!B190,IF(intg_type=$C$77,Calculations!F190,IF(intg_type=$C$78,Calculations!J190,IF(intg_type=$C$79,Calculations!N190,IF(intg_type=$C$80,Calculations!R190,IF(intg_type=$C$81,Calculations!V190,IF(intg_type=$C$82,Calculations!Z190))))))) -> FALSE | G41: 0
A42: =IF(intg_type=$C$76,Calculations!A191,IF(intg_type=$C$77,Calculations!E191,IF(intg_type=$C$78,Calculations!I191,IF(intg_type=$C$79,Calculations!M191,IF(intg_type=$C$80,Calculations!Q191,IF(intg_type=$C$81,Calculations!U191,IF(intg_type=$C$82,Calculations!Y191))))))) -> FALSE | C42: =IF(intg_type=$C$76,Calculations!B191,IF(intg_type=$C$77,Calculations!F191,IF(intg_type=$C$78,Calculations!J191,IF(intg_type=$C$79,Calculations!N191,IF(intg_type=$C$80,Calculations!R191,IF(intg_type=$C$81,Calculations!V191,IF(intg_type=$C$82,Calculations!Z191))))))) -> FALSE | G42: 0
A43: =IF(intg_type=$C$76,Calculations!A192,IF(intg_type=$C$77,Calculations!E192,IF(intg_type=$C$78,Calculations!I192,IF(intg_type=$C$79,Calculations!M192,IF(intg_type=$C$80,Calculations!Q192,IF(intg_type=$C$81,Calculations!U192,IF(intg_type=$C$82,Calculations!Y192))))))) -> FALSE | C43: =IF(intg_type=$C$76,Calculations!B192,IF(intg_type=$C$77,Calculations!F192,IF(intg_type=$C$78,Calculations!J192,IF(intg_type=$C$79,Calculations!N192,IF(intg_type=$C$80,Calculations!R192,IF(intg_type=$C$81,Calculations!V192,IF(intg_type=$C$82,Calculations!Z192))))))) -> FALSE | G43: 0
A44: =IF(intg_type=$C$76,Calculations!A193,IF(intg_type=$C$77,Calculations!E193,IF(intg_type=$C$78,Calculations!I193,IF(intg_type=$C$79,Calculations!M193,IF(intg_type=$C$80,Calculations!Q193,IF(intg_type=$C$81,Calculations!U193,IF(intg_type=$C$82,Calculations!Y193))))))) -> FALSE | C44: =IF(intg_type=$C$76,Calculations!B193,IF(intg_type=$C$77,Calculations!F193,IF(intg_type=$C$78,Calculations!J193,IF(intg_type=$C$79,Calculations!N193,IF(intg_type=$C$80,Calculations!R193,IF(intg_type=$C$81,Calculations!V193,IF(intg_type=$C$82,Calculations!Z193))))))) -> FALSE | G44: 0
A45: Subtotal = | G45: =SUM(G36:G44) -> 0
A46: New Bridge | B46: Specific Components Override | C46: Cost/Unit | D46: Cost/Unit Override | E46: Quantity | F46: Quantity Override | G46: Costs
A47: =IF(intg_type=$C$76,Calculations!A199,IF(intg_type=$C$77,Calculations!E199,IF(intg_type=$C$78,Calculations!I199,IF(intg_type=$C$79,Calculations!M199,IF(intg_type=$C$80,Calculations!Q199,IF(intg_type=$C$81,Calculations!U199,IF(intg_type=$C$82,Calculations!Y199))))))) -> FALSE | C47: =IF(intg_type=$C$76,Calculations!B199,IF(intg_type=$C$77,Calculations!F199,IF(intg_type=$C$78,Calculations!J199,IF(intg_type=$C$79,Calculations!N199,IF(intg_type=$C$80,Calculations!R199,IF(intg_type=$C$81,Calculations!V199,IF(intg_type=$C$82,Calculations!Z199))))))) -> FALSE | E47: =IF(intg_type=$C$76,Calculations!C199,IF(intg_type=$C$77,Calculations!G199,IF(intg_type=$C$78,Calculations!K199,IF(intg_type=$C$79,Calculations!O199,IF(intg_type=$C$80,Calculations!S199,IF(intg_type=$C$81,Calculations!W199,IF(intg_type=$C$82,Calculations!AA199))))))) -> FALSE | G47: =IF(AND(D47>0,F47>0)=TRUE,D47*F47,IF(D47>0,D47*E47,IF(F47>0,F47*C47,C47*E47))) -> 0
A48: Mark-up Items | C48: Default Percentage | E48: Override | G48: Costs
A49: =IF(intg_type=$C$76,Calculations!A200,IF(intg_type=$C$77,Calculations!E200,IF(intg_type=$C$78,Calculations!I200,IF(intg_type=$C$79,Calculations!M200,IF(intg_type=$C$80,Calculations!Q200,IF(intg_type=$C$81,Calculations!U200,IF(intg_type=$C$82,Calculations!Y200))))))) -> FALSE | C49: =IF(intg_type=$C$76,Calculations!B200,IF(intg_type=$C$77,Calculations!F200,IF(intg_type=$C$78,Calculations!J200,IF(intg_type=$C$79,Calculations!N200,IF(intg_type=$C$80,Calculations!R200,IF(intg_type=$C$81,Calculations!V200,IF(intg_type=$C$82,Calculations!Z200))))))) -> FALSE | G49: =IF(E49>0, E49*$G$47, C49*$G$47) -> 0
A50: =IF(intg_type=$C$76,Calculations!A201,IF(intg_type=$C$77,Calculations!E201,IF(intg_type=$C$78,Calculations!I201,IF(intg_type=$C$79,Calculations!M201,IF(intg_type=$C$80,Calculations!Q201,IF(intg_type=$C$81,Calculations!U201,IF(intg_type=$C$82,Calculations!Y201))))))) -> FALSE | C50: =IF(intg_type=$C$76,Calculations!B201,IF(intg_type=$C$77,Calculations!F201,IF(intg_type=$C$78,Calculations!J201,IF(intg_type=$C$79,Calculations!N201,IF(intg_type=$C$80,Calculations!R201,IF(intg_type=$C$81,Calculations!V201,IF(intg_type=$C$82,Calculations!Z201))))))) -> FALSE | G50: 0
A51: =IF(intg_type=$C$76,Calculations!A202,IF(intg_type=$C$77,Calculations!E202,IF(intg_type=$C$78,Calculations!I202,IF(intg_type=$C$79,Calculations!M202,IF(intg_type=$C$80,Calculations!Q202,IF(intg_type=$C$81,Calculations!U202,IF(intg_type=$C$82,Calculations!Y202))))))) -> FALSE | C51: =IF(intg_type=$C$76,Calculations!B202,IF(intg_type=$C$77,Calculations!F202,IF(intg_type=$C$78,Calculations!J202,IF(intg_type=$C$79,Calculations!N202,IF(intg_type=$C$80,Calculations!R202,IF(intg_type=$C$81,Calculations!V202,IF(intg_type=$C$82,Calculations!Z202))))))) -> FALSE | G51: 0
A52: =IF(intg_type=$C$76,Calculations!A203,IF(intg_type=$C$77,Calculations!E203,IF(intg_type=$C$78,Calculations!I203,IF(intg_type=$C$79,Calculations!M203,IF(intg_type=$C$80,Calculations!Q203,IF(intg_type=$C$81,Calculations!U203,IF(intg_type=$C$82,Calculations!Y203))))))) -> FALSE | C52: =IF(intg_type=$C$76,Calculations!B203,IF(intg_type=$C$77,Calculations!F203,IF(intg_type=$C$78,Calculations!J203,IF(intg_type=$C$79,Calculations!N203,IF(intg_type=$C$80,Calculations!R203,IF(intg_type=$C$81,Calculations!V203,IF(intg_type=$C$82,Calculations!Z203))))))) -> FALSE | G52: 0
A53: =IF(intg_type=$C$76,Calculations!A204,IF(intg_type=$C$77,Calculations!E204,IF(intg_type=$C$78,Calculations!I204,IF(intg_type=$C$79,Calculations!M204,IF(intg_type=$C$80,Calculations!Q204,IF(intg_type=$C$81,Calculations!U204,IF(intg_type=$C$82,Calculations!Y204))))))) -> FALSE | C53: =IF(intg_type=$C$76,Calculations!B204,IF(intg_type=$C$77,Calculations!F204,IF(intg_type=$C$78,Calculations!J204,IF(intg_type=$C$79,Calculations!N204,IF(intg_type=$C$80,Calculations!R204,IF(intg_type=$C$81,Calculations!V204,IF(intg_type=$C$82,Calculations!Z204))))))) -> FALSE | G53: 0
A54: =IF(intg_type=$C$76,Calculations!A205,IF(intg_type=$C$77,Calculations!E205,IF(intg_type=$C$78,Calculations!I205,IF(intg_type=$C$79,Calculations!M205,IF(intg_type=$C$80,Calculations!Q205,IF(intg_type=$C$81,Calculations!U205,IF(intg_type=$C$82,Calculations!Y205))))))) -> FALSE | C54: =IF(intg_type=$C$76,Calculations!B205,IF(intg_type=$C$77,Calculations!F205,IF(intg_type=$C$78,Calculations!J205,IF(intg_type=$C$79,Calculations!N205,IF(intg_type=$C$80,Calculations!R205,IF(intg_type=$C$81,Calculations!V205,IF(intg_type=$C$82,Calculations!Z205))))))) -> FALSE | G54: 0
A55: =IF(intg_type=$C$76,Calculations!A206,IF(intg_type=$C$77,Calculations!E206,IF(intg_type=$C$78,Calculations!I206,IF(intg_type=$C$79,Calculations!M206,IF(intg_type=$C$80,Calculations!Q206,IF(intg_type=$C$81,Calculations!U206,IF(intg_type=$C$82,Calculations!Y206))))))) -> FALSE | C55: =IF(intg_type=$C$76,Calculations!B206,IF(intg_type=$C$77,Calculations!F206,IF(intg_type=$C$78,Calculations!J206,IF(intg_type=$C$79,Calculations!N206,IF(intg_type=$C$80,Calculations!R206,IF(intg_type=$C$81,Calculations!V206,IF(intg_type=$C$82,Calculations!Z206))))))) -> FALSE | G55: 0
A56: Subtotal = | G56: =G47+SUM(G48:G55) -> 0
A57: Sum = | G57: =ROUND(G45+G56,-3) -> 0
A74: List of Project Type | B74: Area Type | C74: Project Type + Urban Type | F74: Per Unit Cost
A75: =UnitCostSpreadsheet!B25 -> N/A | B75: =UnitCostSpreadsheet!C25 -> 0 | C75: =UnitCostSpreadsheet!D25 -> N/A | F75: =UnitCostSpreadsheet!E25 -> 0
A76: =UnitCostSpreadsheet!B26 -> Compressed Diamond | B76: =UnitCostSpreadsheet!C26 -> 0 | C76: =UnitCostSpreadsheet!D26 -> Compressed Diamond | F76: =UnitCostSpreadsheet!E26 -> 13606000
A77: =UnitCostSpreadsheet!B27 -> Single Point Urban | B77: =UnitCostSpreadsheet!C27 -> 0 | C77: =UnitCostSpreadsheet!D27 -> Single Point Urban | F77: =UnitCostSpreadsheet!E27 -> 24258000
A78: =UnitCostSpreadsheet!B28 -> Diamond | B78: =UnitCostSpreadsheet!C28 -> 0 | C78: =UnitCostSpreadsheet!D28 -> Diamond | F78: =UnitCostSpreadsheet!E28 -> 15951000
A79: =UnitCostSpreadsheet!B29 -> Half Diamond | B79: =UnitCostSpreadsheet!C29 -> 0 | C79: =UnitCostSpreadsheet!D29 -> Half Diamond | F79: =UnitCostSpreadsheet!E29 -> 9021000
A80: =UnitCostSpreadsheet!B30 -> HOV/Managed Lanes Direct Access Interchange | C80: =UnitCostSpreadsheet!D30 -> HOV/Managed Lanes Direct Access Interchange | F80: =UnitCostSpreadsheet!E30 -> 13616000
A81: =UnitCostSpreadsheet!B31 -> Grade Sep - 4 lanes | B81: =UnitCostSpreadsheet!C31 -> 0 | C81: =UnitCostSpreadsheet!D31 -> Grade Sep - 4 lanes | F81: =UnitCostSpreadsheet!E31 -> 5920000
A82: =UnitCostSpreadsheet!B32 -> Grade Sep - 2 lanes | B82: =UnitCostSpreadsheet!C32 -> 0 | C82: =UnitCostSpreadsheet!D32 -> Grade Sep - 2 lanes | F82: =UnitCostSpreadsheet!E32 -> 4189000

Sheet Intersections
A1: ATLANTA REGIONAL COMMISSION | H1: =INDEX(ReverseOrder,H3) -> 
A2: PLANNING LEVEL COST ESTIMATION TOOL | H2: =MID(CELL("filename",A1),FIND("]",CELL("filename",A1))+1,LEN(CELL("filename",A1))-FIND("]",CELL("filename",A1))) -> Intersections
A3: Intersection Improvements | H3: =MATCH(H2,ReverseOrder,0)+1 -> 
A5: Project Name: | B5: =ProjectInformation!B6 -> 0 | D5: ARC Project ID: | E5: =ProjectInformation!E6 -> 0
A6: From Limit: | B6: =ProjectInformation!B8 -> 0 | D6: To Limit: | E6: =ProjectInformation!E8 -> 0
A7: County: | B7: =ProjectInformation!B10 -> Hall | D7: Area: | E7: =ProjectInformation!E10 -> 0
A9: Choose intersection improvement types and enter length of turning lanes and number of signals and roundabouts if applicable.
A10: It should include improvements of all intersections across the entire length of the project.
A11: Improvement Type | B11: Length (ft) | C11: Number of Improvements (including all approaches) | D11: Default Unit Cost | E11: Total Cost
A12: Turning Lanes - Left | B12: 0 | C12: 0 | D12: =UnitCostSpreadsheet!E34 -> 1200 | E12: =ints_lt_length*ints_lt_number*ints_lt_df_ucost -> 0
A13: Turning Lanes - Right | B13: 0 | C13: 0 | D13: =UnitCostSpreadsheet!E35 -> 1870 | E13: =ints_rt_length*ints_rt_number*ints_rt_df_ucost -> 0
A14: Roundabout | C14: 0 | D14: =UnitCostSpreadsheet!E36 -> 927000 | E14: =ints_rb_number*ints_rb_df_ucost -> 0
A15: Signal | C15: 0 | D15: =UnitCostSpreadsheet!E37 -> 200000 | E15: =ints_sig_number*ints_rt_sig_ucost -> 0
A16: Sum = | E16: =SUM(E12:E15) -> 0
A17: You can use projects specific components for cost estimation.
E18: Roundabout Cost
A19: Use project specific components for Roundabout | E19: =D44 -> 927000
A21: Please enter descriptions, unit cost and quantities of any additional items you would like to include in the project. Please note that the tool will add markups to the overall project cost. Adjust percentages as appropriate.
A24: Specific Components | B24: Cost/Unit | C24: Qty | D24: Costs
A25: =Calculations!I221 -> Pavement (SY) | B25: =Calculations!J221 -> 83.82455 | C25: =Calculations!K221 -> 4000 | D25: =B25*C25 -> 335298.2
A26: =Calculations!I222 -> Curb & Gutter (LF) | B26: =Calculations!J222 -> 33.76777778 | C26: =Calculations!K222 -> 2200 | D26: =B26*C26 -> 74289.11111
A27: =Calculations!I223 -> Conc. Median 4" (SY) | B27: =Calculations!J223 -> 32.06 | C27: =Calculations!K223 -> 75 | D27: 2404.5
A28: =Calculations!I224 -> User-Defined Item | B28: =Calculations!J224 -> 0 | C28: =Calculations!K224 -> 0 | D28: 0
A29: =Calculations!I225 -> User-Defined Item | B29: =Calculations!J225 -> 0 | C29: =Calculations!K225 -> 0 | D29: 0
A30: =Calculations!I226 -> User-Defined Item | B30: =Calculations!J226 -> 0 | C30: =Calculations!K226 -> 0 | D30: 0
A31: =Calculations!I227 -> User-Defined Item | B31: =Calculations!J227 -> 0 | C31: =Calculations!K227 -> 0 | D31: 0
A32: =Calculations!I228 -> User-Defined Item | B32: =Calculations!J228 -> 0 | C32: =Calculations!K228 -> 0 | D32: 0
A33: =Calculations!I229 -> User-Defined Item | B33: =Calculations!J229 -> 0 | C33: =Calculations!K229 -> 0 | D33: 0
A34: =Calculations!I230 -> User-Defined Item | B34: =Calculations!J230 -> 0 | C34: =Calculations!K230 -> 0 | D34: 0
A35: Sum = | D35: =SUM(D25:D34) -> 411991.8111
A36: Mark-up Items | B36: Default Percentage | C36: Override | D36: Costs
A37: =Calculations!I232 -> Earthwork | B37: =Calculations!J232 -> 0.65 | D37: =IF(C37>0,C37*D$35,B37*D$35) -> 267794.6772
A38: =Calculations!I233 -> Drainage | B38: =Calculations!J233 -> 0.18 | D38: =IF(C38>0,C38*D$35,B38*D$35) -> 74158.526
A39: =Calculations!I234 -> Erosion Control | B39: =Calculations!J234 -> 0.12 | D39: 49439.01733
A40: =Calculations!I235 -> Signs | B40: =Calculations!J235 -> 0.04 | D40: 16479.67244
A41: =Calculations!I236 -> Pavement Marking | B41: =Calculations!J236 -> 0.08 | D41: 32959.34489
A42: =Calculations!I237 -> Traffic Control | B42: =Calculations!J237 -> 0.15 | D42: 61798.77167
A43: =Calculations!I238 -> Utility | B43: =Calculations!J238 -> 0.03 | D43: 12359.75433
A44: Total = | D44: =ROUND(SUM(D37:D43)+D35,-3) -> 927000
A50: List of Project Type | B50: Area Type | C50: Project Type + Urban Type
A51: =UnitCostSpreadsheet!B33 -> N/A | B51: =UnitCostSpreadsheet!C33 -> 0 | C51: =UnitCostSpreadsheet!D33 -> N/A
A52: =UnitCostSpreadsheet!B34 -> Turning Lanes - Left | B52: =UnitCostSpreadsheet!C34 -> 0 | C52: =UnitCostSpreadsheet!D34 -> Turning Lanes - Left
A53: =UnitCostSpreadsheet!B35 -> Turning Lanes - Right | B53: =UnitCostSpreadsheet!C35 -> 0 | C53: =UnitCostSpreadsheet!D35 -> Turning Lanes - Right
A54: =UnitCostSpreadsheet!B36 -> Roundabout | B54: =UnitCostSpreadsheet!C36 -> 0 | C54: =UnitCostSpreadsheet!D36 -> Roundabout
A55: =UnitCostSpreadsheet!B37 -> Signal | B55: =UnitCostSpreadsheet!C37 -> 0 | C55: =UnitCostSpreadsheet!D37 -> Signal

Sheet Bridge
A1: ATLANTA REGIONAL COMMISSION | J1: =INDEX(ReverseOrder,J3) -> 
A2: PLANNING LEVEL COST ESTIMATION TOOL | J2: =MID(CELL("filename",A1),FIND("]",CELL("filename",A1))+1,LEN(CELL("filename",A1))-FIND("]",CELL("filename",A1))) -> Bridge
A3: Bridges | J3: =MATCH(J2,ReverseOrder,0)+1 -> 
A5: Project Name: | B5: =ProjectInformation!B6 -> 0 | F5: ARC Project ID: | G5: =ProjectInformation!E6 -> 0
A6: From Limit: | B6: =ProjectInformation!B8 -> 0 | F6: To Limit: | G6: =ProjectInformation!E8 -> 0
A7: County: | B7: =ProjectInformation!B10 -> Hall | F7: Area: | G7: =ProjectInformation!E10 -> 0
A9: Enter description and unit of bridge to be built/replaced.
A10: Bridge Project Types
A11: N/A
A13: Enter length and width of the bridge; and number of bridges to be built as part of the project.
B14: Bridge Length (ft) | C14: Bridge Width (ft) | G14: # of Bridges
B15: 0 | C15: 0 | G15: 0
A17: You can use default bridge costs or enter project specific components for cost estimation. Please select one of the options in the cell highlighted in green below.
B18: Make Selection Below | C18: =IF(BgDefault="Use default per sq ft cost", "Default Unit Cost is", "") -> Default Unit Cost is | G18: Total Bridge Cost
B19: Use default per sq ft cost | C19: =IF(bg_type=$C$55,UnitCostSpreadsheet!E39,IF(bg_type=$C$56,UnitCostSpreadsheet!E40,UnitCostSpreadsheet!E38))*I19 -> 0 | G19: =IF(BgDefault="Use default per sq ft cost",bg_df_ucost*bg_length*bg_width*bg_number,G45*bg_length*bg_width*bg_number) -> 0 | I19: =IF(BgDefault="Use default per sq ft cost",1,0) -> 1
A23: The following table provides the detailed information (specific components, cost/unit and quantities) used to develop the default per square bridge cost. If you wish to customize the project specific components for unit cost estimates, please revise unit cost and quantities in the cells shaded in yellow. You can also add additional items in the User-Defined Item cells. Please note that the tool will add markups to the overall project cost. Adjust percentages as appropriate.
A25: Specific Components | B25: Specific Components Override | C25: Cost/Unit | D25: Cost/Unit Override | E25: Quantity | F25: Quantity Override | G25: Costs
A26: =IF(bg_type=$C$55,Calculations!A253,IF(bg_type=$C$56,Calculations!E253)) -> FALSE | C26: =IF(bg_type=$C$55,Calculations!B253,IF(bg_type=$C$56,Calculations!F253)) -> FALSE | E26: =IF(bg_type=$C$55,Calculations!C253,IF(bg_type=$C$56,Calculations!G253)) -> FALSE | G26: =IF(AND(D26>0,F26>0)=TRUE,D26*F26,IF(D26>0,D26*E26,IF(F26>0,F26*C26,C26*E26))) -> 0
A27: =IF(bg_type=$C$55,Calculations!A254,IF(bg_type=$C$56,Calculations!E254)) -> FALSE | C27: =IF(bg_type=$C$55,Calculations!B254,IF(bg_type=$C$56,Calculations!F254)) -> FALSE | E27: =IF(bg_type=$C$55,Calculations!C254,IF(bg_type=$C$56,Calculations!G254)) -> FALSE | G27: =IF(AND(D27>0,F27>0)=TRUE,D27*F27,IF(D27>0,D27*E27,IF(F27>0,F27*C27,C27*E27))) -> 0
A28: =IF(bg_type=$C$55,Calculations!A255,IF(bg_type=$C$56,Calculations!E255)) -> FALSE | C28: =IF(bg_type=$C$55,Calculations!B255,IF(bg_type=$C$56,Calculations!F255)) -> FALSE | E28: =IF(bg_type=$C$55,Calculations!C255,IF(bg_type=$C$56,Calculations!G255)) -> FALSE | G28: 0
A29: =IF(bg_type=$C$55,Calculations!A256,IF(bg_type=$C$56,Calculations!E256)) -> FALSE | C29: =IF(bg_type=$C$55,Calculations!B256,IF(bg_type=$C$56,Calculations!F256)) -> FALSE | E29: =IF(bg_type=$C$55,Calculations!C256,IF(bg_type=$C$56,Calculations!G256)) -> FALSE | G29: 0
A30: =IF(bg_type=$C$55,Calculations!A257,IF(bg_type=$C$56,Calculations!E257)) -> FALSE | C30: =IF(bg_type=$C$55,Calculations!B257,IF(bg_type=$C$56,Calculations!F257)) -> FALSE | E30: =IF(bg_type=$C$55,Calculations!C257,IF(bg_type=$C$56,Calculations!G257)) -> FALSE | G30: 0
A31: =IF(bg_type=$C$55,Calculations!A258,IF(bg_type=$C$56,Calculations!E258)) -> FALSE | C31: =IF(bg_type=$C$55,Calculations!B258,IF(bg_type=$C$56,Calculations!F258)) -> FALSE | E31: =IF(bg_type=$C$55,Calculations!C258,IF(bg_type=$C$56,Calculations!G258)) -> FALSE | G31: 0
A32: =IF(bg_type=$C$55,Calculations!A259,IF(bg_type=$C$56,Calculations!E259)) -> FALSE | C32: =IF(bg_type=$C$55,Calculations!B259,IF(bg_type=$C$56,Calculations!F259)) -> FALSE | E32: =IF(bg_type=$C$55,Calculations!C259,IF(bg_type=$C$56,Calculations!G259)) -> FALSE | G32: 0
A33: =IF(bg_type=$C$55,Calculations!A260,IF(bg_type=$C$56,Calculations!E260)) -> FALSE | C33: =IF(bg_type=$C$55,Calculations!B260,IF(bg_type=$C$56,Calculations!F260)) -> FALSE | E33: =IF(bg_type=$C$55,Calculations!C260,IF(bg_type=$C$56,Calculations!G260)) -> FALSE | G33: 0
A34: =IF(bg_type=$C$55,Calculations!A261,IF(bg_type=$C$56,Calculations!E261)) -> FALSE | C34: =IF(bg_type=$C$55,Calculations!B261,IF(bg_type=$C$56,Calculations!F261)) -> FALSE | E34: =IF(bg_type=$C$55,Calculations!C261,IF(bg_type=$C$56,Calculations!G261)) -> FALSE | G34: 0
A35: =IF(bg_type=$C$55,Calculations!A262,IF(bg_type=$C$56,Calculations!E262)) -> FALSE | C35: =IF(bg_type=$C$55,Calculations!B262,IF(bg_type=$C$56,Calculations!F262)) -> FALSE | E35: =IF(bg_type=$C$55,Calculations!C262,IF(bg_type=$C$56,Calculations!G262)) -> FALSE | G35: 0
A36: Sum = | G36: =SUM(G26:G35) -> 0
A37: Mark-up Items | C37: Default Percentage | E37: Override Percentage | G37: Costs
A38: =IF(bg_type=$C$55,Calculations!A264,IF(bg_type=$C$56,Calculations!E264)) -> FALSE | C38: =IF(bg_type=$C$55,Calculations!B264,IF(bg_type=$C$56,Calculations!F264)) -> FALSE | G38: =IF(E38>0,E38*G$36,C38*G$36) -> 0
A39: =IF(bg_type=$C$55,Calculations!A265,IF(bg_type=$C$56,Calculations!E265)) -> FALSE | C39: =IF(bg_type=$C$55,Calculations!B265,IF(bg_type=$C$56,Calculations!F265)) -> FALSE | G39: 0
A40: =IF(bg_type=$C$55,Calculations!A266,IF(bg_type=$C$56,Calculations!E266)) -> FALSE | C40: =IF(bg_type=$C$55,Calculations!B266,IF(bg_type=$C$56,Calculations!F266)) -> FALSE | G40: 0
A41: =IF(bg_type=$C$55,Calculations!A267,IF(bg_type=$C$56,Calculations!E267)) -> FALSE | C41: =IF(bg_type=$C$55,Calculations!B267,IF(bg_type=$C$56,Calculations!F267)) -> FALSE | G41: 0
A42: =IF(bg_type=$C$55,Calculations!A268,IF(bg_type=$C$56,Calculations!E268)) -> FALSE | C42: =IF(bg_type=$C$55,Calculations!B268,IF(bg_type=$C$56,Calculations!F268)) -> FALSE | G42: 0
A43: =IF(bg_type=$C$55,Calculations!A269,IF(bg_type=$C$56,Calculations!E269)) -> FALSE | C43: =IF(bg_type=$C$55,Calculations!B269,IF(bg_type=$C$56,Calculations!F269)) -> FALSE | G43: 0
A44: =IF(bg_type=$C$55,Calculations!A270,IF(bg_type=$C$56,Calculations!E270)) -> FALSE | C44: =IF(bg_type=$C$55,Calculations!B270,IF(bg_type=$C$56,Calculations!F270)) -> FALSE | G44: 0
A45: Sum = | G45: =ROUND(G36+SUM(G37:G44),-1) -> 0
A47: =I47 -> 0 | B47: =J47 -> 0 | C47: =K47 -> 0
A53: List of Project Type | B53: Area Type | C53: Project Type + Urban Type
A54: =UnitCostSpreadsheet!B38 -> N/A | B54: =UnitCostSpreadsheet!C38 -> 0 | C54: =UnitCostSpreadsheet!D38 -> N/A
A55: =UnitCostSpreadsheet!B39 -> Bridge Replacements | B55: =UnitCostSpreadsheet!C39 -> 0 | C55: =UnitCostSpreadsheet!D39 -> Bridge Replacements
A56: =UnitCostSpreadsheet!B40 -> New Bridge | B56: =UnitCostSpreadsheet!C40 -> 0 | C56: =UnitCostSpreadsheet!D40 -> New Bridge

Sheet NonMotorized
A1: ATLANTA REGIONAL COMMISSION | J1: =INDEX(ReverseOrder,J3) -> 
A2: PLANNING LEVEL COST ESTIMATION TOOL | J2: =MID(CELL("filename",A1),FIND("]",CELL("filename",A1))+1,LEN(CELL("filename",A1))-FIND("]",CELL("filename",A1))) -> NonMotorized
A3: Non-Motorized Elements (Sidewalks, Trails, Bike Lanes) | J3: =MATCH(J2,ReverseOrder,0)+1 -> 
A5: Project Name: | B5: =ProjectInformation!B6 -> 0 | F5: ARC Project ID: | G5: =ProjectInformation!E6 -> 0
A6: From Limit: | B6: =ProjectInformation!B8 -> 0 | F6: To Limit: | G6: =ProjectInformation!E8 -> 0
A7: County: | B7: =ProjectInformation!B10 -> Hall | F7: Area: | G7: =ProjectInformation!E10 -> 0
A9: Enter the unit of multi-use trail or sidewalk to be built in the project.
A10: Non-Motorized Elements | G10: Length (Mile)
A11: N/A | G11: 0
A13: You can use default per lane-mile cost or enter projects specific components for cost estimation. Please select one of the options in the cell highlighted in green below.
B14: Make Selection Below | C14: =IF(NvDefault="Use default per mile cost", "Default Unit Cost is", "") -> Default Unit Cost is | G14: Total Non-Motorized Elements Cost
B15: Use default per mile cost | C15: =IF(nv_type=$C$54,UnitCostSpreadsheet!E42,IF(nv_type=$C$55,UnitCostSpreadsheet!E43,IF(nv_type=$C$56,UnitCostSpreadsheet!E44,IF(nv_type=$C$57,UnitCostSpreadsheet!E45)))*I15) -> 0 | G15: =IF(NvDefault="Use default per mile cost",nv_df_ucost*nv_length,G45*nv_length) -> 0 | I15: =IF(NvDefault="Use default per mile cost",1,0) -> 1
A23: The following table provides the detailed information (specific components, cost/unit and quantities) used to develop the default per mile unit cost. If you wish to customize the default unit cost estimates, please revise specific components, unit costs and quantities in the override cells shaded in yellow. Please note that the tool will add markups to the overall project cost. Adjust percentages as appropriate.
A25: Specific Components | B25: Specific Components Override | C25: Cost/Unit | D25: Cost/Unit Override | E25: Quantity | F25: Quantity Override | G25: Costs
A26: =IF(nv_type=$C$54,Calculations!A285,IF(nv_type=$C$55,Calculations!E285,IF(nv_type=$C$56,Calculations!I285,IF(nv_type=$C$57,Calculations!M285)))) -> FALSE | C26: =IF(nv_type=$C$54,Calculations!B285,IF(nv_type=$C$55,Calculations!F285,IF(nv_type=$C$56,Calculations!J285,IF(nv_type=$C$57,Calculations!N285)))) -> FALSE | E26: =IF(nv_type=$C$54,Calculations!C285,IF(nv_type=$C$55,Calculations!G285,IF(nv_type=$C$56,Calculations!K285,IF(nv_type=$C$57,Calculations!O285)))) -> FALSE | G26: =IF(AND(D26>0,F26>0)=TRUE,D26*F26,IF(D26>0,D26*E26,IF(F26>0,F26*C26,C26*E26))) -> 0
A27: =IF(nv_type=$C$54,Calculations!A286,IF(nv_type=$C$55,Calculations!E286,IF(nv_type=$C$56,Calculations!I286,IF(nv_type=$C$57,Calculations!M286)))) -> FALSE | C27: =IF(nv_type=$C$54,Calculations!B286,IF(nv_type=$C$55,Calculations!F286,IF(nv_type=$C$56,Calculations!J286,IF(nv_type=$C$57,Calculations!N286)))) -> FALSE | E27: =IF(nv_type=$C$54,Calculations!C286,IF(nv_type=$C$55,Calculations!G286,IF(nv_type=$C$56,Calculations!K286,IF(nv_type=$C$57,Calculations!O286)))) -> FALSE | G27: =IF(AND(D27>0,F27>0)=TRUE,D27*F27,IF(D27>0,D27*E27,IF(F27>0,F27*C27,C27*E27))) -> 0
A28: =IF(nv_type=$C$54,Calculations!A287,IF(nv_type=$C$55,Calculations!E287,IF(nv_type=$C$56,Calculations!I287,IF(nv_type=$C$57,Calculations!M287)))) -> FALSE | C28: =IF(nv_type=$C$54,Calculations!B287,IF(nv_type=$C$55,Calculations!F287,IF(nv_type=$C$56,Calculations!J287,IF(nv_type=$C$57,Calculations!N287)))) -> FALSE | E28: =IF(nv_type=$C$54,Calculations!C287,IF(nv_type=$C$55,Calculations!G287,IF(nv_type=$C$56,Calculations!K287,IF(nv_type=$C$57,Calculations!O287)))) -> FALSE | G28: 0
A29: =IF(nv_type=$C$54,Calculations!A288,IF(nv_type=$C$55,Calculations!E288,IF(nv_type=$C$56,Calculations!I288,IF(nv_type=$C$57,Calculations!M288)))) -> FALSE | C29: =IF(nv_type=$C$54,Calculations!B288,IF(nv_type=$C$55,Calculations!F288,IF(nv_type=$C$56,Calculations!J288,IF(nv_type=$C$57,Calculations!N288)))) -> FALSE | E29: =IF(nv_type=$C$54,Calculations!C288,IF(nv_type=$C$55,Calculations!G288,IF(nv_type=$C$56,Calculations!K288,IF(nv_type=$C$57,Calculations!O288)))) -> FALSE | G29: 0
A30: =IF(nv_type=$C$54,Calculations!A289,IF(nv_type=$C$55,Calculations!E289,IF(nv_type=$C$56,Calculations!I289,IF(nv_type=$C$57,Calculations!M289)))) -> FALSE | C30: =IF(nv_type=$C$54,Calculations!B289,IF(nv_type=$C$55,Calculations!F289,IF(nv_type=$C$56,Calculations!J289,IF(nv_type=$C$57,Calculations!N289)))) -> FALSE | E30: =IF(nv_type=$C$54,Calculations!C289,IF(nv_type=$C$55,Calculations!G289,IF(nv_type=$C$56,Calculations!K289,IF(nv_type=$C$57,Calculations!O289)))) -> FALSE | G30: 0
A31: =IF(nv_type=$C$54,Calculations!A290,IF(nv_type=$C$55,Calculations!E290,IF(nv_type=$C$56,Calculations!I290,IF(nv_type=$C$57,Calculations!M290)))) -> FALSE | C31: =IF(nv_type=$C$54,Calculations!B290,IF(nv_type=$C$55,Calculations!F290,IF(nv_type=$C$56,Calculations!J290,IF(nv_type=$C$57,Calculations!N290)))) -> FALSE | E31: =IF(nv_type=$C$54,Calculations!C290,IF(nv_type=$C$55,Calculations!G290,IF(nv_type=$C$56,Calculations!K290,IF(nv_type=$C$57,Calculations!O290)))) -> FALSE | G31: 0
A32: =IF(nv_type=$C$54,Calculations!A291,IF(nv_type=$C$55,Calculations!E291,IF(nv_type=$C$56,Calculations!I291,IF(nv_type=$C$57,Calculations!M291)))) -> FALSE | C32: =IF(nv_type=$C$54,Calculations!B291,IF(nv_type=$C$55,Calculations!F291,IF(nv_type=$C$56,Calculations!J291,IF(nv_type=$C$57,Calculations!N291)))) -> FALSE | E32: =IF(nv_type=$C$54,Calculations!C291,IF(nv_type=$C$55,Calculations!G291,IF(nv_type=$C$56,Calculations!K291,IF(nv_type=$C$57,Calculations!O291)))) -> FALSE | G32: 0
A33: =IF(nv_type=$C$54,Calculations!A292,IF(nv_type=$C$55,Calculations!E292,IF(nv_type=$C$56,Calculations!I292,IF(nv_type=$C$57,Calculations!M292)))) -> FALSE | C33: =IF(nv_type=$C$54,Calculations!B292,IF(nv_type=$C$55,Calculations!F292,IF(nv_type=$C$56,Calculations!J292,IF(nv_type=$C$57,Calculations!N292)))) -> FALSE | E33: =IF(nv_type=$C$54,Calculations!C292,IF(nv_type=$C$55,Calculations!G292,IF(nv_type=$C$56,Calculations!K292,IF(nv_type=$C$57,Calculations!O292)))) -> FALSE | G33: 0
A34: =IF(nv_type=$C$54,Calculations!A293,IF(nv_type=$C$55,Calculations!E293,IF(nv_type=$C$56,Calculations!I293,IF(nv_type=$C$57,Calculations!M293)))) -> FALSE | C34: =IF(nv_type=$C$54,Calculations!B293,IF(nv_type=$C$55,Calculations!F293,IF(nv_type=$C$56,Calculations!J293,IF(nv_type=$C$57,Calculations!N293)))) -> FALSE | E34: =IF(nv_type=$C$54,Calculations!C293,IF(nv_type=$C$55,Calculations!G293,IF(nv_type=$C$56,Calculations!K293,IF(nv_type=$C$57,Calculations!O293)))) -> FALSE | G34: 0
A35: =IF(nv_type=$C$54,Calculations!A294,IF(nv_type=$C$55,Calculations!E294,IF(nv_type=$C$56,Calculations!I294,IF(nv_type=$C$57,Calculations!M294)))) -> FALSE | C35: =IF(nv_type=$C$54,Calculations!B294,IF(nv_type=$C$55,Calculations!F294,IF(nv_type=$C$56,Calculations!J294,IF(nv_type=$C$57,Calculations!N294)))) -> FALSE | E35: =IF(nv_type=$C$54,Calculations!C294,IF(nv_type=$C$55,Calculations!G294,IF(nv_type=$C$56,Calculations!K294,IF(nv_type=$C$57,Calculations!O294)))) -> FALSE | G35: 0
A36: Sum = | G36: =SUM(G26:G35) -> 0
A37: Mark-up Items | C37: Default Percentage | E37: Override Percentage | G37: Costs
A38: =IF(nv_type=$C$54,Calculations!A296,IF(nv_type=$C$55,Calculations!E296,IF(nv_type=$C$56,Calculations!I296,IF(nv_type=$C$57,Calculations!M296)))) -> FALSE | C38: =IF(nv_type=$C$54,Calculations!B296,IF(nv_type=$C$55,Calculations!F296,IF(nv_type=$C$56,Calculations!J296,IF(nv_type=$C$57,Calculations!N296)))) -> FALSE | G38: =IF(E38>0, E38*G$36, C38*G$36) -> 0
A39: =IF(nv_type=$C$54,Calculations!A297,IF(nv_type=$C$55,Calculations!E297,IF(nv_type=$C$56,Calculations!I297,IF(nv_type=$C$57,Calculations!M297)))) -> FALSE | C39: =IF(nv_type=$C$54,Calculations!B297,IF(nv_type=$C$55,Calculations!F297,IF(nv_type=$C$56,Calculations!J297,IF(nv_type=$C$57,Calculations!N297)))) -> FALSE | G39: 0
A40: =IF(nv_type=$C$54,Calculations!A298,IF(nv_type=$C$55,Calculations!E298,IF(nv_type=$C$56,Calculations!I298,IF(nv_type=$C$57,Calculations!M298)))) -> FALSE | C40: =IF(nv_type=$C$54,Calculations!B298,IF(nv_type=$C$55,Calculations!F298,IF(nv_type=$C$56,Calculations!J298,IF(nv_type=$C$57,Calculations!N298)))) -> FALSE | G40: 0
A41: =IF(nv_type=$C$54,Calculations!A299,IF(nv_type=$C$55,Calculations!E299,IF(nv_type=$C$56,Calculations!I299,IF(nv_type=$C$57,Calculations!M299)))) -> FALSE | C41: =IF(nv_type=$C$54,Calculations!B299,IF(nv_type=$C$55,Calculations!F299,IF(nv_type=$C$56,Calculations!J299,IF(nv_type=$C$57,Calculations!N299)))) -> FALSE | G41: 0
A42: =IF(nv_type=$C$54,Calculations!A300,IF(nv_type=$C$55,Calculations!E300,IF(nv_type=$C$56,Calculations!I300,IF(nv_type=$C$57,Calculations!M300)))) -> FALSE | C42: =IF(nv_type=$C$54,Calculations!B300,IF(nv_type=$C$55,Calculations!F300,IF(nv_type=$C$56,Calculations!J300,IF(nv_type=$C$57,Calculations!N300)))) -> FALSE | G42: 0
A43: =IF(nv_type=$C$54,Calculations!A301,IF(nv_type=$C$55,Calculations!E301,IF(nv_type=$C$56,Calculations!I301,IF(nv_type=$C$57,Calculations!M301)))) -> FALSE | C43: =IF(nv_type=$C$54,Calculations!B301,IF(nv_type=$C$55,Calculations!F301,IF(nv_type=$C$56,Calculations!J301,IF(nv_type=$C$57,Calculations!N301)))) -> FALSE | G43: 0
A44: =IF(nv_type=$C$54,Calculations!A302,IF(nv_type=$C$55,Calculations!E302,IF(nv_type=$C$56,Calculations!I302,IF(nv_type=$C$57,Calculations!M302)))) -> FALSE | C44: =IF(nv_type=$C$54,Calculations!B302,IF(nv_type=$C$55,Calculations!F302,IF(nv_type=$C$56,Calculations!J302,IF(nv_type=$C$57,Calculations!N302)))) -> FALSE | G44: 0
A45: Sum = | G45: =ROUND(SUM(G38:G44)+G36,-3) -> 0
A47: =I47 -> 0 | B47: =J47 -> 0 | C47: =K47 -> 0
A52: List of Project Type | B52: Area Type | C52: Project Type + Urban Type
A53: =UnitCostSpreadsheet!B41 -> N/A | B53: =UnitCostSpreadsheet!C41 -> 0 | C53: =UnitCostSpreadsheet!D41 -> N/A
A54: =UnitCostSpreadsheet!B42 -> Multi-Use Trails (Assume 10' wide) - Asphalt | B54: =UnitCostSpreadsheet!C42 -> 0 | C54: =UnitCostSpreadsheet!D42 -> Multi-Use Trails (Assume 10' wide) - Asphalt
A55: =UnitCostSpreadsheet!B43 -> Multi-Use Trails (Assume 10' Wide) - Concrete | B55: =UnitCostSpreadsheet!C43 -> 0 | C55: =UnitCostSpreadsheet!D43 -> Multi-Use Trails (Assume 10' Wide) - Concrete
A56: =UnitCostSpreadsheet!B44 -> Sidewalks Along Project | B56: =UnitCostSpreadsheet!C44 -> 0 | C56: =UnitCostSpreadsheet!D44 -> Sidewalks Along Project
A57: =UnitCostSpreadsheet!B45 -> Bike Lanes | B57: =UnitCostSpreadsheet!C45 -> 0 | C57: =UnitCostSpreadsheet!D45 -> Bike Lanes

Sheet Walls
A1: ATLANTA REGIONAL COMMISSION | I1: =INDEX(ReverseOrder,I3) -> 
A2: PLANNING LEVEL COST ESTIMATION TOOL | I2: =MID(CELL("filename",A1),FIND("]",CELL("filename",A1))+1,LEN(CELL("filename",A1))-FIND("]",CELL("filename",A1))) -> Walls
A3: Walls (Sound Barrier, Retaining) | I3: =MATCH(I2,ReverseOrder,0)+1 -> 
A5: Project Name: | B5: =ProjectInformation!B6 -> 0 | F5: ARC Project ID: | G5: =ProjectInformation!E6 -> 0
A6: From Limit: | B6: =ProjectInformation!B8 -> 0 | F6: To Limit: | G6: =ProjectInformation!E8 -> 0
A7: County: | B7: =ProjectInformation!B10 -> Hall | F7: Area: | G7: =ProjectInformation!E10 -> 0
A9: Enter description and unit of walls to be built.
A10: Walls | G10: Length (Mile)
A11: N/A | G11: 0
A13: You can use default per lane-mile cost or enter projects specific components for cost estimation. Please select one of the options in the cell highlighted in green below.
B14: Make Selection Below | C14: =IF(WallDefault="Use default per mile cost", "Default Unit Cost is", "") -> Default Unit Cost is | G14: Total Wall Cost
B15: Use default per mile cost | C15: =IF(wall_type=$C$38,UnitCostSpreadsheet!E47,IF(wall_type=$C$39,UnitCostSpreadsheet!E48,UnitCostSpreadsheet!E46))*H15 -> 0 | G15: =IF(WallDefault="Use default per mile cost",wall_df_ucost*wall_length,G32*wall_length) -> 0 | H15: =IF(WallDefault="Use default per mile cost",1,0) -> 1
A19: The following table provides the detailed information (specific components, cost/unit and quantities) used to develop the default per mile unit cost. If you wish to customize the default unit cost estimates, please revise specific components, unit costs and quantities in the override cells shaded in yellow. Please note that the tool will add markups to the overall project cost. Adjust percentages as appropriate.
A21: Specific Components | B21: Specific Components Override | C21: Cost/Unit | D21: Cost/Unit Override | E21: Quantity | F21: Quantity Override | G21: Costs
A22: =IF(wall_type=$C$38,Calculations!A318,IF(wall_type=$C$39,Calculations!E318)) -> FALSE | C22: =IF(wall_type=$C$38,Calculations!B318,IF(wall_type=$C$39,Calculations!F318)) -> FALSE | E22: =IF(wall_type=$C$38,Calculations!C318,IF(wall_type=$C$39,Calculations!G318)) -> FALSE | G22: =IF(AND(D22>0,F22>0)=TRUE,D22*F22,IF(D22>0,D22*E22,IF(F22>0,F22*C22,C22*E22))) -> 0
A23: =IF(wall_type=$C$38,Calculations!A319,IF(wall_type=$C$39,Calculations!E319)) -> FALSE | C23: =IF(wall_type=$C$38,Calculations!B319,IF(wall_type=$C$39,Calculations!F319)) -> FALSE | E23: =IF(wall_type=$C$38,Calculations!C319,IF(wall_type=$C$39,Calculations!G319)) -> FALSE | G23: =IF(AND(D23>0,F23>0)=TRUE,D23*F23,IF(D23>0,D23*E23,IF(F23>0,F23*C23,C23*E23))) -> 0
A24: =IF(wall_type=$C$38,Calculations!A320,IF(wall_type=$C$39,Calculations!E320)) -> FALSE | C24: =IF(wall_type=$C$38,Calculations!B320,IF(wall_type=$C$39,Calculations!F320)) -> FALSE | E24: =IF(wall_type=$C$38,Calculations!C320,IF(wall_type=$C$39,Calculations!G320)) -> FALSE | G24: 0
A25: =IF(wall_type=$C$38,Calculations!A321,IF(wall_type=$C$39,Calculations!E321)) -> FALSE | C25: =IF(wall_type=$C$38,Calculations!B321,IF(wall_type=$C$39,Calculations!F321)) -> FALSE | E25: =IF(wall_type=$C$38,Calculations!C321,IF(wall_type=$C$39,Calculations!G321)) -> FALSE | G25: 0
A26: =IF(wall_type=$C$38,Calculations!A322,IF(wall_type=$C$39,Calculations!E322)) -> FALSE | C26: =IF(wall_type=$C$38,Calculations!B322,IF(wall_type=$C$39,Calculations!F322)) -> FALSE | E26: =IF(wall_type=$C$38,Calculations!C322,IF(wall_type=$C$39,Calculations!G322)) -> FALSE | G26: 0
A27: =IF(wall_type=$C$38,Calculations!A323,IF(wall_type=$C$39,Calculations!E323)) -> FALSE | C27: =IF(wall_type=$C$38,Calculations!B323,IF(wall_type=$C$39,Calculations!F323)) -> FALSE | E27: =IF(wall_type=$C$38,Calculations!C323,IF(wall_type=$C$39,Calculations!G323)) -> FALSE | G27: 0
A28: =IF(wall_type=$C$38,Calculations!A324,IF(wall_type=$C$39,Calculations!E324)) -> FALSE | C28: =IF(wall_type=$C$38,Calculations!B324,IF(wall_type=$C$39,Calculations!F324)) -> FALSE | E28: =IF(wall_type=$C$38,Calculations!C324,IF(wall_type=$C$39,Calculations!G324)) -> FALSE | G28: 0
A29: =IF(wall_type=$C$38,Calculations!A325,IF(wall_type=$C$39,Calculations!E325)) -> FALSE | C29: =IF(wall_type=$C$38,Calculations!B325,IF(wall_type=$C$39,Calculations!F325)) -> FALSE | E29: =IF(wall_type=$C$38,Calculations!C325,IF(wall_type=$C$39,Calculations!G325)) -> FALSE | G29: 0
A30: =IF(wall_type=$C$38,Calculations!A326,IF(wall_type=$C$39,Calculations!E326)) -> FALSE | C30: =IF(wall_type=$C$38,Calculations!B326,IF(wall_type=$C$39,Calculations!F326)) -> FALSE | E30: =IF(wall_type=$C$38,Calculations!C326,IF(wall_type=$C$39,Calculations!G326)) -> FALSE | G30: 0
A31: =IF(wall_type=$C$38,Calculations!A327,IF(wall_type=$C$39,Calculations!E327)) -> FALSE | C31: =IF(wall_type=$C$38,Calculations!B327,IF(wall_type=$C$39,Calculations!F327)) -> FALSE | E31: =IF(wall_type=$C$38,Calculations!C327,IF(wall_type=$C$39,Calculations!G327)) -> FALSE | G31: 0
A32: Sum = | G32: =SUM(G22:G31) -> 0
A33: =IF(wall_type=$C$38,"Sound Barrier Walls are assumed to be 15' in height",IF(wall_type=$C$39,"Retaining Walls are assumed to be 12' in height")) -> FALSE
A36: List of Project Type | B36: Area Type | C36: Project Type + Urban Type
A37: =UnitCostSpreadsheet!B46 -> N/A | B37: =UnitCostSpreadsheet!C46 -> 0 | C37: =UnitCostSpreadsheet!D46 -> N/A
A38: =UnitCostSpreadsheet!B47 -> Sound Barrier Walls | B38: =UnitCostSpreadsheet!C47 -> 0 | C38: =UnitCostSpreadsheet!D47 -> Sound Barrier Walls
A39: =UnitCostSpreadsheet!B48 -> Retaining Walls | B39: =UnitCostSpreadsheet!C48 -> 0 | C39: =UnitCostSpreadsheet!D48 -> Retaining Walls

Sheet ITS
A1: ATLANTA REGIONAL COMMISSION | J1: =INDEX(ReverseOrder,J3) -> 
A2: PLANNING LEVEL COST ESTIMATION TOOL | J2: =MID(CELL("filename",A1),FIND("]",CELL("filename",A1))+1,LEN(CELL("filename",A1))-FIND("]",CELL("filename",A1))) -> ITS
A3: Intelligent Transportation Systems (ITS) | J3: =MATCH(J2,ReverseOrder,0)+1 -> 
A5: Project Name: | B5: =ProjectInformation!B6 -> 0 | F5: ARC Project ID: | G5: =ProjectInformation!E6 -> 0
A6: From Limit: | B6: =ProjectInformation!B8 -> 0 | F6: To Limit: | G6: =ProjectInformation!E8 -> 0
A7: County: | B7: =ProjectInformation!B10 -> Hall | F7: Area: | G7: =ProjectInformation!E10 -> 0
A9: Enter description and unit of ITS to be built.
A10: ITS | G10: Length (Mile)
A11: N/A | G11: 0
A14: You can use default per lane-mile cost or enter projects specific components for cost estimation. Please select one of the options in the cell highlighted in green below.
B15: Make Selection Below | C15: =IF(ITSDefault="Use default per mile cost", "Default Unit Cost is", "") -> Default Unit Cost is | G15: Total ITS Cost
B16: Use default per mile cost | C16: =IF(its_type=$C$42,UnitCostSpreadsheet!E50,IF(its_type=$C$43,UnitCostSpreadsheet!E51,UnitCostSpreadsheet!E49))*I16 -> 0 | G16: =IF(ITSDefault="Use default per mile cost",its_length*its_df_ucost,its_length*G33) -> 0 | I16: =IF(ITSDefault="Use default per mile cost",1,0) -> 1
A20: The following table provides the detailed information (specific components, cost/unit and quantities) used to develop the default per mile unit cost. If you wish to customize the default unit cost estimates, please revise specific components, unit costs and quantities in the override cells shaded in yellow. Please note that the tool will add markups to the overall project cost. Adjust percentages as appropriate.
A22: Specific Components | B22: Specific Components Override | C22: Cost/Unit | D22: Cost/Unit Override | E22: Quantity | F22: Quantity Override | G22: Costs
A23: =IF(its_type=$C$42,Calculations!A341,IF(its_type=$C$43,Calculations!E341)) -> FALSE | C23: =IF(its_type=$C$42,Calculations!B341,IF(its_type=$C$43,Calculations!F341)) -> FALSE | E23: =IF(its_type=$C$42,Calculations!C341,IF(its_type=$C$43,Calculations!G341)) -> FALSE | G23: =IF(AND(D23>0,F23>0)=TRUE,D23*F23,IF(D23>0,D23*E23,IF(F23>0,F23*C23,C23*E23))) -> 0
A24: =IF(its_type=$C$42,Calculations!A342,IF(its_type=$C$43,Calculations!E342)) -> FALSE | C24: =IF(its_type=$C$42,Calculations!B342,IF(its_type=$C$43,Calculations!F342)) -> FALSE | E24: =IF(its_type=$C$42,Calculations!C342,IF(its_type=$C$43,Calculations!G342)) -> FALSE | G24: =IF(AND(D24>0,F24>0)=TRUE,D24*F24,IF(D24>0,D24*E24,IF(F24>0,F24*C24,C24*E24))) -> 0
A25: =IF(its_type=$C$42,Calculations!A343,IF(its_type=$C$43,Calculations!E343)) -> FALSE | C25: =IF(its_type=$C$42,Calculations!B343,IF(its_type=$C$43,Calculations!F343)) -> FALSE | E25: =IF(its_type=$C$42,Calculations!C343,IF(its_type=$C$43,Calculations!G343)) -> FALSE | G25: 0
A26: =IF(its_type=$C$42,Calculations!A344,IF(its_type=$C$43,Calculations!E344)) -> FALSE | C26: =IF(its_type=$C$42,Calculations!B344,IF(its_type=$C$43,Calculations!F344)) -> FALSE | E26: =IF(its_type=$C$42,Calculations!C344,IF(its_type=$C$43,Calculations!G344)) -> FALSE | G26: 0
A27: =IF(its_type=$C$42,Calculations!A345,IF(its_type=$C$43,Calculations!E345)) -> FALSE | C27: =IF(its_type=$C$42,Calculations!B345,IF(its_type=$C$43,Calculations!F345)) -> FALSE | E27: =IF(its_type=$C$42,Calculations!C345,IF(its_type=$C$43,Calculations!G345)) -> FALSE | G27: 0
A28: =IF(its_type=$C$42,Calculations!A346,IF(its_type=$C$43,Calculations!E346)) -> FALSE | C28: =IF(its_type=$C$42,Calculations!B346,IF(its_type=$C$43,Calculations!F346)) -> FALSE | E28: =IF(its_type=$C$42,Calculations!C346,IF(its_type=$C$43,Calculations!G346)) -> FALSE | G28: 0
A29: =IF(its_type=$C$42,Calculations!A347,IF(its_type=$C$43,Calculations!E347)) -> FALSE | C29: =IF(its_type=$C$42,Calculations!B347,IF(its_type=$C$43,Calculations!F347)) -> FALSE | E29: =IF(its_type=$C$42,Calculations!C347,IF(its_type=$C$43,Calculations!G347)) -> FALSE | G29: 0
A30: =IF(its_type=$C$42,Calculations!A348,IF(its_type=$C$43,Calculations!E348)) -> FALSE | C30: =IF(its_type=$C$42,Calculations!B348,IF(its_type=$C$43,Calculations!F348)) -> FALSE | E30: =IF(its_type=$C$42,Calculations!C348,IF(its_type=$C$43,Calculations!G348)) -> FALSE | G30: 0
A31: =IF(its_type=$C$42,Calculations!A349,IF(its_type=$C$43,Calculations!E349)) -> FALSE | C31: =IF(its_type=$C$42,Calculations!B349,IF(its_type=$C$43,Calculations!F349)) -> FALSE | E31: =IF(its_type=$C$42,Calculations!C349,IF(its_type=$C$43,Calculations!G349)) -> FALSE | G31: 0
A32: =IF(its_type=$C$42,Calculations!A350,IF(its_type=$C$43,Calculations!E350)) -> FALSE | C32: =IF(its_type=$C$42,Calculations!B350,IF(its_type=$C$43,Calculations!F350)) -> FALSE | E32: =IF(its_type=$C$42,Calculations!C350,IF(its_type=$C$43,Calculations!G350)) -> FALSE | G32: 0
A33: Sum = | G33: =SUM(G23:G32) -> 0
A40: List of Project Type | B40: Area Type | C40: Project Type + Urban Type
A41: =UnitCostSpreadsheet!B49 -> N/A | B41: =UnitCostSpreadsheet!C49 -> 0 | C41: =UnitCostSpreadsheet!D49 -> N/A
A42: =UnitCostSpreadsheet!B50 -> ITS - Freeway | B42: =UnitCostSpreadsheet!C50 -> 0 | C42: =UnitCostSpreadsheet!D50 -> ITS - Freeway
A43: =UnitCostSpreadsheet!B51 -> ITS - Arterial | B43: =UnitCostSpreadsheet!C51 -> 0 | C43: =UnitCostSpreadsheet!D51 -> ITS - Arterial

Sheet ROW
A1: ATLANTA REGIONAL COMMISSION | H1: =INDEX(ReverseOrder,H3) -> 
A2: PLANNING LEVEL COST ESTIMATION TOOL | H2: =MID(CELL("filename",A1),FIND("]",CELL("filename",A1))+1,LEN(CELL("filename",A1))-FIND("]",CELL("filename",A1))) -> ROW
A3: Right-of-Way Acquisition | H3: =MATCH(H2,ReverseOrder,0)+1 -> 
A5: Project Name: | B5: =ProjectInformation!B6 -> 0 | D5: ARC Project ID: | E5: =ProjectInformation!E6 -> 0
A6: From Limit: | B6: =ProjectInformation!B8 -> 0 | D6: To Limit: | E6: =ProjectInformation!E8 -> 0
A7: County: | B7: =ProjectInformation!B10 -> Hall | D7: Area: | E7: =ProjectInformation!E10 -> 0
A9: Enter amount of right-of-way take and percentage of land use type impacted by the project.
A10: Area = | B10: 0 | C10: Acre
A12: Right-of-Way Factor
A14: ROW - Land Use Type & Land Use Type | B14: Cost/Acre | C14: % Usage | D14: Cost
A15: Commercial | B15: =VLOOKUP(H15,A39:B118,2,FALSE) -> 350000 | C15: 0 | D15: =ROUND(B$10*B15*C15,-3) -> 0 | H15: =B7 & "_" & A15 -> Hall_Commercial
A16: Residential | B16: =VLOOKUP(H16,A39:B118,2,FALSE) -> 50000 | C16: 0 | D16: =ROUND(B$10*B16*C16,-3) -> 0 | H16: =B7 & "_" & A16 -> Hall_Residential
A17: Agricultural | B17: =VLOOKUP(H17,A39:B118,2,FALSE) -> 25000 | C17: 0 | D17: =ROUND(B$10*B17*C17,-3) -> 0 | H17: =B7 & "_" & A17 -> Hall_Agricultural
A18: Industrial | B18: =VLOOKUP(H18,A39:B126,2,FALSE) -> 150000 | C18: 0 | D18: =ROUND(B$10*B18*C18,-3) -> 0 | H18: =B7 & "_" & A18 -> Hall_Industrial
A19: Total % of Usage | C19: =SUM(C15:C18) -> 0
A20: Displacements | B20: Cost/Unit | C20: Units | D20: Cost
A21: Residential | D21: =B21*C21 -> 0
A22: Business | D22: =B22*C22 -> 0
C23: ROW Costs = | D23: =SUM(D15:D18) +SUM(D21:D22) -> 0
A24: Right-of-Way Factor (including scheduling contingency,admin/court costs, and inflation factor) | C24: Default Factor | D24: =AssumptionPage!B81 -> 2.5
C25: Factor Override
C26: ROW Total Costs = | D26: =IF(row_fac>0,D23*row_fac,row_cost*D24) -> 0
A37: Right of Way Assumption
A38: County & Land Use Type | B38: Cost
A39: =ROWDatabase!B6&"_"&ROWDatabase!$C$5 -> Barrow_Commercial | B39: =ROWDatabase!C6 -> 400000
A40: =ROWDatabase!B7&"_"&ROWDatabase!$C$5 -> Bartow_Commercial | B40: =ROWDatabase!C7 -> 300000
A41: =ROWDatabase!B8&"_"&ROWDatabase!$C$5 -> Carroll_Commercial | B41: =ROWDatabase!C8 -> 400000
A42: =ROWDatabase!B9&"_"&ROWDatabase!$C$5 -> Cherokee_Commercial | B42: =ROWDatabase!C9 -> 400000
A43: =ROWDatabase!B10&"_"&ROWDatabase!$C$5 -> Clayton_Commercial | B43: =ROWDatabase!C10 -> 400000
A44: =ROWDatabase!B11&"_"&ROWDatabase!$C$5 -> Cobb_Commercial | B44: =ROWDatabase!C11 -> 700000
A45: =ROWDatabase!B12&"_"&ROWDatabase!$C$5 -> Coweta_Commercial | B45: =ROWDatabase!C12 -> 200000
A46: =ROWDatabase!B13&"_"&ROWDatabase!$C$5 -> DeKalb_Commercial | B46: =ROWDatabase!C13 -> 700000
A47: =ROWDatabase!B14&"_"&ROWDatabase!$C$5 -> Douglas_Commercial | B47: =ROWDatabase!C14 -> 250000
A48: =ROWDatabase!B15&"_"&ROWDatabase!$C$5 -> Fayette_Commercial | B48: =ROWDatabase!C15 -> 300000
A49: =ROWDatabase!B16&"_"&ROWDatabase!$C$5 -> Forsyth_Commercial | B49: =ROWDatabase!C16 -> 400000
A50: =ROWDatabase!B17&"_"&ROWDatabase!$C$5 -> Fulton - North_Commercial | B50: =ROWDatabase!C17 -> 700000
A51: =ROWDatabase!B18&"_"&ROWDatabase!$C$5 -> Fulton - City of Atlanta_Commercial | B51: =ROWDatabase!C18 -> 2000000
A52: =ROWDatabase!B19&"_"&ROWDatabase!$C$5 -> Fulton - South_Commercial | B52: =ROWDatabase!C19 -> 400000
A53: =ROWDatabase!B20&"_"&ROWDatabase!$C$5 -> Gwinnett_Commercial | B53: =ROWDatabase!C20 -> 400000
A54: =ROWDatabase!B21&"_"&ROWDatabase!$C$5 -> Hall_Commercial | B54: =ROWDatabase!C21 -> 350000
A55: =ROWDatabase!B22&"_"&ROWDatabase!$C$5 -> Henry_Commercial | B55: =ROWDatabase!C22 -> 350000
A56: =ROWDatabase!B23&"_"&ROWDatabase!$C$5 -> Newton_Commercial | B56: =ROWDatabase!C23 -> 350000
A57: =ROWDatabase!B24&"_"&ROWDatabase!$C$5 -> Paulding_Commercial | B57: =ROWDatabase!C24 -> 250000
A58: =ROWDatabase!B25&"_"&ROWDatabase!$C$5 -> Rockdale_Commercial | B58: =ROWDatabase!C25 -> 350000
A59: =ROWDatabase!B26&"_"&ROWDatabase!$C$5 -> Spalding_Commercial | B59: =ROWDatabase!C26 -> 350000
A60: =ROWDatabase!B27&"_"&ROWDatabase!$C$5 -> Walton_Commercial | B60: =ROWDatabase!C27 -> 300000
A61: =ROWDatabase!B6&"_"&ROWDatabase!$D$5 -> Barrow_Residential | B61: =ROWDatabase!D6 -> 50000
A62: =ROWDatabase!B7&"_"&ROWDatabase!$D$5 -> Bartow_Residential | B62: =ROWDatabase!D7 -> 50000
A63: =ROWDatabase!B8&"_"&ROWDatabase!$D$5 -> Carroll_Residential | B63: =ROWDatabase!D8 -> 25000
A64: =ROWDatabase!B9&"_"&ROWDatabase!$D$5 -> Cherokee_Residential | B64: =ROWDatabase!D9 -> 100000
A65: =ROWDatabase!B10&"_"&ROWDatabase!$D$5 -> Clayton_Residential | B65: =ROWDatabase!D10 -> 40000
A66: =ROWDatabase!B11&"_"&ROWDatabase!$D$5 -> Cobb_Residential | B66: =ROWDatabase!D11 -> 150000
A67: =ROWDatabase!B12&"_"&ROWDatabase!$D$5 -> Coweta_Residential | B67: =ROWDatabase!D12 -> 50000
A68: =ROWDatabase!B13&"_"&ROWDatabase!$D$5 -> DeKalb_Residential | B68: =ROWDatabase!D13 -> 150000
A69: =ROWDatabase!B14&"_"&ROWDatabase!$D$5 -> Douglas_Residential | B69: =ROWDatabase!D14 -> 75000
A70: =ROWDatabase!B15&"_"&ROWDatabase!$D$5 -> Fayette_Residential | B70: =ROWDatabase!D15 -> 40000
A71: =ROWDatabase!B16&"_"&ROWDatabase!$D$5 -> Forsyth_Residential | B71: =ROWDatabase!D16 -> 100000
A72: =ROWDatabase!B17&"_"&ROWDatabase!$D$5 -> Fulton - North_Residential | B72: =ROWDatabase!D17 -> 150000
A73: =ROWDatabase!B18&"_"&ROWDatabase!$D$5 -> Fulton - City of Atlanta_Residential | B73: =ROWDatabase!D18 -> 500000
A74: =ROWDatabase!B19&"_"&ROWDatabase!$D$5 -> Fulton - South_Residential | B74: =ROWDatabase!D19 -> 75000
A75: =ROWDatabase!B20&"_"&ROWDatabase!$D$5 -> Gwinnett_Residential | B75: =ROWDatabase!D20 -> 100000
A76: =ROWDatabase!B21&"_"&ROWDatabase!$D$5 -> Hall_Residential | B76: =ROWDatabase!D21 -> 50000
A77: =ROWDatabase!B22&"_"&ROWDatabase!$D$5 -> Henry_Residential | B77: =ROWDatabase!D22 -> 50000
A78: =ROWDatabase!B23&"_"&ROWDatabase!$D$5 -> Newton_Residential | B78: =ROWDatabase!D23 -> 50000
A79: =ROWDatabase!B24&"_"&ROWDatabase!$D$5 -> Paulding_Residential | B79: =ROWDatabase!D24 -> 75000
A80: =ROWDatabase!B25&"_"&ROWDatabase!$D$5 -> Rockdale_Residential | B80: =ROWDatabase!D25 -> 100000
A81: =ROWDatabase!B26&"_"&ROWDatabase!$D$5 -> Spalding_Residential | B81: =ROWDatabase!D26 -> 50000
A82: =ROWDatabase!B27&"_"&ROWDatabase!$D$5 -> Walton_Residential | B82: =ROWDatabase!D27 -> 100000
A83: =ROWDatabase!B6&"_"&ROWDatabase!$E$5 -> Barrow_Agricultural | B83: =ROWDatabase!E6 -> 15000
A84: =ROWDatabase!B7&"_"&ROWDatabase!$E$5 -> Bartow_Agricultural | B84: =ROWDatabase!E7 -> 20000
A85: =ROWDatabase!B8&"_"&ROWDatabase!$E$5 -> Carroll_Agricultural | B85: =ROWDatabase!E8 -> 15000
A86: =ROWDatabase!B9&"_"&ROWDatabase!$E$5 -> Cherokee_Agricultural | B86: =ROWDatabase!E9 -> 50000
A87: =ROWDatabase!B10&"_"&ROWDatabase!$E$5 -> Clayton_Agricultural | B87: =ROWDatabase!E10 -> 25000
A88: =ROWDatabase!B11&"_"&ROWDatabase!$E$5 -> Cobb_Agricultural | B88: =ROWDatabase!E11 -> 75000
A89: =ROWDatabase!B12&"_"&ROWDatabase!$E$5 -> Coweta_Agricultural | B89: =ROWDatabase!E12 -> 20000
A90: =ROWDatabase!B13&"_"&ROWDatabase!$E$5 -> DeKalb_Agricultural | B90: =ROWDatabase!E13 -> 100000
A91: =ROWDatabase!B14&"_"&ROWDatabase!$E$5 -> Douglas_Agricultural | B91: =ROWDatabase!E14 -> 25000
A92: =ROWDatabase!B15&"_"&ROWDatabase!$E$5 -> Fayette_Agricultural | B92: =ROWDatabase!E15 -> 20000
A93: =ROWDatabase!B16&"_"&ROWDatabase!$E$5 -> Forsyth_Agricultural | B93: =ROWDatabase!E16 -> 25000
A94: =ROWDatabase!B17&"_"&ROWDatabase!$E$5 -> Fulton - North_Agricultural | B94: =ROWDatabase!E17 -> 100000
A95: =ROWDatabase!B18&"_"&ROWDatabase!$E$5 -> Fulton - City of Atlanta_Agricultural | B95: =ROWDatabase!E18 -> 25000
A96: =ROWDatabase!B19&"_"&ROWDatabase!$E$5 -> Fulton - South_Agricultural | B96: =ROWDatabase!E19 -> 25000
A97: =ROWDatabase!B20&"_"&ROWDatabase!$E$5 -> Gwinnett_Agricultural | B97: =ROWDatabase!E20 -> 25000
A98: =ROWDatabase!B21&"_"&ROWDatabase!$E$5 -> Hall_Agricultural | B98: =ROWDatabase!E21 -> 25000
A99: =ROWDatabase!B22&"_"&ROWDatabase!$E$5 -> Henry_Agricultural | B99: =ROWDatabase!E22 -> 15000
A100: =ROWDatabase!B23&"_"&ROWDatabase!$E$5 -> Newton_Agricultural | B100: =ROWDatabase!E23 -> 15000
A101: =ROWDatabase!B24&"_"&ROWDatabase!$E$5 -> Paulding_Agricultural | B101: =ROWDatabase!E24 -> 20000
A102: =ROWDatabase!B25&"_"&ROWDatabase!$E$5 -> Rockdale_Agricultural | B102: =ROWDatabase!E25 -> 20000
A103: =ROWDatabase!B26&"_"&ROWDatabase!$E$5 -> Spalding_Agricultural | B103: =ROWDatabase!E26 -> 15000
A104: =ROWDatabase!B27&"_"&ROWDatabase!$E$5 -> Walton_Agricultural | B104: =ROWDatabase!E27 -> 15000
A105: =ROWDatabase!B6&"_"&ROWDatabase!$F$5 -> Barrow_Industrial | B105: =ROWDatabase!F6 -> 75000
A106: =ROWDatabase!B7&"_"&ROWDatabase!$F$5 -> Bartow_Industrial | B106: =ROWDatabase!F7 -> 30000
A107: =ROWDatabase!B8&"_"&ROWDatabase!$F$5 -> Carroll_Industrial | B107: =ROWDatabase!F8 -> 20000
A108: =ROWDatabase!B9&"_"&ROWDatabase!$F$5 -> Cherokee_Industrial | B108: =ROWDatabase!F9 -> 75000
A109: =ROWDatabase!B10&"_"&ROWDatabase!$F$5 -> Clayton_Industrial | B109: =ROWDatabase!F10 -> 50000
A110: =ROWDatabase!B11&"_"&ROWDatabase!$F$5 -> Cobb_Industrial | B110: =ROWDatabase!F11 -> 200000
A111: =ROWDatabase!B12&"_"&ROWDatabase!$F$5 -> Coweta_Industrial | B111: =ROWDatabase!F12 -> 25000
A112: =ROWDatabase!B13&"_"&ROWDatabase!$F$5 -> DeKalb_Industrial | B112: =ROWDatabase!F13 -> 150000
A113: =ROWDatabase!B14&"_"&ROWDatabase!$F$5 -> Douglas_Industrial | B113: =ROWDatabase!F14 -> 100000
A114: =ROWDatabase!B15&"_"&ROWDatabase!$F$5 -> Fayette_Industrial | B114: =ROWDatabase!F15 -> 35000
A115: =ROWDatabase!B16&"_"&ROWDatabase!$F$5 -> Forsyth_Industrial | B115: =ROWDatabase!F16 -> 30000
A116: =ROWDatabase!B17&"_"&ROWDatabase!$F$5 -> Fulton - North_Industrial | B116: =ROWDatabase!F17 -> 200000
A117: =ROWDatabase!B18&"_"&ROWDatabase!$F$5 -> Fulton - City of Atlanta_Industrial | B117: =ROWDatabase!F18 -> 1167000
A118: =ROWDatabase!B19&"_"&ROWDatabase!$F$5 -> Fulton - South_Industrial | B118: =ROWDatabase!F19 -> 100000
A119: =ROWDatabase!B20&"_"&ROWDatabase!$F$5 -> Gwinnett_Industrial | B119: =ROWDatabase!F20 -> 200000
A120: =ROWDatabase!B21&"_"&ROWDatabase!$F$5 -> Hall_Industrial | B120: =ROWDatabase!F21 -> 150000
A121: =ROWDatabase!B22&"_"&ROWDatabase!$F$5 -> Henry_Industrial | B121: =ROWDatabase!F22 -> 75000
A122: =ROWDatabase!B23&"_"&ROWDatabase!$F$5 -> Newton_Industrial | B122: =ROWDatabase!F23 -> 75000
A123: =ROWDatabase!B24&"_"&ROWDatabase!$F$5 -> Paulding_Industrial | B123: =ROWDatabase!F24 -> 100000
A124: =ROWDatabase!B25&"_"&ROWDatabase!$F$5 -> Rockdale_Industrial | B124: =ROWDatabase!F25 -> 125000
A125: =ROWDatabase!B26&"_"&ROWDatabase!$F$5 -> Spalding_Industrial | B125: =ROWDatabase!F26 -> 75000
A126: =ROWDatabase!B27&"_"&ROWDatabase!$F$5 -> Walton_Industrial | B126: =ROWDatabase!F27 -> 75000

Sheet Calculations
A2: Color Code | B2: to be used in Calculations
B3: Final Costs
B4: Default Numbers
B5: GDOT COSTS PER UNIT
A8: Interstate - Asphalt | I8: Surface Street - Asphalt | Q8: Multi-use Pathway - Asphalt
A9: Material | B9: Unit | D9: Cost/Unit | F9: Totals | I9: Material | J9: Unit | L9: Cost/Unit | N9: Totals | Q9: Material | R9: Unit | T9: Cost/Unit | V9: Totals
A10: PEM | B10: 135 | C10: Lb/SY | D10: =GDOT_Prices!$C$6 -> 169.51 | E10: $/Ton | F10: =(B10/2000)*D10 -> 11.441925 | G10: $/SY | I10: 12.5 mm | J10: 165 | K10: Lb/SY | L10: =GDOT_Prices!$C$8 -> 69.02 | M10: $/Ton | N10: =(J10/2000)*L10 -> 5.69415 | O10: $/SY | Q10: 12.5 mm | R10: 220 | S10: Lb/SY | T10: =GDOT_Prices!$C$8 -> 69.02 | U10: $/Ton | V10: =(R10/2000)*T10 -> 7.5922 | W10: $/SY
A11: SMA | B11: 220 | C11: Lb/SY | D11: =GDOT_Prices!$C$5 -> 155.81 | E11: $/Ton | F11: =(B11/2000)*D11 -> 17.1391 | G11: $/SY | I11: 19 mm | J11: 220 | K11: Lb/SY | L11: =GDOT_Prices!$C$9 -> 81.04 | M11: $/Ton | N11: =(J11/2000)*L11 -> 8.9144 | O11: $/SY | Q11: 6 GAB | R11: 6 | S11: In | T11: =GDOT_Prices!$C$3 -> 13.43 | U11: $/SY | V11: =T11 -> 13.43 | W11: $/SY
A12: 19 mm | B12: 440 | C12: Lb/SY | D12: =GDOT_Prices!$C$9 -> 81.04 | E12: $/Ton | F12: =(B12/2000)*D12 -> 17.8288 | G12: $/SY | I12: 25 mm | J12: 440 | K12: Lb/SY | L12: =GDOT_Prices!$C$7 -> 74.66 | M12: $/Ton | N12: =(J12/2000)*L12 -> 16.4252 | O12: $/SY
A13: 25 mm | B13: 1100 | C13: Lb/SY | D13: =GDOT_Prices!$C$7 -> 74.66 | E13: $/Ton | F13: =(B13/2000)*D13 -> 41.063 | G13: $/SY | I13: 12 GAB | J13: 12 | K13: In | L13: =GDOT_Prices!$C$4 -> 52.48 | M13: $/SY | N13: =L13 -> 52.48 | O13: $/SY
A14: 12 GAB | B14: 12 | C14: In | D14: =GDOT_Prices!$C$4 -> 52.48 | E14: $/SY | F14: =D14 -> 52.48 | G14: $/SY | I14: Bitum Tack | J14: 0.06 | K14: Gal/SY | L14: =GDOT_Prices!$C$10 -> 2.59 | M14: $/Gal | N14: =J14*L14*2 -> 0.3108 | O14: $/SY
A15: Bitum Tack | B15: 0.06 | C15: Gal/SY | D15: =GDOT_Prices!$C$10 -> 2.59 | E15: $/Gal | F15: =B15*D15*2 -> 0.3108 | G15: $/SY
A16: SUM = | F16: =SUM(F10:F15) -> 140.263625 | G16: $/SY | I16: SUM = | N16: =SUM(N10:N15) -> 83.82455 | O16: $/SY | Q16: SUM = | V16: =SUM(V10:V15) -> 21.0222 | W16: $/SY
A18: Interstate - Concrete | Q18: Multi-use Pathway - Concrete
A19: Material | B19: Unit | D19: Cost/Unit | F19: Totals | Q19: Material | R19: Unit | T19: Cost/Unit | V19: Totals
A20: Concrete | B20: 12 | C20: In | D20: =GDOT_Prices!$C$13 -> 104.12 | E20: $/SY | F20: =D20 -> 104.12 | G20: $/SY | Q20: Concrete | R20: 6 | S20: In | T20: =GDOT_Prices!$C$15 -> 37.7 | U20: $/SY | V20: =T20 -> 37.7 | W20: $/SY
A21: 19 mm | B21: 330 | C21: Lb/SY | D21: =GDOT_Prices!$C$9 -> 81.04 | E21: $/Ton | F21: =(B21/2000)*D21 -> 13.3716 | G21: $/SY | Q21: 6 GAB | R21: 6 | S21: In | T21: =GDOT_Prices!$C$3 -> 13.43 | U21: $/SY | V21: =T21 -> 13.43 | W21: $/SY
A22: 12 GAB | B22: 12 | C22: In | D22: =GDOT_Prices!$C$4 -> 52.48 | E22: $/SY | F22: =D22 -> 52.48 | G22: $/SY
A23: SUM = | F23: =SUM(F20:F22) -> 169.9716 | G23: $/SY | Q23: SUM = | V23: =SUM(V20:V22) -> 51.13 | W23: $/SY
A25: Interstate - Overlay | I25: Surface Street - Overlay
A26: Mill | B26: Variable | C26: SY | D26: =GDOT_Prices!$C$11 -> 3.35 | E26: $/SY | F26: =D26 -> 3.35 | G26: $/SY | I26: Mill | J26: Variable | K26: SY | L26: =GDOT_Prices!$C$11 -> 3.35 | M26: $/SY | N26: =L26 -> 3.35 | O26: $/SY
A27: SMA | B27: 302.5 | C27: Lb/SY | D27: =GDOT_Prices!$C$5 -> 155.81 | E27: $/Ton | F27: =(B27/2000)*D27 -> 23.5662625 | G27: $/SY | I27: 12.5 mm | J27: 220 | K27: Lb/SY | L27: =GDOT_Prices!$C$8 -> 69.02 | M27: $/Ton | N27: =(J27/2000)*L27 -> 7.5922 | O27: $/SY
A28: PEM | B28: 135 | C28: Lb/SY | D28: =GDOT_Prices!$C$6 -> 169.51 | E28: $/Ton | F28: =(B28/2000)*D28 -> 11.441925 | G28: $/SY
A29: SUM = | F29: =SUM(F26:F28) -> 38.3581875 | G29: $/SY | I29: SUM = | N29: =SUM(N26:N28) -> 10.9422 | O29: $/SY
A32: Urban Interstate Widening | J32: Rural Interstate Widening
A33: Length of Roadway | B33: 1 | D33: =IF(C33>0,C33,B33) -> 1 | E33: Miles | F33: =D33*5280 -> 5280 | G33: LF | J33: Length of Roadway | K33: 1 | M33: =IF(L33>0,L33,K33) -> 1 | N33: Miles | O33: =M33*5280 -> 5280 | P33: LF
A34: Existing Number of Lanes | B34: 6 | D34: =IF(C34>0,C34,B34) -> 6 | E34: Ea | F34: =D34*12 -> 72 | G34: Feet | J34: Existing Number of Lanes | K34: 4 | M34: =IF(L34>0,L34,K34) -> 4 | N34: Ea | O34: =M34*12 -> 48 | P34: Feet
A35: Number of Lanes to add | B35: 2 | D35: =IF(C35>0,C35,B35) -> 2 | E35: Ea | F35: =D35*12 -> 24 | G35: Feet | J35: Number of Lanes to add | K35: 2 | M35: =IF(L35>0,L35,K35) -> 2 | N35: Ea | O35: =M35*12 -> 24 | P35: Feet
A36: Inside Shoulder Width = | B36: 10 | D36: =IF(C36>0,C36,B36) -> 10 | E36: LF | F36: =D36*2 -> 20 | G36: Feet | J36: Inside Shoulder Width = | K36: 10 | M36: =IF(L36>0,L36,K36) -> 10 | N36: LF | O36: =M36*2 -> 20 | P36: Feet
A37: Outside Shoulder Width = | B37: 12 | D37: =IF(C37>0,C37,B37) -> 12 | E37: LF | F37: =D37*2 -> 24 | G37: Feet | J37: Outside Shoulder Width = | K37: 12 | M37: =IF(L37>0,L37,K37) -> 12 | N37: LF | O37: =M37*2 -> 24 | P37: Feet
A41: Asphalt | E41: Concrete | J41: Asphalt | N41: Concrete
B42: Cost/Unit | C42: Qty | D42: Costs | F42: Cost/Unit | G42: Qty | H42: Costs | K42: Cost/Unit | L42: Qty | M42: Costs | O42: Cost/Unit | P42: Qty | Q42: Costs
A43: Pavement (SY) | B43: =$F$16 -> 140.263625 | C43: =($F$33*($F$35+$F$36+$F$37))/9 -> 39893.33333 | D43: =B43*C43 -> 5595583.547 | E43: Pavement (SY) | F43: =$F$23 -> 169.9716 | G43: =($F$33*($F$35+$F$36+$F$37))/9 -> 39893.33333 | H43: =F43*G43 -> 6780733.696 | J43: Pavement (SY) | K43: =$F$16 -> 140.263625 | L43: =(O$33*O$35)/9 -> 14080 | M43: =K43*L43 -> 1974911.84 | N43: Pavement (SY) | O43: =$F$23 -> 169.9716 | P43: =(O$33*$F$35)/9 -> 14080 | Q43: =O43*P43 -> 2393200.128
A44: Remove Shoulder (SF) | B44: =GDOT_Prices!$C$18 -> 4.25 | C44: =$F$33*$F$36 -> 105600 | D44: 448800 | E44: Remove Shoulder (SF) | F44: =GDOT_Prices!$C$18 -> 4.25 | G44: =$F$33*$F$36*2 -> 211200 | H44: 897600 | J44: Remove Shoulder (SF) | K44: =GDOT_Prices!$C$18 -> 4.25 | L44: =O$33*4 -> 21120 | M44: 89760 | N44: Remove Shoulder (SF) | O44: =GDOT_Prices!$C$18 -> 4.25 | P44: =O$33*4 -> 21120 | Q44: 89760
A45: Mill & Overlay (SY) | B45: =$F$29 -> 38.3581875 | C45: =($F$33*($F$34+$F$37))/9 -> 56320 | D45: 2160333.12 | E45: Mill & Overlay (SY) | F45: =$F$29 -> 38.3581875 | G45: =($F$33*($F$34+$F$37))/9 -> 56320 | H45: 2160333.12 | J45: Mill & Overlay (SY) | K45: =$F$29 -> 38.3581875 | L45: =(O$33*O$34)/9 -> 28160 | M45: 1080166.56 | N45: Mill & Overlay (SY) | O45: =$F$29 -> 38.3581875 | P45: =(O$33*O$34)/9 -> 28160 | Q45: 1080166.56
A46: Median Barrier | B46: =GDOT_Prices!$C$19 -> 50.75 | C46: =$F$33 -> 5280 | D46: 267960 | E46: Median Barrier | F46: =GDOT_Prices!$C$19 -> 50.75 | G46: =$F$33 -> 5280 | H46: 267960 | J46: Guardrail (LF) | K46: =GDOT_Prices!$C$22+GDOT_Prices!$C$12 -> 33.14 | L46: =O$33 -> 5280 | M46: 174979.2 | N46: Guardrail (LF) | O46: =GDOT_Prices!$C$22+GDOT_Prices!$C$12 -> 33.14 | P46: =O$33 -> 5280 | Q46: 174979.2
A47: Glare Screen (LF) | B47: =GDOT_Prices!$C$26 -> 32.66 | C47: =$F$33 -> 5280 | D47: 172444.8 | E47: Glare Screen (LF) | F47: =GDOT_Prices!$C$26 -> 32.66 | G47: =$F$33 -> 5280 | H47: 172444.8 | J47: Type 12 Anchor (ea) | K47: =GDOT_Prices!$C$25 -> 1918.18 | L47: =ROUND(L$46/500,0) -> 11 | M47: 21099.98 | N47: Type 12 Anchor (ea) | O47: =GDOT_Prices!$C$25 -> 1918.18 | P47: =ROUND(P$46/500,0) -> 11 | Q47: 21099.98
A48: Guardrail (LF) | B48: =GDOT_Prices!$C$22+GDOT_Prices!$C$12 -> 33.14 | C48: =$F$33/2 -> 2640 | D48: 87489.6 | E48: Guardrail (LF) | F48: =GDOT_Prices!$C$22+GDOT_Prices!$C$12 -> 33.14 | G48: =$F$33/2 -> 2640 | H48: 87489.6 | J48: Type 1 Anchor (ea) | K48: =GDOT_Prices!$C$23 -> 703.4 | L48: =L47 -> 11 | M48: 7737.4 | N48: Type 1 Anchor (ea) | O48: =GDOT_Prices!$C$23 -> 703.4 | P48: =P47 -> 11 | Q48: 7737.4
A49: Type 12 Anchor (ea) | B49: =GDOT_Prices!$C$25 -> 1918.18 | C49: =ROUND(C$48/500,0) -> 5 | D49: 9590.9 | E49: Type 12 Anchor (ea) | F49: =GDOT_Prices!$C$25 -> 1918.18 | G49: =ROUND(G$48/500,0) -> 5 | H49: 9590.9 | J49: User-Defined Item | N49: User-Defined Item
A50: Type 1 Anchor (ea) | B50: =GDOT_Prices!$C$23 -> 703.4 | C50: =C49 -> 5 | D50: 3517 | E50: Type 1 Anchor (ea) | F50: =GDOT_Prices!$C$23 -> 703.4 | G50: =G49 -> 5 | H50: 3517 | J50: User-Defined Item | N50: User-Defined Item
A51: User-Defined Item | E51: User-Defined Item | J51: User-Defined Item | N51: User-Defined Item
A52: User-Defined Item | E52: User-Defined Item | J52: User-Defined Item | N52: User-Defined Item
A53: Sum = | D53: =SUM(D43:D52) -> 8745718.967 | E53: Sum = | H53: =SUM(H43:H52) -> 10379669.12 | J53: Sum = | M53: =SUM(M43:M52) -> 3348654.98 | N53: Sum = | Q53: =SUM(Q43:Q52) -> 3766943.268
A54: Earthwork | B54: =AssumptionPage!B6 -> 0.15 | D54: =B54*D$53 -> 1311857.845 | E54: Earthwork | F54: =AssumptionPage!B6 -> 0.15 | H54: =F54*H$53 -> 1556950.367 | J54: Earthwork | K54: =AssumptionPage!C6 -> 0.15 | M54: =K54*M$53 -> 502298.247 | N54: Earthwork | O54: =AssumptionPage!C6 -> 0.15 | Q54: =O54*Q$53 -> 565041.4902
A55: Drainage | B55: =AssumptionPage!B7 -> 0.05 | D55: =B55*D$53 -> 437285.9483 | E55: Drainage | F55: =AssumptionPage!B7 -> 0.05 | H55: =F55*H$53 -> 518983.4558 | J55: Drainage | K55: =AssumptionPage!C7 -> 0.05 | M55: 167432.749 | N55: Drainage | O55: =AssumptionPage!C7 -> 0.05 | Q55: =O55*Q$53 -> 188347.1634
A56: Erosion Control | B56: =AssumptionPage!B8 -> 0.05 | D56: 437285.9483 | E56: Erosion Control | F56: =AssumptionPage!B8 -> 0.05 | H56: 518983.4558 | J56: Erosion Control | K56: =AssumptionPage!C8 -> 0.05 | M56: 167432.749 | N56: Erosion Control | O56: =AssumptionPage!C8 -> 0.05 | Q56: 188347.1634
A57: Signs | B57: =AssumptionPage!B9 -> 0.06 | D57: 524743.138 | E57: Signs | F57: =AssumptionPage!B9 -> 0.06 | H57: 622780.147 | J57: Signs | K57: =AssumptionPage!C9 -> 0.06 | M57: 200919.2988 | N57: Signs | O57: =AssumptionPage!C9 -> 0.06 | Q57: 226016.5961
A58: Pavement Marking | B58: =AssumptionPage!B10 -> 0.03 | D58: 262371.569 | E58: Pavement Marking | F58: =AssumptionPage!B10 -> 0.03 | H58: 311390.0735 | J58: Pavement Marking | K58: =AssumptionPage!C10 -> 0.03 | M58: 100459.6494 | N58: Pavement Marking | O58: =AssumptionPage!C10 -> 0.03 | Q58: 113008.298
A59: Traffic Control | B59: =AssumptionPage!B11 -> 0.25 | D59: 2186429.742 | E59: Traffic Control | F59: =AssumptionPage!B11 -> 0.25 | H59: 2594917.279 | J59: Traffic Control | K59: =AssumptionPage!C11 -> 0.25 | M59: 837163.745 | N59: Traffic Control | O59: =AssumptionPage!C11 -> 0.25 | Q59: 941735.817
A60: Utility | B60: =AssumptionPage!B12 -> 0.03 | D60: 262371.569 | E60: Utility | F60: =AssumptionPage!B12 -> 0.03 | H60: 311390.0735 | J60: Utility | K60: =AssumptionPage!C12 -> 0.03 | M60: 100459.6494 | N60: Utility | O60: =AssumptionPage!C12 -> 0.03 | Q60: 113008.298
A61: Subtotal = | D61: =ROUND(SUM(D53:D60),-3) -> 14168000 | E61: Subtotal = | H61: =ROUND(SUM(H53:H60),-3) -> 16815000 | J61: Subtotal = | M61: =ROUND(SUM(M53:M60),-3) -> 5425000 | N61: Subtotal = | Q61: =ROUND(SUM(Q53:Q60),-3) -> 6102000
C62: Cost / Mile = | D62: =D61 -> 14168000 | G62: Cost / Mile = | H62: =H61 -> 16815000 | L62: Cost / Mile = | M62: =M61 -> 5425000 | P62: Cost / Mile = | Q62: =Q61 -> 6102000
C63: Cost / LN Mile = | D63: =D61/$D33/$D35 -> 7084000 | G63: Cost / LN Mile = | H63: =H61/$D33/$D35 -> 8407500 | L63: Cost / LN Mile = | M63: =M61/$D33/$D35 -> 2712500 | P63: Cost / LN Mile = | Q63: =Q61/$D33/$D35 -> 3051000
A66: Managed Lanes
A67: Length of Roadway | B67: 1 | D67: =IF(C67>0,C67,B67) -> 1 | E67: Miles | F67: =D67*5280 -> 5280 | G67: LF
A68: Existing Number of Lns | B68: 6 | D68: 6 | E68: Ea | F68: =D68*(12) -> 72 | G68: Feet
A69: Number of Managed Lns | B69: 2 | D69: 2 | E69: Ea | F69: =D69*(12) -> 24 | G69: Feet
A70: Outside GP shoulder width | B70: 12 | D70: 12 | E70: LF | F70: =D70*2 -> 24 | G70: Feet
A71: Inside GP Shoulder Width | B71: 10 | D71: 10 | E71: LF | F71: =D71*2 -> 20 | G71: Feet
A72: Outside ML Shoulder Width | B72: 12 | D72: 12 | E72: LF | F72: =D72*2 -> 24 | G72: Feet
A73: Inside ML Shoulder Width | B73: 10 | D73: 10 | E73: LF | F73: =D73*2 -> 20 | G73: Feet
A74: Managed Lane Buffer Seperated - Asphalt | E74: Managed Lane Buffer seperated - Concrete | I74: Managed Lane Barrier Separated - Asphalt | M74: Managed Lane Barrier Separated - Concrete
B75: Cost/Unit | C75: Qty | D75: Costs | F75: Cost/Unit | G75: Qty | H75: Costs | J75: Cost/Unit | K75: Qty | L75: Costs | N75: Cost/Unit | O75: Qty | P75: Costs
A76: Pavement (SY) | B76: =$F$16 -> 140.263625 | C76: =$F$67*($F$69+$F$70)/9 -> 28160 | D76: =B76*C76 -> 3949823.68 | E76: Pavement (SY) | F76: =$F$23 -> 169.9716 | G76: =$F$67*($F$69+$F$70)/9 -> 28160 | H76: =F76*G76 -> 4786400.256 | I76: Pavement (SY) | J76: =$F$16 -> 140.263625 | K76: =$F$67*($F$69+$F$70+$F$71+$F$72)/9 -> 53973.33333 | L76: =J76*K76 -> 7570495.387 | M76: Pavement (SY) | N76: =$F$23 -> 169.9716 | O76: =$F$67*($F$69+$F$70+$F$71+$F$72)/9 -> 53973.33333 | P76: =N76*O76 -> 9173933.824
A77: Remove Shoulder | B77: =GDOT_Prices!$C$18 -> 4.25 | C77: =$F$67*$F$71 -> 105600 | D77: 448800 | E77: Remove Shoulder | F77: =GDOT_Prices!$C$18 -> 4.25 | G77: =$F$67*$F$71 -> 105600 | H77: 448800 | I77: Remove Shoulder | J77: =GDOT_Prices!$C$18 -> 4.25 | K77: =$F$67 -> 5280 | L77: 22440 | M77: Remove Shoulder | N77: =GDOT_Prices!$C$18 -> 4.25 | O77: =$F$67 -> 5280 | P77: 22440
A78: Mill & Overlay (SY) | B78: =$F$29 -> 38.3581875 | C78: =$F$67*($F$68+$F$73)/9 -> 53973.33333 | D78: 2070319.24 | E78: Mill & Overlay (SY) | F78: =$F$29 -> 38.3581875 | G78: =$F$67*($F$68+$F$73)/9 -> 53973.33333 | H78: 2070319.24 | I78: Mill & Overlay (SY) | J78: =$F$29 -> 38.3581875 | K78: =$F$67*($F$68+$F$71+$F$72+$F$73)/9 -> 79786.66667 | L78: 3060471.92 | M78: Mill & Overlay (SY) | N78: =$F$29 -> 38.3581875 | O78: =$F$67*($F$68+$F$71+$F$72+$F$73)/9 -> 79786.66667 | P78: 3060471.92
A79: Guardrail (LF) | B79: =GDOT_Prices!$C$22+GDOT_Prices!$C$12 -> 33.14 | C79: =$F$33/2 -> 2640 | D79: 87489.6 | E79: Guardrail (LF) | F79: =GDOT_Prices!$C$22+GDOT_Prices!$C$12 -> 33.14 | G79: =$F$33/2 -> 2640 | H79: 87489.6 | I79: Median Barrier | J79: =GDOT_Prices!$C$19 -> 50.75 | K79: =$F$67*2 -> 10560 | L79: 535920 | M79: Median Barrier | N79: =GDOT_Prices!$C$19 -> 50.75 | O79: =$F$67*2 -> 10560 | P79: 535920
A80: Type 12 Anchor (ea) | B80: =GDOT_Prices!$C$25 -> 1918.18 | C80: =ROUND(C$48/500,0) -> 5 | D80: 9590.9 | E80: Type 12 Anchor (ea) | F80: =GDOT_Prices!$C$25 -> 1918.18 | G80: =ROUND(G$48/500,0) -> 5 | H80: 9590.9 | I80: Glare Screen (LF) | J80: =GDOT_Prices!$C$26 -> 32.66 | K80: =$F$67*2 -> 10560 | L80: 344889.6 | M80: Glare Screen (LF) | N80: =GDOT_Prices!$C$26 -> 32.66 | O80: =$F$67*2 -> 10560 | P80: 344889.6
A81: Type 1 Anchor (ea) | B81: =GDOT_Prices!$C$23 -> 703.4 | C81: =C80 -> 5 | D81: 3517 | E81: Type 1 Anchor (ea) | F81: =GDOT_Prices!$C$23 -> 703.4 | G81: =G80 -> 5 | H81: 3517 | I81: Guardrail (LF) | J81: =GDOT_Prices!$C$22+GDOT_Prices!$C$12 -> 33.14 | K81: =$F$33/2 -> 2640 | L81: 87489.6 | M81: Guardrail (LF) | N81: =GDOT_Prices!$C$22+GDOT_Prices!$C$12 -> 33.14 | O81: =$F$33/2 -> 2640 | P81: 87489.6
A82: User-Defined Item | E82: User-Defined Item | I82: Type 12 Anchor (ea) | J82: =GDOT_Prices!$C$25 -> 1918.18 | K82: =ROUND(K$49/500,0) -> 0 | L82: 0 | M82: Type 12 Anchor (ea) | N82: =GDOT_Prices!$C$25 -> 1918.18 | O82: =ROUND(O$49/500,0) -> 0 | P82: 0
A83: User-Defined Item | E83: User-Defined Item | I83: Type 1 Anchor (ea) | J83: =GDOT_Prices!$C$23 -> 703.4 | K83: =K82 -> 0 | L83: 0 | M83: Type 1 Anchor (ea) | N83: =GDOT_Prices!$C$23 -> 703.4 | O83: =O82 -> 0 | P83: 0
A84: User-Defined Item | E84: User-Defined Item | I84: User-Defined Item | M84: User-Defined Item
A85: User-Defined Item | E85: User-Defined Item | I85: User-Defined Item | M85: User-Defined Item
A86: Sum = | D86: =SUM(D76:D85) -> 6569540.42 | E86: Sum = | H86: =SUM(H76:H85) -> 7406116.996 | I86: Sum = | L86: =SUM(L76:L85) -> 11621706.51 | M86: Sum = | P86: =SUM(P76:P85) -> 13225144.94
A87: Earthwork | B87: =AssumptionPage!B17 -> 0.2 | D87: =B87*D$86 -> 1313908.084 | E87: Earthwork | F87: =AssumptionPage!B17 -> 0.2 | H87: =F87*H$86 -> 1481223.399 | I87: Earthwork | J87: =AssumptionPage!C17 -> 0.25 | L87: =J87*L$86 -> 2905426.627 | M87: Earthwork | N87: =AssumptionPage!C17 -> 0.25 | P87: =N87*P$86 -> 3306286.236
A88: Drainage | B88: =AssumptionPage!B18 -> 0.07 | D88: =B88*D$86 -> 459867.8294 | E88: Drainage | F88: =AssumptionPage!B18 -> 0.07 | H88: =F88*H$86 -> 518428.1897 | I88: Drainage | J88: =AssumptionPage!C18 -> 0.07 | L88: =J88*L$86 -> 813519.4555 | M88: Drainage | N88: =AssumptionPage!C18 -> 0.07 | P88: =N88*P$86 -> 925760.1461
A89: Erosion Control | B89: =AssumptionPage!B19 -> 0.05 | D89: =B89*D$86 -> 328477.021 | E89: Erosion Control | F89: =AssumptionPage!B19 -> 0.05 | H89: 370305.8498 | I89: Erosion Control | J89: =AssumptionPage!C19 -> 0.05 | L89: 581085.3253 | M89: Erosion Control | N89: =AssumptionPage!C19 -> 0.05 | P89: 661257.2472
A90: Signs | B90: =AssumptionPage!B20 -> 0.08 | D90: 525563.2336 | E90: Signs | F90: =AssumptionPage!B20 -> 0.08 | H90: 592489.3597 | I90: Signs | J90: =AssumptionPage!C20 -> 0.05 | L90: 581085.3253 | M90: Signs | N90: =AssumptionPage!C20 -> 0.05 | P90: 661257.2472
A91: Pavement Marking | B91: =AssumptionPage!B21 -> 0.06 | D91: 394172.4252 | E91: Pavement Marking | F91: =AssumptionPage!B21 -> 0.06 | H91: 444367.0198 | I91: Pavement Marking | J91: =AssumptionPage!C21 -> 0.06 | L91: 697302.3904 | M91: Pavement Marking | N91: =AssumptionPage!C21 -> 0.06 | P91: 793508.6966
A92: Traffic Control | B92: =AssumptionPage!B22 -> 0.2 | D92: 1313908.084 | E92: Traffic Control | F92: =AssumptionPage!B22 -> 0.2 | H92: 1481223.399 | I92: Traffic Control | J92: =AssumptionPage!C22 -> 0.25 | L92: 2905426.627 | M92: Traffic Control | N92: =AssumptionPage!C22 -> 0.25 | P92: 3306286.236
A93: Utility | B93: =AssumptionPage!B23 -> 0.03 | D93: 197086.2126 | E93: Utility | F93: =AssumptionPage!B23 -> 0.03 | H93: 222183.5099 | I93: Utility | J93: =AssumptionPage!C23 -> 0.03 | L93: 348651.1952 | M93: Utility | N93: =AssumptionPage!C23 -> 0.03 | P93: 396754.3483
A94: Subtotal = | D94: =ROUND(SUM(D86:D93),-3) -> 11103000 | E94: Subtotal = | H94: =ROUND(SUM(H86:H93),-3) -> 12516000 | I94: Subtotal = | L94: =ROUND(SUM(L86:L93),-3) -> 20454000 | M94: Subtotal = | P94: =ROUND(SUM(P86:P93),-3) -> 23276000
C95: Cost / Mile = | D95: =D94 -> 11103000 | G95: Cost / Mile = | H95: =H94 -> 12516000 | K95: Cost / Mile = | L95: =L94 -> 20454000 | N95: 1 | O95: Cost / Mile = | P95: =P94 -> 23276000
C96: Cost / LN Mile = | D96: =D94/$D67/$D69 -> 5551500 | G96: Cost / LN Mile = | H96: =H94/$D67/$D69 -> 6258000 | K96: Cost / LN Mile = | L96: =L94/$D67/$D69 -> 10227000 | O96: Cost / LN Mile = | P96: =P94/$D67/$D69 -> 11638000
A99: General Purpose Roadway Capacity - Urban
A100: Length of Roadway | B100: 1 | D100: =IF(C100>0,C100,B100) -> 1 | E100: Miles | F100: =D100*5280 -> 5280 | G100: LF
A101: Existing Number of Lns | B101: 4 | D101: =IF(C101>0,C101,B101) -> 4 | E101: Ea | F101: =D101*12 -> 48 | G101: Feet
A102: Number of Lanes to add | B102: 2 | D102: =IF(C102>0,C102,B102) -> 2 | E102: Ea | F102: =D102*12 -> 24 | G102: Feet
A103: Median Width | B103: 20 | D103: =IF(C103>0,C103,B103) -> 20 | E103: Feet
A104: Sidewalk Width | B104: 5 | D104: =IF(C104>0,C104,B104) -> 5 | E104: Feet
A107: General Purpose Roadway Widening with Median - Urban | E107: General Purpose Roadway Widening without Median - Urban | I107: New Alignments - Urban | M107: Frontage Rd / Passing Lanes - Urban
B108: Cost/Unit | C108: Qty | D108: Costs | F108: Cost/Unit | G108: Qty | H108: Costs | J108: Cost/Unit | K108: Qty | L108: Costs | N108: Cost/Unit | O108: Qty | P108: Costs
A109: Pavement (SY) | B109: =$N$16 -> 83.82455 | C109: =F100*F102/9 -> 14080 | D109: =B109*C109 -> 1180249.664 | E109: Pavement (SY) | F109: =$N$16 -> 83.82455 | G109: =F100*F102/9 -> 14080 | H109: =F109*G109 -> 1180249.664 | I109: Pavement (SY) | J109: =$N$16 -> 83.82455 | K109: =F100*24/9 -> 14080 | L109: =J109*K109 -> 1180249.664 | M109: Pavement (SY) | N109: =$N$16 -> 83.82455 | O109: =F100*F102/9 -> 14080 | P109: =N109*O109 -> 1180249.664
A110: Mill & Overlay (SY) | B110: =$N$29 -> 10.9422 | C110: =($F$100*$F$101)/9 -> 28160 | D110: =B110*C110 -> 308132.352 | E110: Mill & Overlay (SY) | F110: =$N$29 -> 10.9422 | G110: =($F$100*$F$101)/9 -> 28160 | H110: =F110*G110 -> 308132.352 | I110: Curb & Gutter (LF) | J110: =GDOT_Prices!$C$17+(GDOT_Prices!$C$4*2.5/9) -> 33.76777778 | K110: =$F$100*2 -> 10560 | L110: =J110*K110 -> 356587.7333 | M110: Curb & Gutter (LF) | N110: =GDOT_Prices!$C$17+(GDOT_Prices!$C$4*2.5/9) -> 33.76777778 | O110: =$F$100*2 -> 10560 | P110: =N110*O110 -> 356587.7333
A111: Curb & Gutter (LF) | B111: =GDOT_Prices!$C$17+(GDOT_Prices!$C$4*2.5/9) -> 33.76777778 | C111: =$F$100*4 -> 21120 | D111: =B111*C111 -> 713175.4667 | E111: Curb & Gutter (LF) | F111: =GDOT_Prices!$C$17+(GDOT_Prices!$C$4*2.5/9) -> 33.76777778 | G111: =$F$100*2 -> 10560 | H111: =F111*G111 -> 356587.7333 | I111: Sidewalk (SY) | J111: =GDOT_Prices!$C$14 -> 42.68 | K111: =($F$100*$D$104)/9*2 -> 5866.666667 | L111: =J111*K111 -> 250389.3333 | M111: Sidewalk (SY) | N111: =GDOT_Prices!$C$14 -> 42.68 | O111: =($F$100*$D$104)/9*2 -> 5866.666667 | P111: =N111*O111 -> 250389.3333
A112: Conc. Median (SY) | B112: =GDOT_Prices!$C$16 -> 32.06 | C112: =$F$100*($D$103-2.5*2)/9 -> 8800 | D112: =B112*C112 -> 282128 | E112: Sidewalk (SY) | F112: =GDOT_Prices!$C$14 -> 42.68 | G112: =($F$100*$D$104)/9*2 -> 5866.666667 | H112: =F112*G112 -> 250389.3333 | I112: User-Defined Item | M112: User-Defined Item
A113: Sidewalk (SY) | B113: =GDOT_Prices!$C$14 -> 42.68 | C113: =($F$100*$D$104)/9*2 -> 5866.666667 | D113: =B113*C113 -> 250389.3333 | E113: User-Defined Item | I113: User-Defined Item | M113: User-Defined Item
A114: User-Defined Item | E114: User-Defined Item | I114: User-Defined Item | M114: User-Defined Item
A115: User-Defined Item | E115: User-Defined Item | I115: User-Defined Item | M115: User-Defined Item
A116: User-Defined Item | E116: User-Defined Item | I116: User-Defined Item | M116: User-Defined Item
A117: User-Defined Item | E117: User-Defined Item | I117: User-Defined Item | M117: User-Defined Item
A118: User-Defined Item | E118: User-Defined Item | I118: User-Defined Item | M118: User-Defined Item
A119: Sum = | D119: =SUM(D109:D118) -> 2734074.816 | E119: Sum = | H119: =SUM(H109:H118) -> 2095359.083 | I119: Sum = | L119: =SUM(L109:L118) -> 1787226.731 | M119: Sum = | P119: =SUM(P109:P118) -> 1787226.731
A120: Earthwork | B120: =AssumptionPage!B28 -> 0.75 | D120: =B120*D$119 -> 2050556.112 | E120: Earthwork | F120: =AssumptionPage!B28 -> 0.75 | H120: =F120*H$119 -> 1571519.312 | I120: Earthwork | J120: =AssumptionPage!C28 -> 0.75 | L120: =J120*L$119 -> 1340420.048 | M120: Earthwork | N120: =AssumptionPage!D28 -> 0.65 | P120: =N120*P$119 -> 1161697.375
A121: Drainage | B121: =AssumptionPage!B29 -> 0.18 | D121: =B121*D$119 -> 492133.4669 | E121: Drainage | F121: =AssumptionPage!B29 -> 0.18 | H121: =F121*H$119 -> 377164.6349 | I121: Drainage | J121: =AssumptionPage!C29 -> 0.18 | L121: =J121*L$119 -> 321700.8115 | M121: Drainage | N121: =AssumptionPage!D29 -> 0.18 | P121: =N121*P$119 -> 321700.8115
A122: Erosion Control | B122: =AssumptionPage!B30 -> 0.12 | D122: 328088.9779 | E122: Erosion Control | F122: =AssumptionPage!B30 -> 0.12 | H122: 251443.0899 | I122: Erosion Control | J122: =AssumptionPage!C30 -> 0.12 | L122: 214467.2077 | M122: Erosion Control | N122: =AssumptionPage!D30 -> 0.12 | P122: 214467.2077
A123: Signs | B123: =AssumptionPage!B31 -> 0.01 | D123: 27340.74816 | E123: Signs | F123: =AssumptionPage!B31 -> 0.01 | H123: 20953.59083 | I123: Signs | J123: =AssumptionPage!C31 -> 0.02 | L123: 35744.53461 | M123: Signs | N123: =AssumptionPage!D31 -> 0.05 | P123: 89361.33653
A124: Pavement Marking | B124: =AssumptionPage!B32 -> 0.04 | D124: 109362.9926 | E124: Pavement Marking | F124: =AssumptionPage!B32 -> 0.04 | H124: 83814.36331 | I124: Pavement Marking | J124: =AssumptionPage!C32 -> 0.04 | L124: 71489.06923 | M124: Pavement Marking | N124: =AssumptionPage!D32 -> 0.04 | P124: 71489.06923
A125: Traffic Control | B125: =AssumptionPage!B33 -> 0.15 | D125: 410111.2224 | E125: Traffic Control | F125: =AssumptionPage!B33 -> 0.15 | H125: 314303.8624 | I125: Traffic Control | J125: =AssumptionPage!C33 -> 0.05 | L125: 89361.33653 | M125: Traffic Control | N125: =AssumptionPage!D33 -> 0.2 | P125: 357445.3461
A126: Utility | B126: =AssumptionPage!B34 -> 0.03 | D126: 82022.24448 | E126: Utility | F126: =AssumptionPage!B34 -> 0.03 | H126: 62860.77248 | I126: Utility | J126: =AssumptionPage!C34 -> 0.03 | L126: 53616.80192 | M126: Utility | N126: =AssumptionPage!D34 -> 0.03 | P126: 53616.80192
A127: Subtotal = | D127: =ROUND(SUM(D119:D126),-3) -> 6234000 | E127: Subtotal = | H127: =ROUND(SUM(H119:H126),-3) -> 4777000 | I127: Subtotal = | L127: =ROUND(SUM(L119:L126),-3) -> 3914000 | M127: Subtotal = | P127: =ROUND(SUM(P119:P126),-3) -> 4057000
C128: Cost / Mile = | D128: =D127 -> 6234000 | G128: Cost / Mile = | H128: =H127 -> 4777000 | K128: Cost / Mile = | L128: =L127 -> 3914000 | O128: Cost / Mile = | P128: =P127 -> 4057000
C129: Cost / LN Mile = | D129: =D127/$D100/$D102 -> 3117000 | G129: Cost / LN Mile = | H129: =H127/$D100/$D102 -> 2388500 | K129: Cost / LN Mile = | L129: =L127/$D100 -> 3914000 | O129: Cost / LN Mile = | P129: =P127/$D100/$D102 -> 2028500
A131: General Purpose Roadway Capacity - Rural
A132: Length of Roadway | B132: 1 | D132: =IF(C132>0,C132,B132) -> 1 | E132: Miles | F132: =D132*5280 -> 5280 | G132: LF
A133: Number of Exist Lanes | B133: 2 | D133: =IF(C133>0,C133,B133) -> 2 | E133: Ea | F133: =D133*12 -> 24 | G133: Feet
A134: Number of Lanes to add | B134: 2 | D134: =IF(C134>0,C134,B134) -> 2 | E134: Ea | F134: =D134*12 -> 24 | G134: Feet
A135: Median Width | B135: 24 | D135: =IF(C135>0,C135,B135) -> 24 | E135: Feet
A136: Shoulder Width | B136: 6.5 | D136: =IF(C136>0,C136,B136) -> 6.5 | E136: Feet
A139: General Purpose Roadway Widening with Median - Rural | E139: General Purpose Roadway Widening without Median - Rural | I139: New Alignments - Rural | M139: Frontage Rd / Passing Lanes - Rural
B140: Cost/Unit | C140: Qty | D140: Costs | F140: Cost/Unit | G140: Qty | H140: Costs | J140: Cost/Unit | K140: Qty | L140: Costs | N140: Cost/Unit | O140: Qty | P140: Costs
A141: Pavement (SY) | B141: =$N$16 -> 83.82455 | C141: =($F132*($F134+$D136))/9 -> 17893.33333 | D141: =B141*C141 -> 1499900.615 | E141: Pavement (SY) | F141: =$N$16 -> 83.82455 | G141: =($F132*($F134+$D136))/9 -> 17893.33333 | H141: =F141*G141 -> 1499900.615 | I141: Pavement (SY) | J141: =$N$16 -> 83.82455 | K141: =($F132*(24+$D136))/9 -> 17893.33333 | L141: =J141*K141 -> 1499900.615 | M141: Pavement (SY) | N141: =$N$16 -> 83.82455 | O141: =($F132*($F134+$D136))/9 -> 17893.33333 | P141: =N141*O141 -> 1499900.615
A142: Mill & Overlay (SY) | B142: =$N$29 -> 10.9422 | C142: =($F132*$F133)/9 -> 14080 | D142: =B142*C142 -> 154066.176 | E142: Mill & Overlay (SY) | F142: =$N$29 -> 10.9422 | G142: =($F132*$F133)/9 -> 14080 | H142: =F142*G142 -> 154066.176 | I142: User-Defined Item | M142: User-Defined Item
A143: Curb & Gutter (LF) | B143: =GDOT_Prices!$C$17+(GDOT_Prices!$C$4*2.5/9) -> 33.76777778 | C143: =$F132*2 -> 10560 | D143: =B143*C143 -> 356587.7333 | E143: User-Defined Item | I143: User-Defined Item | M143: User-Defined Item
A144: Conc. Median (SY) | B144: =GDOT_Prices!$C$16 -> 32.06 | C144: =$F132*($D135-2.5*2)/9 -> 11146.66667 | D144: =B144*C144 -> 357362.1333 | E144: User-Defined Item | I144: User-Defined Item | M144: User-Defined Item
A145: User-Defined Item | E145: User-Defined Item | I145: User-Defined Item | M145: User-Defined Item
A146: User-Defined Item | E146: User-Defined Item | I146: User-Defined Item | M146: User-Defined Item
A147: User-Defined Item | E147: User-Defined Item | I147: User-Defined Item | M147: User-Defined Item
A148: User-Defined Item | E148: User-Defined Item | I148: User-Defined Item | M148: User-Defined Item
A149: User-Defined Item | E149: User-Defined Item | I149: User-Defined Item | M149: User-Defined Item
A150: User-Defined Item | E150: User-Defined Item | I150: User-Defined Item | M150: User-Defined Item
A151: Sum = | D151: =SUM(D141:D150) -> 2367916.657 | E151: Sum = | H151: =SUM(H141:H150) -> 1653966.791 | I151: Sum = | L151: =SUM(L141:L150) -> 1499900.615 | M151: Sum = | P151: =SUM(P141:P150) -> 1499900.615
A152: Earthwork | B152: =AssumptionPage!B28 -> 0.75 | D152: =B152*D$151 -> 1775937.493 | E152: Earthwork | F152: =AssumptionPage!B28 -> 0.75 | H152: =F152*H$151 -> 1240475.093 | I152: Earthwork | J152: =AssumptionPage!C28 -> 0.75 | L152: =J152*L$151 -> 1124925.461 | M152: Earthwork | N152: =AssumptionPage!D28 -> 0.65 | P152: =N152*P$151 -> 974935.3995
A153: Drainage | B153: =AssumptionPage!B29 -> 0.18 | D153: =B153*D$151 -> 426224.9983 | E153: Drainage | F153: =AssumptionPage!B29 -> 0.18 | H153: =F153*H$151 -> 297714.0223 | I153: Drainage | J153: =AssumptionPage!C29 -> 0.18 | L153: =J153*L$151 -> 269982.1106 | M153: Drainage | N153: =AssumptionPage!D29 -> 0.18 | P153: =N153*P$151 -> 269982.1106
A154: Erosion Control | B154: =AssumptionPage!B30 -> 0.12 | D154: 284149.9989 | E154: Erosion Control | F154: =AssumptionPage!B30 -> 0.12 | H154: 198476.0149 | I154: Erosion Control | J154: =AssumptionPage!C30 -> 0.12 | L154: 179988.0738 | M154: Erosion Control | N154: =AssumptionPage!D30 -> 0.12 | P154: 179988.0738
A155: Signs | B155: =AssumptionPage!B31 -> 0.01 | D155: 23679.16657 | E155: Signs | F155: =AssumptionPage!B31 -> 0.01 | H155: 16539.66791 | I155: Signs | J155: =AssumptionPage!C31 -> 0.02 | L155: 29998.01229 | M155: Signs | N155: =AssumptionPage!D31 -> 0.05 | P155: 74995.03073
A156: Pavement Marking | B156: =AssumptionPage!B32 -> 0.04 | D156: 94716.66629 | E156: Pavement Marking | F156: =AssumptionPage!B32 -> 0.04 | H156: 66158.67163 | I156: Pavement Marking | J156: =AssumptionPage!C32 -> 0.04 | L156: 59996.02459 | M156: Pavement Marking | N156: =AssumptionPage!D32 -> 0.04 | P156: 59996.02459
A157: Traffic Control | B157: =AssumptionPage!B33 -> 0.15 | D157: 355187.4986 | E157: Traffic Control | F157: =AssumptionPage!B33 -> 0.15 | H157: 248095.0186 | I157: Traffic Control | J157: =AssumptionPage!C33 -> 0.05 | L157: 74995.03073 | M157: Traffic Control | N157: =AssumptionPage!D33 -> 0.2 | P157: 299980.1229
A158: Utility | B158: =AssumptionPage!B34 -> 0.03 | D158: 71037.49972 | E158: Utility | F158: =AssumptionPage!B34 -> 0.03 | H158: 49619.00372 | I158: Utility | J158: =AssumptionPage!C34 -> 0.03 | L158: 44997.01844 | M158: Utility | N158: =AssumptionPage!D34 -> 0.03 | P158: 44997.01844
A159: Subtotal = | D159: =ROUND(SUM(D151:D158),-3) -> 5399000 | E159: Subtotal = | H159: =ROUND(SUM(H151:H158),-3) -> 3771000 | I159: Subtotal = | L159: =ROUND(SUM(L151:L158),-3) -> 3285000 | M159: Subtotal = | P159: =ROUND(SUM(P151:P158),-3) -> 3405000
C160: Cost / Mile = | D160: =D159 -> 5399000 | G160: Cost / Mile = | H160: =H159 -> 3771000 | K160: Cost / Mile = | L160: =L159 -> 3285000 | O160: Cost / Mile = | P160: =P159 -> 3405000
C161: Cost / LN Mile = | D161: =D159/$D132/$D134 -> 2699500 | G161: Cost / LN Mile = | H161: =H159/$D132/$D134 -> 1885500 | K161: Cost / LN Mile = | L161: =L159/$D132/$D134 -> 1642500 | O161: Cost / LN Mile = | P161: =P159/$D132/$D134 -> 1702500
A164: Interchanges & Grade Separations
C165: On Ramp (LF) | D165: Off Ramp (LF) | E165: Ramp Width (LF) | F165: Side Rd Length (LF) | G165: Side Rd Width (LF)
A166: Compressed Diamond Interchange | C166: 2275 | D166: 1200 | E166: =16+8+4 -> 28 | F166: =1000+1000 -> 2000 | G166: =12*4 -> 48
A167: Single Pt Urban Interchange | C167: 2300 | D167: 2875 | E167: =16+8+4 -> 28 | F167: =1000+1000 -> 2000 | G167: =12*4 -> 48
A168: Diamond Interchange | C168: 2800 | D168: 1950 | E168: =16+8+4 -> 28 | F168: 2000 | G168: 48
A169: Half Diamond | C169: 2275 | D169: 1200 | E169: =16+8+4 -> 28 | F169: 2000 | G169: 48
A170: Hov/ML Direct Access Interchange | C170: 1400 | D170: 1400 | E170: =12+4+4 -> 20 | F170: 2000 | G170: 48
A171: Grade Sep - 4 Lanes | C171: 0 | D171: 0 | E171: 0 | F171: 2000 | G171: 48
A172: Grade Sep - 2 Lanes | C172: 0 | D172: 0 | E172: 0 | F172: 2000 | G172: 48
A173: Bridge Cost per SF | C173: 120 | E173: =IF(D173>0,D173,C173) -> 120 | F173: $/SF
A174: Compressed Diamond Interchange | E174: Single Point Urban Interchange | I174: Diamond Interchange | M174: Half Diamond Interchange | Q174: HOV/Managed Lanes Direct Access Interchange | U174: Grade Sep - 4 Lanes | Y174: Grade Sep - 2 Lanes
B175: Cost/Unit | C175: Qty | D175: Costs | F175: Cost/Unit | G175: Qty | H175: Costs | J175: Cost/Unit | K175: Qty | L175: Costs | N175: Cost/Unit | O175: Qty | P175: Costs | R175: Cost/Unit | S175: Qty | T175: Costs | V175: Cost/Unit | W175: Qty | X175: Costs | Z175: Cost/Unit | AA175: Qty | AB175: Costs
A176: Pavement (SY) - Interstate | B176: =$F$23 -> 169.9716 | C176: =(((C166+D166)*2)*E166)/9 -> 21622.22222 | D176: =B176*C176 -> 3675163.707 | E176: Pavement (SY) - Interstate | F176: =$F$23 -> 169.9716 | G176: =(((C167+D167)*2)*E167)/9 -> 32200 | H176: =F176*G176 -> 5473085.52 | I176: Pavement (SY) - Interstate | J176: =$F$23 -> 169.9716 | K176: =(((C168+D168)*2)*E168)/9 -> 29555.55556 | L176: =J176*K176 -> 5023605.067 | M176: Pavement (SY) - Interstate | N176: =$F$23 -> 169.9716 | O176: =(((C169+D169))*E169)/9 -> 10811.11111 | P176: =N176*O176 -> 1837581.853 | Q176: Pavement (SY) - Interstate | R176: =$F$23 -> 169.9716 | S176: =(((C170+D170)*2)*E170)/9 -> 12444.44444 | T176: =R176*S176 -> 2115202.133 | U176: Pavement (SY) - Interstate | V176: =$F$23 -> 169.9716 | W176: 0 | X176: =V176*W176 -> 0 | Y176: Pavement (SY) - Interstate | Z176: =$F$23 -> 169.9716 | AA176: 0 | AB176: =Z176*AA176 -> 0
A177: Pavement (SY) - Surface St | B177: =$N$16 -> 83.82455 | C177: =$F166*$G166/9 -> 10666.66667 | D177: 894128.5333 | E177: Pavement (SY) - Surface St | F177: =$N$16 -> 83.82455 | G177: =$F167*$G167/9 -> 10666.66667 | H177: 894128.5333 | I177: Pavement (SY) - Surface St | J177: =$N$16 -> 83.82455 | K177: =$F168*$G168/9 -> 10666.66667 | L177: =J177*K177 -> 894128.5333 | M177: Pavement (SY) - Surface St | N177: =$N$16 -> 83.82455 | O177: =$F169*$G169/9 -> 10666.66667 | P177: 894128.5333 | Q177: Pavement (SY) - Surface St | R177: =$N$16 -> 83.82455 | S177: =$F170*$G170/9 -> 10666.66667 | T177: 894128.5333 | U177: Pavement (SY) - Surface St | V177: =$N$16 -> 83.82455 | W177: =$F171*$G171/9 -> 10666.66667 | X177: =V177*W177 -> 894128.5333 | Y177: Pavement (SY) - Surface St | Z177: =$N$16 -> 83.82455 | AA177: =$F172*$G172/9 -> 10666.66667 | AB177: =Z177*AA177 -> 894128.5333
A178: Retaining Wall (SF) | B178: =GDOT_Prices!$C$21 -> 45.77 | C178: =(500*25/2)*4 -> 25000 | D178: 1144250 | E178: Retaining Wall (SF) | F178: =GDOT_Prices!$C$21 -> 45.77 | G178: =(500*25/2)*4 -> 25000 | H178: 1144250 | I178: Curb & Gutter (LF) | J178: =GDOT_Prices!$C$17+(GDOT_Prices!$C$4*2.5/9) -> 33.76777778 | K178: =$F$168*4 -> 8000 | L178: =J178*K178 -> 270142.2222 | M178: Retaining Wall (SF) | N178: =GDOT_Prices!$C$21 -> 45.77 | O178: =(500*25/2)*2 -> 12500 | P178: 572125 | Q178: Retaining Wall (SF) | R178: =GDOT_Prices!$C$21 -> 45.77 | S178: =(500*25/2)*4 -> 25000 | T178: 1144250 | U178: Curb & Gutter (LF) | V178: =GDOT_Prices!$C$17+(GDOT_Prices!$C$4*2.5/9) -> 33.76777778 | W178: =$F$171*4 -> 8000 | X178: =V178*W178 -> 270142.2222 | Y178: Curb & Gutter (LF) | Z178: =GDOT_Prices!$C$17+(GDOT_Prices!$C$4*2.5/9) -> 33.76777778 | AA178: =$F$172*4 -> 8000 | AB178: =Z178*AA178 -> 270142.2222
A179: Curb & Gutter (LF) | B179: =GDOT_Prices!$C$17+(GDOT_Prices!$C$4*2.5/9) -> 33.76777778 | C179: =$F$166*4 -> 8000 | D179: 270142.2222 | E179: Curb & Gutter (LF) | F179: =GDOT_Prices!$C$17+(GDOT_Prices!$C$4*2.5/9) -> 33.76777778 | G179: =$F$167*4 -> 8000 | H179: 270142.2222 | I179: Conc. Median (SY) | J179: =GDOT_Prices!$C$16 -> 32.06 | K179: =$F$168*(15)/9 -> 3333.333333 | L179: =J179*K179 -> 106866.6667 | M179: Curb & Gutter (LF) | N179: =GDOT_Prices!$C$17+(GDOT_Prices!$C$4*2.5/9) -> 33.76777778 | O179: =$F$169*4 -> 8000 | P179: 270142.2222 | Q179: Median Barrier (LF) | R179: =GDOT_Prices!$C$19 -> 50.75 | S179: =($C$170+$D$170)*2 -> 5600 | T179: 284200 | U179: Conc. Median (SY) | V179: =GDOT_Prices!$C$16 -> 32.06 | W179: =$F$171*(15)/9 -> 3333.333333 | X179: =V179*W179 -> 106866.6667 | Y179: Conc. Median (SY) | Z179: =GDOT_Prices!$C$16 -> 32.06 | AA179: =$F$172*(15)/9 -> 3333.333333 | AB179: =Z179*AA179 -> 106866.6667
A180: Conc. Median (SY) | B180: =GDOT_Prices!$C$16 -> 32.06 | C180: =$F$166*(15)/9 -> 3333.333333 | D180: 106866.6667 | E180: Conc. Median (SY) | F180: =GDOT_Prices!$C$16 -> 32.06 | G180: =$F$167*(15)/9 -> 3333.333333 | H180: 106866.6667 | I180: Sidewalk (SY) | J180: =GDOT_Prices!$C$14 -> 42.68 | K180: =($F$168*5)/9*2 -> 2222.222222 | L180: =J180*K180 -> 94844.44444 | M180: Conc. Median (SY) | N180: =GDOT_Prices!$C$16 -> 32.06 | O180: =$F$169*(15)/9 -> 3333.333333 | P180: 106866.6667 | Q180: Glare Screen (LF) | R180: =GDOT_Prices!$C$26 -> 32.66 | S180: =($C$170+$D$170)*2 -> 5600 | T180: 182896 | U180: Sidewalk (SY) | V180: =GDOT_Prices!$C$14 -> 42.68 | W180: =($F$171*5)/9*2 -> 2222.222222 | X180: =V180*W180 -> 94844.44444 | Y180: Sidewalk (SY) | Z180: =GDOT_Prices!$C$14 -> 42.68 | AA180: =($F$172*5)/9*2 -> 2222.222222 | AB180: =Z180*AA180 -> 94844.44444
A181: Sidewalk (SY) | B181: =GDOT_Prices!$C$14 -> 42.68 | C181: =($F$166*5)/9*2 -> 2222.222222 | D181: 94844.44444 | E181: Sidewalk (SY) | F181: =GDOT_Prices!$C$14 -> 42.68 | G181: =($F$167*5)/9*2 -> 2222.222222 | H181: 94844.44444 | I181: User-Defined Item | M181: Sidewalk (SY) | N181: =GDOT_Prices!$C$14 -> 42.68 | O181: =($F$169*5)/9*2 -> 2222.222222 | P181: 94844.44444 | Q181: Curb & Gutter (LF) | R181: =GDOT_Prices!$C$17+(GDOT_Prices!$C$4*2.5/9) -> 33.76777778 | S181: =$F$170*4 -> 8000 | T181: 270142.2222 | U181: User-Defined Item | Y181: User-Defined Item
A182: User-Defined Item | E182: User-Defined Item | I182: User-Defined Item | M182: User-Defined Item | Q182: Conc. Median (SY) | R182: =GDOT_Prices!$C$16 -> 32.06 | S182: =$F$170*(15)/9 -> 3333.333333 | T182: 106866.6667 | U182: User-Defined Item | Y182: User-Defined Item
A183: User-Defined Item | E183: User-Defined Item | I183: User-Defined Item | M183: User-Defined Item | Q183: Sidewalk (SY) | R183: =GDOT_Prices!$C$14 -> 42.68 | S183: =($F$170*5)/9*2 -> 2222.222222 | T183: 94844.44444 | U183: User-Defined Item | Y183: User-Defined Item
A184: User-Defined Item | E184: User-Defined Item | I184: User-Defined Item | M184: User-Defined Item | Q184: User-Defined Item | U184: User-Defined Item | Y184: User-Defined Item
A185: User-Defined Item | E185: User-Defined Item | I185: User-Defined Item | M185: User-Defined Item | Q185: User-Defined Item | U185: User-Defined Item | Y185: User-Defined Item
A186: Sum = | D186: =SUM(D176:D185) -> 6185395.573 | E186: Sum = | H186: =SUM(H176:H185) -> 7983317.387 | I186: Sum = | L186: =SUM(L176:L185) -> 6389586.933 | M186: Sum = | P186: =SUM(P176:P185) -> 3775688.72 | Q186: Sum = | T186: =SUM(T176:T185) -> 5092530 | U186: Sum = | X186: =SUM(X176:X185) -> 1365981.867 | Y186: Sum = | AB186: =SUM(AB176:AB185) -> 1365981.867
A187: Earthwork | B187: =AssumptionPage!B39 -> 0.4 | D187: =B187*D$186 -> 2474158.229 | E187: Earthwork | F187: =AssumptionPage!B39 -> 0.4 | H187: =F187*H$186 -> 3193326.955 | I187: Earthwork | J187: =AssumptionPage!B39 -> 0.4 | L187: =J187*L$186 -> 2555834.773 | M187: Earthwork | N187: =AssumptionPage!B39 -> 0.4 | P187: =N187*P$186 -> 1510275.488 | Q187: Earthwork | R187: =AssumptionPage!B39 -> 0.4 | T187: =R187*T$186 -> 2037012 | U187: Earthwork | V187: =AssumptionPage!B39 -> 0.4 | X187: =V187*X$186 -> 546392.7467 | Y187: Earthwork | Z187: =AssumptionPage!B39 -> 0.4 | AB187: =Z187*AB$186 -> 546392.7467
A188: Drainage | B188: =AssumptionPage!B40 -> 0.05 | D188: =B188*D$186 -> 309269.7787 | E188: Drainage | F188: =AssumptionPage!B40 -> 0.05 | H188: =F188*H$186 -> 399165.8693 | I188: Drainage | J188: =AssumptionPage!B40 -> 0.05 | L188: =J188*L$186 -> 319479.3467 | M188: Drainage | N188: =AssumptionPage!B40 -> 0.05 | P188: =N188*P$186 -> 188784.436 | Q188: Drainage | R188: =AssumptionPage!B40 -> 0.05 | T188: =R188*T$186 -> 254626.5 | U188: Drainage | V188: =AssumptionPage!B40 -> 0.05 | X188: =V188*X$186 -> 68299.09333 | Y188: Drainage | Z188: =AssumptionPage!B40 -> 0.05 | AB188: =Z188*AB$186 -> 68299.09333
A189: Erosion Control | B189: =AssumptionPage!B41 -> 0.05 | D189: 309269.7787 | E189: Erosion Control | F189: =AssumptionPage!B41 -> 0.05 | H189: 399165.8693 | I189: Erosion Control | J189: =AssumptionPage!B41 -> 0.05 | L189: 319479.3467 | M189: Erosion Control | N189: =AssumptionPage!B41 -> 0.05 | P189: 188784.436 | Q189: Erosion Control | R189: =AssumptionPage!B41 -> 0.05 | T189: 254626.5 | U189: Erosion Control | V189: =AssumptionPage!B41 -> 0.05 | X189: 68299.09333 | Y189: Erosion Control | Z189: =AssumptionPage!B41 -> 0.05 | AB189: 68299.09333
A190: Signs | B190: =AssumptionPage!B42 -> 0.01 | D190: 61853.95573 | E190: Signs | F190: =AssumptionPage!B42 -> 0.01 | H190: 79833.17387 | I190: Signs | J190: =AssumptionPage!B42 -> 0.01 | L190: 63895.86933 | M190: Signs | N190: =AssumptionPage!B42 -> 0.01 | P190: 37756.8872 | Q190: Signs | R190: =AssumptionPage!B42 -> 0.01 | T190: 50925.3 | U190: Signs | V190: =AssumptionPage!B42 -> 0.01 | X190: 13659.81867 | Y190: Signs | Z190: =AssumptionPage!B42 -> 0.01 | AB190: 13659.81867
A191: Pavement Marking | B191: =AssumptionPage!B43 -> 0.01 | D191: 61853.95573 | E191: Pavement Marking | F191: =AssumptionPage!B43 -> 0.01 | H191: 79833.17387 | I191: Pavement Marking | J191: =AssumptionPage!B43 -> 0.01 | L191: 63895.86933 | M191: Pavement Marking | N191: =AssumptionPage!B43 -> 0.01 | P191: 37756.8872 | Q191: Pavement Marking | R191: =AssumptionPage!B43 -> 0.01 | T191: 50925.3 | U191: Pavement Marking | V191: =AssumptionPage!B43 -> 0.01 | X191: 13659.81867 | Y191: Pavement Marking | Z191: =AssumptionPage!B43 -> 0.01 | AB191: 13659.81867
A192: Traffic Control | B192: =AssumptionPage!B44 -> 0.25 | D192: 1546348.893 | E192: Traffic Control | F192: =AssumptionPage!B44 -> 0.25 | H192: 1995829.347 | I192: Traffic Control | J192: =AssumptionPage!B44 -> 0.25 | L192: 1597396.733 | M192: Traffic Control | N192: =AssumptionPage!B44 -> 0.25 | P192: 943922.18 | Q192: Traffic Control | R192: =AssumptionPage!B44 -> 0.25 | T192: 1273132.5 | U192: Traffic Control | V192: =AssumptionPage!B44 -> 0.25 | X192: 341495.4667 | Y192: Traffic Control | Z192: =AssumptionPage!B44 -> 0.25 | AB192: 341495.4667
A193: Utility | B193: =AssumptionPage!B45 -> 0.03 | D193: 185561.8672 | E193: Utility | F193: =AssumptionPage!B45 -> 0.03 | H193: 239499.5216 | I193: Utility | J193: =AssumptionPage!B45 -> 0.03 | L193: 191687.608 | M193: Utility | N193: =AssumptionPage!B45 -> 0.03 | P193: 113270.6616 | Q193: Utility | R193: =AssumptionPage!B45 -> 0.03 | T193: 152775.9 | U193: Utility | V193: =AssumptionPage!B45 -> 0.03 | X193: 40979.456 | Y193: Utility | Z193: =AssumptionPage!B45 -> 0.03 | AB193: 40979.456
A194: Sum = | D194: =SUM(D186:D193) -> 11133712.03 | E194: Sum = | H194: =SUM(H186:H193) -> 14369971.3 | I194: Sum = | L194: =SUM(L186:L193) -> 11501256.48 | M194: Sum = | P194: =SUM(P186:P193) -> 6796239.696 | Q194: Sum = | T194: =SUM(T186:T193) -> 9166554 | U194: Sum = | X194: =SUM(X186:X193) -> 2458767.36 | Y194: Sum = | AB194: =SUM(AB186:AB193) -> 2458767.36
A195: New Bridge Cost | E195: New Bridge Cost | I195: New Bridge Cost | M195: New Bridge Cost | Q195: New Bridge Cost | U195: New Bridge Cost | Y195: New Bridge Cost
A196: Length (LF) | B196: 250 | D196: =IF(C196>0,C196,B196) -> 250 | E196: Length (LF) | F196: 200 | H196: =IF(G196>0,G196,F196) -> 200 | I196: Length (LF) | J196: 450 | L196: =IF(K196>0,K196,J196) -> 450 | M196: Length (LF) | N196: 450 | P196: =IF(O196>0,O196,N196) -> 450 | Q196: Length (LF) | R196: 450 | T196: =IF(S196>0,S196,R196) -> 450 | U196: Length (LF) | V196: 350 | X196: =IF(W196>0,W196,V196) -> 350 | Y196: Length (LF) | Z196: 350 | AB196: =IF(AA196>0,AA196,Z196) -> 350
A197: Width (LF) | B197: 80 | D197: =IF(C197>0,C197,B197) -> 80 | E197: Width (LF) | F197: 400 | H197: =IF(G197>0,G197,F197) -> 400 | I197: Width (LF) | J197: 80 | L197: =IF(K197>0,K197,J197) -> 80 | M197: Width (LF) | N197: 40 | P197: =IF(O197>0,O197,N197) -> 40 | Q197: Width (LF) | R197: 80 | T197: =IF(S197>0,S197,R197) -> 80 | U197: Width (LF) | V197: 80 | X197: =IF(W197>0,W197,V197) -> 80 | Y197: Width (LF) | Z197: 40 | AB197: =IF(AA197>0,AA197,Z197) -> 40
B198: Cost/Unit | C198: Qty | D198: Costs | F198: Cost/Unit | G198: Qty | H198: Costs | J198: Cost/Unit | K198: Qty | L198: Costs | N198: Cost/Unit | O198: Qty | P198: Costs | R198: Cost/Unit | S198: Qty | T198: Costs | V198: Cost/Unit | W198: Qty | X198: Costs | Z198: Cost/Unit | AA198: Qty | AB198: Costs
A199: Bridge (SF) | B199: =$E$173 -> 120 | C199: =D196*D197 -> 20000 | D199: =B199*C199 -> 2400000 | E199: Bridge (SF) | F199: =$E$173 -> 120 | G199: =H196*H197 -> 80000 | H199: =F199*G199 -> 9600000 | I199: Bridge (SF) | J199: =$E$173 -> 120 | K199: =L196*L197 -> 36000 | L199: =J199*K199 -> 4320000 | M199: Bridge (SF) | N199: =$E$173 -> 120 | O199: =P196*P197 -> 18000 | P199: =N199*O199 -> 2160000 | Q199: Bridge (SF) | R199: =$E$173 -> 120 | S199: =T196*T197 -> 36000 | T199: =R199*S199 -> 4320000 | U199: Bridge (SF) | V199: =$E$173 -> 120 | W199: =X196*X197 -> 28000 | X199: =V199*W199 -> 3360000 | Y199: Bridge (SF) | Z199: =$E$173 -> 120 | AA199: =AB196*AB197 -> 14000 | AB199: =Z199*AA199 -> 1680000
A200: Earthwork | B200: =AssumptionPage!B61 -> 0 | D200: =B200*D$199 -> 0 | E200: Earthwork | F200: =AssumptionPage!B61 -> 0 | H200: =F200*H$199 -> 0 | I200: Earthwork | J200: =AssumptionPage!B61 -> 0 | L200: =J200*L$199 -> 0 | M200: Earthwork | N200: =AssumptionPage!B61 -> 0 | P200: =N200*P$199 -> 0 | Q200: Earthwork | R200: =AssumptionPage!B61 -> 0 | T200: =R200*T$199 -> 0 | U200: Earthwork | V200: =AssumptionPage!B61 -> 0 | X200: =V200*X$199 -> 0 | Y200: Earthwork | Z200: =AssumptionPage!B61 -> 0 | AB200: =Z200*AB$199 -> 0
A201: Drainage | B201: =AssumptionPage!B62 -> 0 | D201: =B201*D$199 -> 0 | E201: Drainage | F201: =AssumptionPage!B62 -> 0 | H201: =F201*H$199 -> 0 | I201: Drainage | J201: =AssumptionPage!B62 -> 0 | L201: =J201*L$199 -> 0 | M201: Drainage | N201: =AssumptionPage!B62 -> 0 | P201: =N201*P$199 -> 0 | Q201: Drainage | R201: =AssumptionPage!B62 -> 0 | T201: =R201*T$199 -> 0 | U201: Drainage | V201: =AssumptionPage!B62 -> 0 | X201: =V201*X$199 -> 0 | Y201: Drainage | Z201: =AssumptionPage!B62 -> 0 | AB201: =Z201*AB$199 -> 0
A202: Erosion Control | B202: =AssumptionPage!B63 -> 0 | D202: 0 | E202: Erosion Control | F202: =AssumptionPage!B63 -> 0 | H202: 0 | I202: Erosion Control | J202: =AssumptionPage!B63 -> 0 | L202: 0 | M202: Erosion Control | N202: =AssumptionPage!B63 -> 0 | P202: 0 | Q202: Erosion Control | R202: =AssumptionPage!B63 -> 0 | T202: 0 | U202: Erosion Control | V202: =AssumptionPage!B63 -> 0 | X202: 0 | Y202: Erosion Control | Z202: =AssumptionPage!B63 -> 0 | AB202: 0
A203: Signs | B203: =AssumptionPage!B64 -> 0 | D203: 0 | E203: Signs | F203: =AssumptionPage!B64 -> 0 | H203: 0 | I203: Signs | J203: =AssumptionPage!B64 -> 0 | L203: 0 | M203: Signs | N203: =AssumptionPage!B64 -> 0 | P203: 0 | Q203: Signs | R203: =AssumptionPage!B64 -> 0 | T203: 0 | U203: Signs | V203: =AssumptionPage!B64 -> 0 | X203: 0 | Y203: Signs | Z203: =AssumptionPage!B64 -> 0 | AB203: =Z203*AB$199 -> 0
A204: Pavement Marking | B204: =AssumptionPage!B65 -> 0 | D204: 0 | E204: Pavement Marking | F204: =AssumptionPage!B65 -> 0 | H204: 0 | I204: Pavement Marking | J204: =AssumptionPage!B65 -> 0 | L204: 0 | M204: Pavement Marking | N204: =AssumptionPage!B65 -> 0 | P204: 0 | Q204: Pavement Marking | R204: =AssumptionPage!B65 -> 0 | T204: 0 | U204: Pavement Marking | V204: =AssumptionPage!B65 -> 0 | X204: 0 | Y204: Pavement Marking | Z204: =AssumptionPage!B65 -> 0 | AB204: 0
A205: Traffic Control | B205: =AssumptionPage!B66 -> 0 | D205: 0 | E205: Traffic Control | F205: =AssumptionPage!B66 -> 0 | H205: 0 | I205: Traffic Control | J205: =AssumptionPage!B66 -> 0 | L205: 0 | M205: Traffic Control | N205: =AssumptionPage!B66 -> 0 | P205: 0 | Q205: Traffic Control | R205: =AssumptionPage!B66 -> 0 | T205: 0 | U205: Traffic Control | V205: =AssumptionPage!B66 -> 0 | X205: 0 | Y205: Traffic Control | Z205: =AssumptionPage!B66 -> 0 | AB205: 0
A206: Utility | B206: =AssumptionPage!B67 -> 0.03 | D206: 72000 | E206: Utility | F206: =AssumptionPage!B67 -> 0.03 | H206: 288000 | I206: Utility | J206: =AssumptionPage!B67 -> 0.03 | L206: 129600 | M206: Utility | N206: =AssumptionPage!B67 -> 0.03 | P206: 64800 | Q206: Utility | R206: =AssumptionPage!B67 -> 0.03 | T206: 129600 | U206: Utility | V206: =AssumptionPage!B67 -> 0.03 | X206: 100800 | Y206: Utility | Z206: =AssumptionPage!B67 -> 0.03 | AB206: 50400
A207: Sum = | D207: =SUM(D199:D206) -> 2472000 | E207: Sum = | H207: =SUM(H199:H206) -> 9888000 | I207: Sum = | L207: =SUM(L199:L206) -> 4449600 | M207: Sum = | P207: =SUM(P199:P206) -> 2224800 | Q207: Sum = | T207: =SUM(T199:T206) -> 4449600 | U207: Sum = | X207: =SUM(X199:X206) -> 3460800 | Y207: Sum = | AB207: =SUM(AB199:AB206) -> 1730400
A208: Subtotal = | D208: =ROUND(D194+D207,-3) -> 13606000 | E208: Subtotal = | H208: =ROUND(H194+H207,-3) -> 24258000 | I208: Subtotal = | L208: =ROUND(L194+L207,-3) -> 15951000 | M208: Subtotal = | P208: =ROUND(P194+P207,-3) -> 9021000 | Q208: Subtotal = | T208: =ROUND(T194+T207,-3) -> 13616000 | U208: Subtotal = | X208: =ROUND(X194+X207,-3) -> 5920000 | Y208: Subtotal = | AB208: =ROUND(AB194+AB207,-3) -> 4189000
A211: Intersections
A212: Left Turn Bay Queue Length | C212: 300 | E212: =IF(D212>0,D212,C212) -> 300 | F212: LF
A213: Left Turn Lanes | C213: 1 | E213: =IF(D213>0,D213,C213) -> 1 | F213: Ea
A214: Right Turn Bay Queue Length | C214: 100 | E214: =IF(D214>0,D214,C214) -> 100 | F214: LF
A215: Right Turn Lanes | C215: 1 | E215: =IF(D215>0,D215,C215) -> 1 | F215: Ea
A219: Turning Lanes - Left | E219: Turning Lanes - Right | I219: Roundabout | M219: Signal
B220: Cost/Unit | C220: Qty | D220: Costs | F220: Cost/Unit | G220: Qty | H220: Costs | J220: Cost/Unit | K220: Qty | L220: Costs | N220: Cost/Unit | O220: Qty | P220: Costs
A221: Pavement (SY) | B221: =$N$16 -> 83.82455 | C221: =((E212*E213*12)+(465*E213*12))/9 -> 1020 | D221: =B221*C221 -> 85501.041 | E221: Pavement (SY) | F221: =$N$16 -> 83.82455 | G221: =((E214*E215*12)+(465*E215*12))/9 -> 753.3333333 | H221: =F221*G221 -> 63147.82767 | I221: Pavement (SY) | J221: =$N$16 -> 83.82455 | K221: 4000 | L221: =J221*K221 -> 335298.2 | M221: Signal Cost (EA) | N221: 200000 | O221: 1 | P221: =N221*O221 -> 200000
A222: Curb & Gutter (LF) | B222: =GDOT_Prices!$C$17+(GDOT_Prices!$C$4*2.5/9) -> 33.76777778 | C222: =(E212+465)*2 -> 1530 | D222: =B222*C222 -> 51664.7 | E222: Curb & Gutter (LF) | F222: =GDOT_Prices!$C$17+(GDOT_Prices!$C$4*2.5/9) -> 33.76777778 | G222: =E214+465 -> 565 | H222: =F222*G222 -> 19078.79444 | I222: Curb & Gutter (LF) | J222: =GDOT_Prices!$C$17+(GDOT_Prices!$C$4*2.5/9) -> 33.76777778 | K222: 2200 | L222: =J222*K222 -> 74289.11111 | M222: User-Defined Item
A223: Conc. Median (SY) | B223: =GDOT_Prices!$C$16 -> 32.06 | C223: =(E212+465-100)*8/9+600/9 -> 657.7777778 | D223: =B223*C223 -> 21088.35556 | E223: User-Defined Item | I223: Conc. Median 4" (SY) | J223: =GDOT_Prices!$C$16 -> 32.06 | K223: 75 | L223: =J223*K223 -> 2404.5 | M223: User-Defined Item
A224: User-Defined Item | E224: User-Defined Item | I224: User-Defined Item | M224: User-Defined Item
A225: User-Defined Item | E225: User-Defined Item | I225: User-Defined Item | M225: User-Defined Item
A226: User-Defined Item | E226: User-Defined Item | I226: User-Defined Item | M226: User-Defined Item
... 99 more rows

Sheet CalculationSpreadsheet
A1: ATLANTA REGIONAL COMMISSION
A2: PLANNING LEVEL COST ESTIMATION TOOL
A3: Input Data Verification
A5: Project Name: | B5: =ProjectInformation!B6 -> 0 | F5: ARC Project ID: | G5: =PI_ID -> 0
A6: From Limit: | B6: =ProjectInformation!B8 -> 0 | F6: To Limit: | G6: =PI_To -> 0
A7: County: | B7: =ProjectInformation!B10 -> Hall | F7: Area: | G7: =PI_Area -> 0
A9: You have entered the following information for the project. Please verify if all information is accurate. If you would like to modify any of the elements, click the arrow to go back.
A11: Project Elements | B11: Detailed Project Type | C11: Unit | D11: Total Construction Cost | E11: Contingency% | F11: Contingency% Override | G11: Contingency $
A12: Freeway Widening | B12: =Freeway!B10 -> N/A | C12: =IF(B12="N/A",0,Freeway!G15) -> 0 | D12: =Freeway!G19 -> 0 | E12: =IF(B12<>"N/A",AssumptionPage!F6,0) -> 0 | G12: =IF(F12>0, D12*F12, D12*E12) -> 0
A13: Managed Lanes (HOV, HOT, TOT) | B13: =ManagedLanes!B10 -> N/A | C13: =IF(B13="N/A",0,ManagedLanes!G15) -> 0 | D13: =ManagedLanes!G19 -> 0 | E13: =IF(B13<>"N/A",AssumptionPage!F7,0) -> 0 | G13: =IF(F13>0, D13*F13, D13*E13) -> 0
A14: General Purpose Roadway Capacity | B14: =GPRoadway!B11 -> N/A | C14: =IF(B14="N/A",0,GPRoadway!G17) -> 0 | D14: =GPRoadway!G21 -> 0 | E14: =IF(B14<>"N/A",AssumptionPage!F8,0) -> 0 | G14: 0
A15: Interchanges & Grade Separations | B15: =InterchangeGSep!A11 -> N/A | C15: =IF(B15="N/A",0,InterchangeGSep!G11) -> 0 | D15: =InterchangeGSep!G15 -> 0 | E15: =IF(B15<>"N/A",AssumptionPage!F9,0) -> 0 | G15: 0
A16: Intersection Improvements | B16: =Intersections!A12 -> Turning Lanes - Left | C16: =ints_lt_number -> 0 | D16: =ints_lt_tcost -> 0 | E16: =IF(C16<>0,AssumptionPage!F10,0) -> 0 | G16: 0
B17: =Intersections!A13 -> Turning Lanes - Right | C17: =ints_rt_number -> 0 | D17: =ints_lt_tcost -> 0 | E17: =IF(C17<>0,AssumptionPage!F10,0) -> 0 | G17: 0
B18: =Intersections!A14 -> Roundabout | C18: =ints_rb_number -> 0 | D18: =ints_lt_tcost -> 0 | E18: =IF(C18<>0,AssumptionPage!F10,0) -> 0 | G18: 0
B19: =Intersections!A15 -> Signal | C19: =ints_sig_number -> 0 | D19: =ints_lt_tcost -> 0 | E19: =IF(D19<0,AssumptionPage!F10,0) -> 0 | G19: 0
A20: Bridges | B20: =Bridge!A11 -> N/A | C20: =IF(B20="N/A",0,bg_number) -> 0 | D20: =Bridge!G19 -> 0 | E20: =IF(B20<>"N/A",AssumptionPage!F10,0) -> 0 | G20: 0
A21: Non-Motorized Elements (Sidewalks, Trails, Bike Lanes) | B21: =NonMotorized!A11 -> N/A | C21: =IF(B21="N/A",0,NonMotorized!G11) -> 0 | D21: =NonMotorized!G15 -> 0 | E21: =IF(B21<>"N/A",AssumptionPage!F11,0) -> 0 | G21: 0
A22: Walls (Sound Barrier, Retaining) | B22: =Walls!A11 -> N/A | C22: =IF(B22="N/A",0,Walls!G11) -> 0 | D22: =Walls!G15 -> 0 | E22: =IF(B22<>"N/A",AssumptionPage!F12,0) -> 0 | G22: 0
A23: Intelligent Transportation Systems (ITS) | B23: =ITS!A11 -> N/A | C23: =IF(B23="N/A",0,ITS!G11) -> 0 | D23: =ITS!G16 -> 0 | E23: =IF(B23<>"N/A",AssumptionPage!F13,0) -> 0 | G23: 0
A25: ROW | C25: Unit (acres) | D25: Total ROW Cost
A26: Right-of-Way Acquisition | C26: =row_area -> 0 | D26: =row_tcost -> 0

Sheet FinalCostEstimation
A1: ATLANTA REGIONAL COMMISSION
A2: PLANNING LEVEL COST ESTIMATION TOOL
A3: Planning Level Cost Estimate Summary
A5: Project Name: | B5: =ProjectInformation!B6 -> 0 | D5: ARC Project ID: | E5: =ProjectInformation!E6 -> 0
A6: From Limit: | B6: =ProjectInformation!B8 -> 0 | D6: To Limit: | E6: =ProjectInformation!E8 -> 0
A7: County: | B7: =ProjectInformation!B10 -> Hall | D7: Area: | E7: =ProjectInformation!E10 -> 0
A10: Enter proposed project implementation schedule below. Adjust the default inflation rate as appropriate.
A12: IMPLEMENTATION SCHEDULE | D12: Default Annual Inflation Rate | E12: Annual Inflation Rate Override
A13: Activity | B13: Begin (Year) | D13: =DefaultAnnualInfRate -> 0.04
A14: Preliminary Engineering
D15: Current Year
A16: Right of Way | D16: =YEAR(NOW()) -> 2011
A18: Construction
A21: ESTIMATED PROJECT COST
A22: Activity | B22: Base Estimate | C22: Year of Expenditure
A23: Preliminary Engineering | B23: =B27*0.1 -> 0 | C23: =IF($E$13>0,ROUND(B23*(1+$E$13)^(B14-D16),-3),ROUND(B23*(1+$D$13)^(B14-D16),-3)) -> 0
A25: Right of Way | B25: =ROW!D26 -> 0 | C25: =IF($E$13>0,ROUND(B25*(1+$E$13)^(B16-D16),-3),ROUND(B25*(1+$D$13)^(B16-D16),-3)) -> 0 | F25: Start Over
F26: Start Over
A27: Construction | B27: =SUM(CalculationSpreadsheet!D12:D23) -> 0 | C27: =IF($E$13>0,ROUND(B27*(1+$E$13)^(B18-D16),-3),ROUND(B27*(1+$D$13)^(B18-D16),-3)) -> 0 | F27: Start Over
A29: Contingency | B29: =SUM(CalculationSpreadsheet!G12:G23) -> 0 | C29: =ROUND((C23+C25+C27)/(B23+B25+B27)*B29,-3) -> 
A31: Total | B31: =B23+B25+B27+B29 -> 0 | C31: =C23+C25+C27+C29 -> 
G36: Cost Estimating Worksheet

Sheet ROWDatabase
B2: Right of Way Assumption
B4: County Name | C4: Cost Per Acre ($) by Area Type
C5: Commercial | D5: Residential | E5: Agricultural | F5: Industrial
A6: 1 | B6: Barrow | C6: 400000 | D6: 50000 | E6: 15000 | F6: 75000
A7: 2 | B7: Bartow | C7: 300000 | D7: 50000 | E7: 20000 | F7: 30000
A8: 3 | B8: Carroll | C8: 400000 | D8: 25000 | E8: 15000 | F8: 20000
A9: 4 | B9: Cherokee | C9: 400000 | D9: 100000 | E9: 50000 | F9: 75000
A10: 5 | B10: Clayton | C10: 400000 | D10: 40000 | E10: 25000 | F10: 50000
A11: 6 | B11: Cobb | C11: 700000 | D11: 150000 | E11: 75000 | F11: 200000
A12: 7 | B12: Coweta | C12: 200000 | D12: 50000 | E12: 20000 | F12: 25000
A13: 8 | B13: DeKalb | C13: 700000 | D13: 150000 | E13: 100000 | F13: 150000
A14: 9 | B14: Douglas | C14: 250000 | D14: 75000 | E14: 25000 | F14: 100000
A15: 10 | B15: Fayette | C15: 300000 | D15: 40000 | E15: 20000 | F15: 35000
A16: 11 | B16: Forsyth | C16: 400000 | D16: 100000 | E16: 25000 | F16: 30000
A17: 12 | B17: Fulton - North | C17: =MAX(C11,C13,C20) -> 700000 | D17: =MAX(D11,D13,D20) -> 150000 | E17: =MAX(E11,E13,E20) -> 100000 | F17: =MAX(F11,F13,F20) -> 200000
B18: Fulton - City of Atlanta | C18: 2000000 | D18: 500000 | E18: 25000 | F18: 1167000
B19: Fulton - South | C19: =MAX(C10,C14) -> 400000 | D19: =MAX(D10,D14) -> 75000 | E19: =MAX(E10,E14) -> 25000 | F19: =MAX(F10,F14) -> 100000
A20: 13 | B20: Gwinnett | C20: 400000 | D20: 100000 | E20: 25000 | F20: 200000
A21: 14 | B21: Hall | C21: 350000 | D21: 50000 | E21: 25000 | F21: 150000
A22: 15 | B22: Henry | C22: 350000 | D22: 50000 | E22: 15000 | F22: 75000
A23: 16 | B23: Newton | C23: 350000 | D23: 50000 | E23: 15000 | F23: 75000
A24: 17 | B24: Paulding | C24: 250000 | D24: 75000 | E24: 20000 | F24: 100000
A25: 18 | B25: Rockdale | C25: 350000 | D25: 100000 | E25: 20000 | F25: 125000
A26: 19 | B26: Spalding | C26: 350000 | D26: 50000 | E26: 15000 | F26: 75000
A27: 20 | B27: Walton | C27: 300000 | D27: 100000 | E27: 15000 | F27: 75000
B28: Source: GDOT RUCEST Tool

Sheet AssumptionPage
A1: Mark-Up Items Assumption | E1: Contingency Assumption
A3: Freeway Widening
A4: Mark-up Items | B4: Default Percentages | E4: Project Elements | F4: Contingency Assumptions
B5: Urban | C5: Rural | E5: Freeway Widening | F5: 0.35
A6: Earthwork | B6: 0.15 | C6: 0.15 | E6: Managed Lanes | F6: 0.35
A7: Drainage | B7: 0.05 | C7: 0.05 | E7: Surface Street New/Widening | F7: 0.2
A8: Erosion Control | B8: 0.05 | C8: 0.05 | E8: Interchanges & Grade Separations | F8: 0.3
A9: Signs | B9: 0.06 | C9: 0.06 | E9: Intersections | F9: 0.1
A10: Pavement Marking | B10: 0.03 | C10: 0.03 | E10: Bridges | F10: 0.1
A11: Traffic Control | B11: 0.25 | C11: 0.25 | E11: Non-Motorized Elements | F11: 0.1
A12: Utility | B12: 0.03 | C12: 0.03 | E12: Walls | F12: 0.1
E13: ITS | F13: 0.05
A14: Managed Lanes
A15: Mark-up Items | B15: Default Percentages | E15: Inflation Rate Assumption
B16: Buffer Separated | C16: Barrier Separated | E16: Default Annual Inflation Rate: | F16: 0.04
A17: Earthwork | B17: 0.2 | C17: 0.25
A18: Drainage | B18: 0.07 | C18: 0.07
A19: Erosion Control | B19: 0.05 | C19: 0.05
A20: Signs | B20: 0.08 | C20: 0.05
A21: Pavement Marking | B21: 0.06 | C21: 0.06
A22: Traffic Control | B22: 0.2 | C22: 0.25
A23: Utility | B23: 0.03 | C23: 0.03
A25: Surface Street New/Widening
A26: Mark-up Items | B26: Default Percentages
B27: Widening | C27: New Alignment | D27: Passing Lanes/Frontage Roads/Auxiliary Lanes
A28: Earthwork | B28: 0.75 | C28: 0.75 | D28: 0.65
A29: Drainage | B29: 0.18 | C29: 0.18 | D29: 0.18
A30: Erosion Control | B30: 0.12 | C30: 0.12 | D30: 0.12
A31: Signs | B31: 0.01 | C31: 0.02 | D31: 0.05
A32: Pavement Marking | B32: 0.04 | C32: 0.04 | D32: 0.04
A33: Traffic Control | B33: 0.15 | C33: 0.05 | D33: 0.2
A34: Utility | B34: 0.03 | C34: 0.03 | D34: 0.03
A36: Interchanges & Grade Separations
A37: Mark-up Items | B37: Default Percentages
A39: Earthwork | B39: 0.4
A40: Drainage | B40: 0.05
A41: Erosion Control | B41: 0.05
A42: Signs | B42: 0.01
A43: Pavement Marking | B43: 0.01
A44: Traffic Control | B44: 0.25
A45: Utility | B45: 0.03
A47: Intersection Improvements
A48: Mark-up Items | B48: Default Percentages
B49: Turning Lanes | C49: Roundabout
A50: Earthwork | B50: 0.75 | C50: 0.65
A51: Drainage | B51: 0.18 | C51: 0.18
A52: Erosion Control | B52: 0.12 | C52: 0.12
A53: Signs | B53: 0.01 | C53: 0.04
A54: Pavement Marking | B54: 0.04 | C54: 0.08
A55: Traffic Control | B55: 0.15 | C55: 0.15
A56: Utility | B56: 0.03 | C56: 0.03
A58: Bridges
A59: Mark-up Items | B59: Default Percentages
A61: Earthwork | B61: 0
A62: Drainage | B62: 0
A63: Erosion Control | B63: 0
A64: Signs | B64: 0
A65: Pavement Marking | B65: 0
A66: Traffic Control | B66: 0
A67: Utility | B67: 0.03
A69: Non-Motorized Elements (Sidewalks, Trails, Bike Lanes)
A70: Mark-up Items | B70: Default Percentages
B71: Multi-Use Trails | C71: Sidewalk | D71: Bike Lanes
A72: Earthwork | B72: 0.4 | C72: 0.18 | D72: 0.75
A73: Drainage | B73: 0.12 | C73: 0 | D73: 0.18
A74: Erosion Control | B74: 0.12 | C74: 0.022 | D74: 0.12
A75: Signs | B75: 0.01 | C75: 0.04 | D75: 0.01
A76: Pavement Marking | B76: 0.003 | C76: 0.1 | D76: 0.04
A77: Traffic Control | B77: 0.03 | C77: 0.07 | D77: 0.15
A78: Utility | B78: 0.25 | C78: 0.3 | D78: 0.03
A80: Right-of-Way Acquisition
A81: ROW Default Factor | B81: 2.5

Sheet UnitCostSpreadsheet
A1: Project Type List with Unit Cost
M2: =SUM(M4:M52) -> 0
A3: Categories/Elements | B3: List of Project Type | C3: Area Type | D3: Project Type + Urban Type | E3: Per Unit Cost | F3: Unit | G3: Assumed ROW
A4: Freeway Widening | B4: N/A | C4: Urban | D4: =B4 &C4 -> N/A Urban | E4: 0 | F4: Per Mile (1-Lane each Dir) | I4: =cbPROCESS1 -> FALSE | J4: =IF(D4=fr_type_area,TRUE,FALSE) -> FALSE | K4: =AND(I4,J4) -> FALSE | L4: =IF(K4,G4,0) -> 0 | M4: =L4*fr_length -> 0
B5: Interstate Widening - Asphalt | C5: Urban | D5: =B5 &C5 -> Interstate Widening - Asphalt Urban | E5: =Calculations!D61 -> 14168000 | F5: Per Mile (1-Lane each Dir) | G5: =(Calculations!F33*Calculations!F35)/43560 -> 2.909090909 | I5: FALSE | J5: FALSE | K5: =AND(I5,J5) -> FALSE | L5: =IF(K5,G5,0) -> 0 | M5: 0
B6: Interstate Widening - Concrete | C6: Urban | D6: =B6 &C6 -> Interstate Widening - Concrete Urban | E6: =Calculations!H62 -> 16815000 | F6: Per Mile (1-Lane each Dir) | G6: =(Calculations!F33*Calculations!F35)/43560 -> 2.909090909 | I6: FALSE | J6: FALSE | K6: FALSE | L6: 0 | M6: 0
C7: Rural | D7: =B4 & C7 -> N/ARural | E7: 0 | F7: Per Mile (1-Lane each Dir) | I7: FALSE | J7: FALSE | K7: FALSE | L7: 0 | M7: 0
C8: Rural | D8: =B5 & " " & C8 -> Interstate Widening - Asphalt Rural | E8: =Calculations!M62 -> 5425000 | F8: Per Mile (1-Lane each Dir) | G8: 0 | I8: FALSE | J8: FALSE | K8: FALSE | L8: 0 | M8: 0
C9: Rural | D9: =B6 & " " & C9 -> Interstate Widening - Concrete Rural | E9: =Calculations!Q62 -> 6102000 | F9: Per Mile (1-Lane each Dir) | G9: 0 | I9: FALSE | J9: FALSE | K9: FALSE | L9: 0 | M9: 0
A10: Managed Lanes | B10: N/A | D10: =B10 &C10 -> N/A | E10: 0 | F10: Per Mile (1-Lane each Dir)
B11: Managed Lane Buffer Separated - Asphalt | D11: Managed Lane Buffer Separated - Asphalt | E11: =Calculations!D95 -> 11103000 | F11: Per Mile (1-Lane each Dir) | G11: =(Calculations!F67*Calculations!F69)/43560 -> 2.909090909
B12: Managed Lane Buffer Separated - Concrete | D12: Managed Lane Buffer Separated - Concrete | E12: =Calculations!H95 -> 12516000 | F12: Per Mile (1-Lane each Dir) | G12: =(Calculations!F67*Calculations!F69)/43560 -> 2.909090909
B13: Managed Lane Barrier Separated - Asphalt | D13: Managed Lane Barrier Separated - Asphalt | E13: =Calculations!L95 -> 20454000 | F13: Per Mile (1-Lane each Dir) | G13: =(Calculations!F67*(Calculations!F69+Calculations!F71+Calculations!F73))/43560 -> 7.757575758
B14: Managed Lane Barrier Separated - Concrete | D14: Managed Lane Barrier Separated - Concrete | E14: =Calculations!P95 -> 23276000 | F14: Per Mile (1-Lane each Dir) | G14: =(Calculations!F67*(Calculations!F69+Calculations!F71+Calculations!F73))/43560 -> 7.757575758
A15: General Purpose Roadway Capacity | B15: N/A | C15: Urban | D15: N/A Urban | E15: 0 | F15: Per Mile (1-Lane each Dir)
B16: General Purpose Roadway Widening with Median | C16: Urban | D16: General Purpose Roadway Widening with Median Urban | E16: =Calculations!D128 -> 6234000 | F16: Per Mile (1-Lane each Dir) | G16: =(Calculations!C109+Calculations!C112)/4840 -> 4.727272727
B17: General Purpose Roadway Widening without Median | C17: Urban | D17: General Purpose Roadway Widening without Median Urban | E17: =Calculations!H128 -> 4777000 | F17: Per Mile (1-Lane each Dir) | G17: =Calculations!G109/4840 -> 2.909090909
B18: New Alignments | C18: Urban | D18: New Alignments Urban | E18: =Calculations!L128 -> 3914000 | F18: Per Mile (1-Lane each Dir) | G18: =(Calculations!F100*50)/9/4840 -> 6.060606061
B19: Frontage Rd / Passing Lanes | C19: Urban | D19: Frontage Rd / Passing Lanes Urban | E19: =Calculations!P128 -> 4057000 | F19: Per Mile (1-Lane each Dir) | G19: =(Calculations!F100*50)/9/4840 -> 6.060606061
C20: Rural | D20: =B15 &C20 -> N/A Rural | E20: 0 | F20: Per Mile (1-Lane each Dir)
C21: Rural | D21: =B16 &C21 -> General Purpose Roadway Widening with Median Rural | E21: =Calculations!D160 -> 5399000 | F21: Per Mile (1-Lane each Dir) | G21: =(Calculations!C141+Calculations!C144)/4840 -> 6
C22: Rural | D22: =B17 &C22 -> General Purpose Roadway Widening without Median Rural | E22: =Calculations!H160 -> 3771000 | F22: Per Mile (1-Lane each Dir) | G22: =Calculations!G141/4840 -> 3.696969697
C23: Rural | D23: =B18 &C23 -> New Alignments Rural | E23: =Calculations!L160 -> 3285000 | F23: Per Mile (1-Lane each Dir) | G23: =(Calculations!F132*50)/9/4840 -> 6.060606061
C24: Rural | D24: =B19 &C24 -> Frontage Rd / Passing Lanes Rural | E24: =Calculations!P160 -> 3405000 | F24: Per Mile (1-Lane each Dir) | G24: =(Calculations!F132*50)/9/4840 -> 6.060606061
A25: Interchanges & Grade Separations | B25: N/A | D25: =B25 &C25 -> N/A | E25: 0 | F25: Per Each
B26: Compressed Diamond | D26: Compressed Diamond | E26: =Calculations!D208 -> 13606000 | F26: Per Each | G26: =98010/43560 -> 2.25
B27: Single Point Urban | D27: Single Point Urban | E27: =Calculations!H208 -> 24258000 | F27: Per Each | G27: =359370/43560 -> 8.25
B28: Diamond | D28: Diamond | E28: =Calculations!L208 -> 15951000 | F28: Per Each | G28: =816750/43560 -> 18.75
B29: Half Diamond | D29: Half Diamond | E29: =Calculations!P208 -> 9021000 | F29: Per Each | G29: =54450/43560 -> 1.25
B30: HOV/Managed Lanes Direct Access Interchange | D30: HOV/Managed Lanes Direct Access Interchange | E30: =Calculations!T208 -> 13616000 | F30: Per Each | G30: =108900/43560 -> 2.5
B31: Grade Sep - 4 lanes | D31: Grade Sep - 4 lanes | E31: =Calculations!X208 -> 5920000 | F31: Per Each | G31: =87120/43560 -> 2
B32: Grade Sep - 2 lanes | D32: Grade Sep - 2 lanes | E32: =Calculations!AB208 -> 4189000 | F32: Per Each | G32: =87120/43560 -> 2
A33: Intersection Improvements | B33: N/A | D33: N/A | E33: 0
B34: Turning Lanes - Left | D34: Turning Lanes - Left | E34: =Calculations!D240 -> 1200 | F34: Per Feet (Bay Queue Length) | G34: =(Calculations!C221+Calculations!C223)/4840 -> 0.3466483012
B35: Turning Lanes - Right | D35: Turning Lanes - Right | E35: =Calculations!H240 -> 1870 | F35: Per Feet (Bay Queue Length) | G35: =Calculations!G221/4840 -> 0.1556473829
B36: Roundabout | D36: Roundabout | E36: =Calculations!L239 -> 927000 | F36: Per Each | G36: =31124/4840 -> 6.430578512
B37: Signal | D37: Signal | E37: =Calculations!P239 -> 200000 | F37: Per Each | G37: 0
A38: Bridges | B38: N/A | D38: N/A | E38: 0 | F38: Per Each
B39: Bridge Replacements | D39: Bridge Replacements | E39: =Calculations!D272 -> 150 | F39: Per Square Feet | G39: 0
B40: New Bridge | D40: New Bridge | E40: =Calculations!H272 -> 120 | F40: Per Square Feet | G40: 0
A41: Non-Motorized Elements (Sidewalks, Trails, Bike Lanes) | B41: N/A | D41: N/A | E41: 0 | F41: Per Mile
B42: Multi-Use Trails (Assume 10' wide) - Asphalt | D42: Multi-Use Trails (Assume 10' wide) - Asphalt | E42: =Calculations!D305 -> 238000 | F42: Per Mile | G42: =Calculations!C285/4840 -> 1.212121212
B43: Multi-Use Trails (Assume 10' Wide) - Concrete | D43: Multi-Use Trails (Assume 10' Wide) - Concrete | E43: =Calculations!H305 -> 580000 | F43: Per Mile | G43: =Calculations!G285/4840 -> 1.212121212
B44: Sidewalks Along Project | D44: =B44 &C44 -> Sidewalks Along Project | E44: =Calculations!L305 -> 520000 | F44: Per Mile | G44: =Calculations!K285/4840 -> 0.6060606061
B45: Bike Lanes | D45: =B45 &C45 -> Bike Lanes | E45: =Calculations!P305 -> 2057000 | F45: Per Mile (1-Lane each Dir) | G45: =Calculations!O285/4840 -> 0.7272727273
A46: Walls (Sound Barrier, Retaining) | B46: N/A | D46: N/A | E46: 0 | F46: Per Mile
B47: Sound Barrier Walls | D47: Sound Barrier Walls | E47: =Calculations!D328 -> 1525000 | F47: Per Mile | G47: 0
B48: Retaining Walls | D48: Retaining Walls | E48: =Calculations!H328 -> 2900000 | F48: Per Mile | G48: 0
A49: Intelligent Transportation Systems (ITS) | B49: N/A | D49: N/A | E49: 0 | F49: Per Mile
B50: ITS - Freeway | D50: =B50 -> ITS - Freeway | E50: =Calculations!D351 -> 545000 | F50: Per Mile | G50: 0
B51: ITS - Arterial | D51: ITS - Arterial | E51: =Calculations!H351 -> 335000 | F51: Per Mile | G51: 0

Sheet GDOT_Prices
A1: Costs from GDOT's Mean Item Summary (Date)
A2: Item # | B2: Description | C2: Price | D2: Unit
A3: 310-5060 | B3: GR AGGR BASE CRS, 6 INCH, INCL MATL | C3: 13.43 | D3: SY
A4: 310-5120 | B4: GR AGGR BASE CRS, 12 INCH, INCL MATL | C4: 52.48 | D4: SY
A5: 400-3604 | B5: ASPH CONC 12.5 MM SMA, GP 2 ONLY, INCL POLYMER-MODIFIED | C5: 155.81 | D5: TN
A6: 400-3624 | B6: ASPH CONC 12.5 MM PEM, GP 2 ONLY, INCL POLYMER-MODIFIED | C6: 169.51 | D6: TN
A7: 402-3121 | B7: RECYCLED ASPH CONC 25 MM SUPERPAVE, GP 1 OR 2, INCL BITUM | C7: 74.66 | D7: TN
A8: 402-3130 | B8: RECYCLED ASPH CONC 12.5 MM SUPERPAVE, GP 2 ONLY, INCL BITUM | C8: 69.02 | D8: TN
A9: 402-3190 | B9: RECYCLED ASPH CONC 19 MM SUPERPAVE, GP 1 OR 2,INCL BITUM | C9: 81.04 | D9: TN
A10: 413-1000 | B10: BITUM TACK COAT | C10: 2.59 | D10: GL
A11: 432-5010 | B11: MILL ASPH CONC PVMT, VARIABLE DEPTH | C11: 3.35 | D11: SY
A12: 436-1000 | B12: ASPHALTIC CONCRETE CURB | C12: 13.41 | D12: LF
A13: 439-0026 | B13: PLAIN PC CONC PVMT, CL 3 CONC, 12 INCH THK | C13: 104.12 | D13: SY
A14: 441-0104 | B14: CONC SIDEWALK, 4 IN | C14: 42.68 | D14: SY
A15: 441-0106 | B15: CONC SIDEWALK, 6 IN | C15: 37.7 | D15: SY
A16: 441-0740 | B16: CONCRETE MEDIAN, 4 IN | C16: 32.06 | D16: SY
A17: 441-6222 | B17: CONC CURB & GUTTER, 8 IN X 30 IN, TP 2 | C17: 19.19 | D17: LF
A18: 610-2700 | B18: REM CONCRETE | C18: 4.25 | D18: SY
A19: 621-3020 | B19: CONCRETE BARRIER, TYPE 20 | C19: 50.75 | D19: LF
A20: 624-0400 | B20: SOUND BARRIER, TYPE- | C20: 19.25 | D20: SF
A21: 627-1010 | B21: MSE WALL FACE, 10 - 20 FT HT, WALL NO | C21: 45.77 | D21: SF
A22: 641-1200 | B22: GUARDRAIL, TP W | C22: 19.73 | D22: LF
A23: 641-5001 | B23: GUARDRAIL ANCHORAGE, TP 1 | C23: 703.4 | D23: EA
A24: 641-5006 | B24: GUARDRAIL ANCHORAGE, TP 6 | C24: 356 | D24: EA
A25: 641-5012 | B25: GUARDRAIL ANCHORAGE, TP 12 | C25: 1918.18 | D25: EA
A26: 649-0018 | B26: CONCRETE GLARE SCREEN, 27 INCH | C26: 32.66 | D26: LF
